﻿Body Name,Body,Service Area Categorisation,Service Division Categorisation,Responsible Unit,Expenses Type,Detailed Expenses Type,Payment Date,Transaction Number,Payment Amount,Supplier Type,Supplier Name,Supplier Id
Portsmouth City Council,PCC,Highways and Transport Services,Parking Services,REGENERATION,Third Party Payments,Private contractors,09/03/18,6210782,50,VENDOR,BOARHUNT GROUP LTD,103726
Portsmouth City Council,PCC,Highways and Transport Services,Parking Services,REGENERATION,Third Party Payments,Private contractors,05/03/18,6209845,42.5,VENDOR,BOARHUNT GROUP LTD,103726
Portsmouth City Council,PCC,Highways and Transport Services,Parking Services,REGENERATION,Third Party Payments,Private contractors,05/03/18,6209845,50,VENDOR,BOARHUNT GROUP LTD,103726
Portsmouth City Council,PCC,Highways and Transport Services,Parking Services,REGENERATION,Third Party Payments,Private contractors,09/03/18,6210782,50,VENDOR,BOARHUNT GROUP LTD,103726
Portsmouth City Council,PCC,Highways and Transport Services,Parking Services,REGENERATION,Third Party Payments,Private contractors,09/03/18,6210782,210,VENDOR,BOARHUNT GROUP LTD,103726
Portsmouth City Council,PCC,Highways and Transport Services,Parking Services,REGENERATION,Third Party Payments,Private contractors,05/03/18,6209845,50,VENDOR,BOARHUNT GROUP LTD,103726
Portsmouth City Council,PCC,Highways and Transport Services,Parking Services,REGENERATION,Third Party Payments,Private contractors,05/03/18,6209845,42.5,VENDOR,BOARHUNT GROUP LTD,103726
Portsmouth City Council,PCC,Highways and Transport Services,Parking Services,REGENERATION,Third Party Payments,Private contractors,05/03/18,6209845,50,VENDOR,BOARHUNT GROUP LTD,103726
Portsmouth City Council,PCC,Highways and Transport Services,Parking Services,REGENERATION,Third Party Payments,Private contractors,05/03/18,6209845,30,VENDOR,BOARHUNT GROUP LTD,103726
Portsmouth City Council,PCC,Highways and Transport Services,Parking Services,REGENERATION,Third Party Payments,Private contractors,05/03/18,6209845,25,VENDOR,BOARHUNT GROUP LTD,103726
Portsmouth City Council,PCC,Highways and Transport Services,Parking Services,REGENERATION,Third Party Payments,Private contractors,05/03/18,6209845,50,VENDOR,BOARHUNT GROUP LTD,103726
Portsmouth City Council,PCC,Highways and Transport Services,Parking Services,REGENERATION,Third Party Payments,Private contractors,05/03/18,6209845,30,VENDOR,BOARHUNT GROUP LTD,103726
Portsmouth City Council,PCC,Highways and Transport Services,Parking Services,REGENERATION,Third Party Payments,Private contractors,05/03/18,6209845,50,VENDOR,BOARHUNT GROUP LTD,103726
Portsmouth City Council,PCC,Highways and Transport Services,Parking Services,REGENERATION,Third Party Payments,Private contractors,09/03/18,6210782,42.5,VENDOR,BOARHUNT GROUP LTD,103726
Portsmouth City Council,PCC,Highways and Transport Services,Parking Services,REGENERATION,Third Party Payments,Private contractors,05/03/18,6209845,44,VENDOR,BOARHUNT GROUP LTD,103726
Portsmouth City Council,PCC,Highways and Transport Services,Parking Services,REGENERATION,Third Party Payments,Private contractors,09/03/18,6210782,60,VENDOR,BOARHUNT GROUP LTD,103726
Portsmouth City Council,PCC,Highways and Transport Services,Parking Services,REGENERATION,Third Party Payments,Private contractors,05/03/18,6209845,44,VENDOR,BOARHUNT GROUP LTD,103726
Portsmouth City Council,PCC,Highways and Transport Services,Parking Services,REGENERATION,Third Party Payments,Private contractors,09/03/18,6210782,50,VENDOR,BOARHUNT GROUP LTD,103726
Portsmouth City Council,PCC,Highways and Transport Services,Parking Services,REGENERATION,Third Party Payments,Private contractors,09/03/18,6210782,60,VENDOR,BOARHUNT GROUP LTD,103726
Portsmouth City Council,PCC,Highways and Transport Services,Parking Services,REGENERATION,Third Party Payments,Private contractors,09/03/18,6210782,60,VENDOR,BOARHUNT GROUP LTD,103726
Portsmouth City Council,PCC,Highways and Transport Services,Parking Services,REGENERATION,Third Party Payments,Private contractors,19/03/18,6212246,42.5,VENDOR,BOARHUNT GROUP LTD,103726
Portsmouth City Council,PCC,Highways and Transport Services,Parking Services,REGENERATION,Premises-Related Expenditure,Rents,19/03/18,6212246,607,VENDOR,BOARHUNT GROUP LTD,103726
Portsmouth City Council,PCC,Highways and Transport Services,Parking Services,REGENERATION,Premises-Related Expenditure,Rents,19/03/18,6212246,718,VENDOR,BOARHUNT GROUP LTD,103726
Portsmouth City Council,PCC,Children's and Education Services,Special Schools,Children's Services - DSG & Schools,Third Party Payments,Other establishments,27/03/18,6214569,19743,VENDOR,ST EDWARDS SCHOOL,101262
Portsmouth City Council,PCC,Children's and Education Services,Special Schools,Children's Services - DSG & Schools,Third Party Payments,Other establishments,27/03/18,6214569,26224,VENDOR,ST EDWARDS SCHOOL,101262
Portsmouth City Council,PCC,Children's and Education Services,Special Schools,Children's Services - DSG & Schools,Third Party Payments,Other establishments,27/03/18,6214569,11403.5,VENDOR,ST EDWARDS SCHOOL,101262
Portsmouth City Council,PCC,Children's and Education Services,Special Schools,Children's Services - DSG & Schools,Third Party Payments,Private contractors,27/03/18,6214569,15231,VENDOR,ST EDWARDS SCHOOL,101262
Portsmouth City Council,PCC,Children's and Education Services,Special Schools,Children's Services - DSG & Schools,Third Party Payments,Private contractors,27/03/18,6214569,19458,VENDOR,ST EDWARDS SCHOOL,101262
Portsmouth City Council,PCC,Children's and Education Services,Special Schools,Children's Services - DSG & Schools,Third Party Payments,Other establishments,27/03/18,6214569,23032,VENDOR,ST EDWARDS SCHOOL,101262
Portsmouth City Council,PCC,Children's and Education Services,Special Schools,Children's Services - DSG & Schools,Third Party Payments,Other establishments,27/03/18,6214569,1943,VENDOR,ST EDWARDS SCHOOL,101262
Portsmouth City Council,PCC,Children's and Education Services,Special Schools,Children's Services - DSG & Schools,Third Party Payments,Other establishments,27/03/18,6214569,10235.5,VENDOR,ST EDWARDS SCHOOL,101262
Portsmouth City Council,PCC,Children's and Education Services,Special Schools,Children's Services - DSG & Schools,Third Party Payments,Private contractors,27/03/18,6214569,16399,VENDOR,ST EDWARDS SCHOOL,101262
Portsmouth City Council,PCC,Children's and Education Services,Family Support Services,CHILDREN SERVICES AND EDUCATION,Transport-Related Expenditure,Public transport,09/03/18,6210775,93,VENDOR,ATOC LTD,103839
Portsmouth City Council,PCC,Children's and Education Services,Family Support Services,CHILDREN SERVICES AND EDUCATION,Transport-Related Expenditure,Public transport,09/03/18,6210775,408.9,VENDOR,ATOC LTD,103839
Portsmouth City Council,PCC,Children's and Education Services,Family Support Services,CHILDREN SERVICES AND EDUCATION,Transport-Related Expenditure,Public transport,09/03/18,6210775,78.9,VENDOR,ATOC LTD,103839
Portsmouth City Council,PCC,Children's and Education Services,Other children looked after services,CHILDREN SERVICES AND EDUCATION,Transport-Related Expenditure,Public transport,09/03/18,6210775,40.7,VENDOR,ATOC LTD,103839
Portsmouth City Council,PCC,Children's and Education Services,Safeguarding Children and Young Peoples Services,CHILDREN SERVICES AND EDUCATION,Transport-Related Expenditure,Public transport,09/03/18,6210775,78.9,VENDOR,ATOC LTD,103839
Portsmouth City Council,PCC,Children's and Education Services,Family Support Services,CHILDREN SERVICES AND EDUCATION,Transport-Related Expenditure,Public transport,09/03/18,6210775,92.5,VENDOR,ATOC LTD,103839
Portsmouth City Council,PCC,Children's and Education Services,Other children looked after services,CHILDREN SERVICES AND EDUCATION,Transport-Related Expenditure,Public transport,09/03/18,6210775,91.1,VENDOR,ATOC LTD,103839
Portsmouth City Council,PCC,Children's and Education Services,Family Support Services,CHILDREN SERVICES AND EDUCATION,Transport-Related Expenditure,Public transport,09/03/18,6210775,256.6,VENDOR,ATOC LTD,103839
Portsmouth City Council,PCC,Children's and Education Services,Safeguarding Children and Young Peoples Services,CHILDREN SERVICES AND EDUCATION,Transport-Related Expenditure,Public transport,09/03/18,6210775,18.2,VENDOR,ATOC LTD,103839
Portsmouth City Council,PCC,Children's and Education Services,Children Looked After,CHILDREN SERVICES AND EDUCATION,Transport-Related Expenditure,Public transport,09/03/18,6210775,140.75,VENDOR,ATOC LTD,103839
Portsmouth City Council,PCC,Children's and Education Services,Other children looked after services,CHILDREN SERVICES AND EDUCATION,Transport-Related Expenditure,Public transport,09/03/18,6210775,632.7,VENDOR,ATOC LTD,103839
Portsmouth City Council,PCC,Children's and Education Services,Asylum seekers,CHILDREN SERVICES AND EDUCATION,Transport-Related Expenditure,Public transport,09/03/18,6210775,1.5,VENDOR,ATOC LTD,103839
Portsmouth City Council,PCC,Children's and Education Services,Youth Justice,CHILDREN SERVICES AND EDUCATION,Transport-Related Expenditure,Public transport,09/03/18,6210775,345.9,VENDOR,ATOC LTD,103839
Portsmouth City Council,PCC,Children's and Education Services,Other children looked after services,CHILDREN SERVICES AND EDUCATION,Transport-Related Expenditure,Public transport,27/03/18,6214505,23,VENDOR,HOVERTRAVEL LTD,105535
Portsmouth City Council,PCC,Children's and Education Services,Other children looked after services,CHILDREN SERVICES AND EDUCATION,Transport-Related Expenditure,Public transport,27/03/18,6214505,23,VENDOR,HOVERTRAVEL LTD,105535
Portsmouth City Council,PCC,Children's and Education Services,Family Support Services,CHILDREN SERVICES AND EDUCATION,Transport-Related Expenditure,Public transport,27/03/18,6214505,23,VENDOR,HOVERTRAVEL LTD,105535
Portsmouth City Council,PCC,Children's and Education Services,Safeguarding Children and Young Peoples Services,CHILDREN SERVICES AND EDUCATION,Transport-Related Expenditure,Public transport,27/03/18,6214505,23,VENDOR,HOVERTRAVEL LTD,105535
Portsmouth City Council,PCC,Children's and Education Services,Safeguarding Children and Young Peoples Services,CHILDREN SERVICES AND EDUCATION,Transport-Related Expenditure,Public transport,27/03/18,6214505,23,VENDOR,HOVERTRAVEL LTD,105535
Portsmouth City Council,PCC,Highways and Transport Services,Parking Services,REGENERATION,Supplies and Services,Grants and subscriptions,21/03/18,6213418,1085,VENDOR,ITSO LTD,136293
Portsmouth City Council,PCC,Children's and Education Services,Youth Justice,CHILDREN SERVICES AND EDUCATION,Supplies and Services,Communications and computing,07/03/18,6210095,32067.45,VENDOR,CAREERVISION LTD,129120
Portsmouth City Council,PCC,Children's and Education Services,Youth Justice,CHILDREN SERVICES AND EDUCATION,Supplies and Services,Communications and computing,29/03/18,6214850,825,VENDOR,CAREERVISION LTD,129120
Portsmouth City Council,PCC,Cultural and Related Services,Culture and Heritage,CULTURE & CITY DEVELOPMENT,Supplies and Services,"Equipment, furniture and materials",07/03/18,6210120,680,VENDOR,EMBLEM PRINT PRODUCTS LTD,109501
Portsmouth City Council,PCC,Cultural and Related Services,Culture and Heritage,CULTURE & CITY DEVELOPMENT,Third Party Payments,Private contractors,16/03/18,6212109,1200,VENDOR,ENGLISH HERITAGE,106883
Portsmouth City Council,PCC,Highways and Transport Services,"Airports, Harbours and Toll Facilities",PORTSMOUTH INTERNATIONAL PORT,Supplies and Services,"Equipment, furniture and materials",15/03/18,6211961,860.36,VENDOR,HAMPSHIRE FLAG COMPANY,100374
Portsmouth City Council,PCC,Highways and Transport Services,"Airports, Harbours and Toll Facilities",PORTSMOUTH INTERNATIONAL PORT,Supplies and Services,"Equipment, furniture and materials",29/03/18,6214973,635.31,VENDOR,HAMPSHIRE FLAG COMPANY,100374
Portsmouth City Council,PCC,Adult Social Care,Assistive Equipment & Technology,PROPERTY & HOUSING,Supplies and Services,"Equipment, furniture and materials",02/03/18,6209821,659.8,VENDOR,TYNETEC B/U OF LEGRAND ELECTRIC LTD,140439
Portsmouth City Council,PCC,Adult Social Care,Assistive Equipment & Technology,PROPERTY & HOUSING,Supplies and Services,"Equipment, furniture and materials",02/03/18,6209821,1116.25,VENDOR,TYNETEC B/U OF LEGRAND ELECTRIC LTD,140439
Portsmouth City Council,PCC,Adult Social Care,Assistive Equipment & Technology,PROPERTY & HOUSING,Supplies and Services,"Equipment, furniture and materials",02/03/18,6209821,839.5,VENDOR,TYNETEC B/U OF LEGRAND ELECTRIC LTD,140439
Portsmouth City Council,PCC,Adult Social Care,Assistive Equipment & Technology,PROPERTY & HOUSING,Supplies and Services,"Equipment, furniture and materials",02/03/18,6209821,348.8,VENDOR,TYNETEC B/U OF LEGRAND ELECTRIC LTD,140439
Portsmouth City Council,PCC,Adult Social Care,Assistive Equipment & Technology,PROPERTY & HOUSING,Supplies and Services,"Equipment, furniture and materials",02/03/18,6209821,225.6,VENDOR,TYNETEC B/U OF LEGRAND ELECTRIC LTD,140439
Portsmouth City Council,PCC,Adult Social Care,Assistive Equipment & Technology,PROPERTY & HOUSING,Supplies and Services,"Equipment, furniture and materials",02/03/18,6209821,474.45,VENDOR,TYNETEC B/U OF LEGRAND ELECTRIC LTD,140439
Portsmouth City Council,PCC,Adult Social Care,Assistive Equipment & Technology,PROPERTY & HOUSING,Supplies and Services,"Equipment, furniture and materials",02/03/18,6209821,94.75,VENDOR,TYNETEC B/U OF LEGRAND ELECTRIC LTD,140439
Portsmouth City Council,PCC,Adult Social Care,Assistive Equipment & Technology,PROPERTY & HOUSING,Supplies and Services,"Equipment, furniture and materials",02/03/18,6209821,3623.75,VENDOR,TYNETEC B/U OF LEGRAND ELECTRIC LTD,140439
Portsmouth City Council,PCC,Adult Social Care,Assistive Equipment & Technology,PROPERTY & HOUSING,Supplies and Services,"Equipment, furniture and materials",02/03/18,6209821,570.45,VENDOR,TYNETEC B/U OF LEGRAND ELECTRIC LTD,140439
Portsmouth City Council,PCC,Adult Social Care,Assistive Equipment & Technology,PROPERTY & HOUSING,Supplies and Services,"Equipment, furniture and materials",02/03/18,6209821,881.6,VENDOR,TYNETEC B/U OF LEGRAND ELECTRIC LTD,140439
Portsmouth City Council,PCC,Housing Revenue Account,Supervision and Management,PROPERTY & HOUSING,Supplies and Services,Communications and computing,07/03/18,6210532,2520,VENDOR,PORTSDOWN OFFICE LTD,100059
Portsmouth City Council,PCC,Support Service / Transparency Costs Unallocated,AMS,PROPERTY & HOUSING,Supplies and Services,"Equipment, furniture and materials",05/03/18,6209921,2370.19,VENDOR,PORTSDOWN OFFICE LTD,100059
Portsmouth City Council,PCC,Solent LEP,Business support,OTHER,Supplies and Services,"Equipment, furniture and materials",20/03/18,6212442,558,VENDOR,PORTSDOWN OFFICE LTD,100059
Portsmouth City Council,PCC,Support Service / Transparency Costs Unallocated,AMS,PROPERTY & HOUSING,Supplies and Services,"Equipment, furniture and materials",19/03/18,6212317,352,VENDOR,PORTSDOWN OFFICE LTD,100059
Portsmouth City Council,PCC,Housing Revenue Account,Special Services,PROPERTY & HOUSING,Supplies and Services,"Equipment, furniture and materials",19/03/18,6212317,220,VENDOR,PORTSDOWN OFFICE LTD,100059
Portsmouth City Council,PCC,Housing Services,Housing Benefits Administration,COMMUNITY & COMMUNICATION,Supplies and Services,"Equipment, furniture and materials",20/03/18,6212442,115,VENDOR,PORTSDOWN OFFICE LTD,100059
Portsmouth City Council,PCC,Support Service / Transparency Costs Unallocated,AMS,PROPERTY & HOUSING,Supplies and Services,"Equipment, furniture and materials",21/03/18,6213450,294.54,VENDOR,PORTSDOWN OFFICE LTD,100059
Portsmouth City Council,PCC,Children's and Education Services,Other Education and Community Budget,CHILDREN SERVICES AND EDUCATION,Supplies and Services,"Equipment, furniture and materials",21/03/18,6213450,325,VENDOR,PORTSDOWN OFFICE LTD,100059
Portsmouth City Council,PCC,Housing Services,Housing Benefits Administration,COMMUNITY & COMMUNICATION,Supplies and Services,"Equipment, furniture and materials",21/03/18,6213450,115,VENDOR,PORTSDOWN OFFICE LTD,100059
Portsmouth City Council,PCC,Support Service / Transparency Costs Unallocated,AMS,PROPERTY & HOUSING,Supplies and Services,"Equipment, furniture and materials",21/03/18,6213450,5152.68,VENDOR,PORTSDOWN OFFICE LTD,100059
Portsmouth City Council,PCC,Support Service / Transparency Costs Unallocated,AMS,PROPERTY & HOUSING,Supplies and Services,"Equipment, furniture and materials",21/03/18,6213450,1482.76,VENDOR,PORTSDOWN OFFICE LTD,100059
Portsmouth City Council,PCC,Support Service / Transparency Costs Unallocated,AMS,PROPERTY & HOUSING,Supplies and Services,"Equipment, furniture and materials",26/03/18,6213960,700,VENDOR,PORTSDOWN OFFICE LTD,100059
Portsmouth City Council,PCC,Children's and Education Services,Management and Support Services,CHILDREN SERVICES AND EDUCATION,Supplies and Services,"Equipment, furniture and materials",26/03/18,6213960,325,VENDOR,PORTSDOWN OFFICE LTD,100059
Portsmouth City Council,PCC,Support Service / Transparency Costs Unallocated,AMS,PROPERTY & HOUSING,Supplies and Services,"Equipment, furniture and materials",26/03/18,6213960,149,VENDOR,PORTSDOWN OFFICE LTD,100059
Portsmouth City Council,PCC,Other,Suspense and Capital Schemes,Environment,Capital Charges,Capital Expenditure (WIP),29/03/18,6215098,280,VENDOR,PRIMESIGHT LIMITED,130399
Portsmouth City Council,PCC,Environmental and Regulatory Services,Regulatory Services,CULTURE & CITY DEVELOPMENT,Supplies and Services,Services,13/03/18,6211199,15,VENDOR,ALERE TOXICOLOGY PLC,121708
Portsmouth City Council,PCC,Environmental and Regulatory Services,Regulatory Services,CULTURE & CITY DEVELOPMENT,Supplies and Services,Services,13/03/18,6211199,1418,VENDOR,ALERE TOXICOLOGY PLC,121708
Portsmouth City Council,PCC,Support Service / Transparency Costs Unallocated,Information Services,FINANCE & IS,Supplies and Services,Communications and computing,29/03/18,6215228,55,VENDOR,VODAFONE LTD,100173
Portsmouth City Council,PCC,Support Service / Transparency Costs Unallocated,Information Services,FINANCE & IS,Supplies and Services,Communications and computing,29/03/18,6215228,55,VENDOR,VODAFONE LTD,100173
Portsmouth City Council,PCC,Support Service / Transparency Costs Unallocated,Information Services,FINANCE & IS,Supplies and Services,Communications and computing,29/03/18,6215228,55,VENDOR,VODAFONE LTD,100173
Portsmouth City Council,PCC,Support Service / Transparency Costs Unallocated,Information Services,FINANCE & IS,Supplies and Services,Communications and computing,23/03/18,6213866,-55,VENDOR,VODAFONE LTD,100173
Portsmouth City Council,PCC,Support Service / Transparency Costs Unallocated,Information Services,FINANCE & IS,Supplies and Services,Communications and computing,23/03/18,6213866,-55,VENDOR,VODAFONE LTD,100173
Portsmouth City Council,PCC,Support Service / Transparency Costs Unallocated,Information Services,FINANCE & IS,Supplies and Services,Communications and computing,23/03/18,6213866,-55,VENDOR,VODAFONE LTD,100173
Portsmouth City Council,PCC,Other,Suspense and Capital Schemes,Environment,Capital Charges,Capital Expenditure (WIP),29/03/18,6215098,3120,VENDOR,PRIMESIGHT LIMITED,130399
Portsmouth City Council,PCC,Other,Suspense and Capital Schemes,Environment,Capital Charges,Capital Expenditure (WIP),29/03/18,6215098,217,VENDOR,PRIMESIGHT LIMITED,130399
Portsmouth City Council,PCC,Housing Revenue Account,Repairs and Maintenance,PROPERTY & HOUSING,Premises-Related Expenditure,Energy costs,07/03/18,6210559,152.2,COMPANY,SSE PLC (SCOTTISH AND SOUTHERN ENERGY PLC),100303
Portsmouth City Council,PCC,Housing Revenue Account,Repairs and Maintenance,PROPERTY & HOUSING,Premises-Related Expenditure,Energy costs,07/03/18,6210559,22.18,COMPANY,SSE PLC (SCOTTISH AND SOUTHERN ENERGY PLC),100303
Portsmouth City Council,PCC,Children's and Education Services,Safeguarding Children and Young Peoples Services,CHILDREN SERVICES AND EDUCATION,Third Party Payments,Private contractors,13/03/18,6211214,129,VENDOR,BEANSTALK CHILDREN'S THERAPY,143228
Portsmouth City Council,PCC,Children's and Education Services,Safeguarding Children and Young Peoples Services,CHILDREN SERVICES AND EDUCATION,Third Party Payments,Private contractors,13/03/18,6211214,100,VENDOR,BEANSTALK CHILDREN'S THERAPY,143228
Portsmouth City Council,PCC,Children's and Education Services,Safeguarding Children and Young Peoples Services,CHILDREN SERVICES AND EDUCATION,Third Party Payments,Private contractors,13/03/18,6211214,80,VENDOR,BEANSTALK CHILDREN'S THERAPY,143228
Portsmouth City Council,PCC,Children's and Education Services,Safeguarding Children and Young Peoples Services,CHILDREN SERVICES AND EDUCATION,Third Party Payments,Private contractors,13/03/18,6211214,80,VENDOR,BEANSTALK CHILDREN'S THERAPY,143228
Portsmouth City Council,PCC,Children's and Education Services,Safeguarding Children and Young Peoples Services,CHILDREN SERVICES AND EDUCATION,Third Party Payments,Private contractors,13/03/18,6211214,80,VENDOR,BEANSTALK CHILDREN'S THERAPY,143228
Portsmouth City Council,PCC,Children's and Education Services,Safeguarding Children and Young Peoples Services,CHILDREN SERVICES AND EDUCATION,Third Party Payments,Private contractors,13/03/18,6211214,80,VENDOR,BEANSTALK CHILDREN'S THERAPY,143228
Portsmouth City Council,PCC,Housing Revenue Account,Special Services,PROPERTY & HOUSING,Premises-Related Expenditure,Water Services,02/03/18,6209806,295.79,VENDOR,SOUTHERN WATER,100254
Portsmouth City Council,PCC,Housing Revenue Account,"Rents, Rates, Taxes and Other Charges",PROPERTY & HOUSING,Premises-Related Expenditure,Water Services,02/03/18,6209806,547.48,VENDOR,SOUTHERN WATER,100254
Portsmouth City Council,PCC,Housing Revenue Account,Special Services,PROPERTY & HOUSING,Premises-Related Expenditure,Water Services,02/03/18,6209806,390.52,VENDOR,SOUTHERN WATER,100254
Portsmouth City Council,PCC,Housing Revenue Account,Special Services,PROPERTY & HOUSING,Premises-Related Expenditure,Water Services,02/03/18,6209806,472.54,VENDOR,SOUTHERN WATER,100254
Portsmouth City Council,PCC,Housing Revenue Account,Special Services,PROPERTY & HOUSING,Premises-Related Expenditure,Water Services,02/03/18,6209806,278.82,VENDOR,SOUTHERN WATER,100254
Portsmouth City Council,PCC,Housing Revenue Account,Special Services,PROPERTY & HOUSING,Premises-Related Expenditure,Water Services,02/03/18,6209806,336.79,VENDOR,SOUTHERN WATER,100254
Portsmouth City Council,PCC,Other,Suspense and Capital Schemes,Health & Social Care,Capital Charges,Capital Expenditure (WIP),02/03/18,6209774,156121.97,COMPANY,MOUNTJOY LIMITED,129869
Portsmouth City Council,PCC,Highways and Transport Services,"Airports, Harbours and Toll Facilities",PORTSMOUTH INTERNATIONAL PORT,Premises-Related Expenditure,"Repairs, alterations and maintenance of buildings",22/03/18,6213586,29286.49,COMPANY,MOUNTJOY LIMITED,129869
Portsmouth City Council,PCC,Other,Suspense and Capital Schemes,Culture Leisure & Sport,Capital Charges,Capital Expenditure (WIP),22/03/18,6213586,8840.92,COMPANY,MOUNTJOY LIMITED,129869
Portsmouth City Council,PCC,Other,Suspense and Capital Schemes,Culture Leisure & Sport,Capital Charges,Capital Expenditure (WIP),28/03/18,6214702,253025.59,COMPANY,MOUNTJOY LIMITED,129869
Portsmouth City Council,PCC,Other,Suspense and Capital Schemes,Education,Capital Charges,Capital Expenditure (WIP),27/03/18,6214519,67925,COMPANY,MOUNTJOY LIMITED,129869
Portsmouth City Council,PCC,Environmental and Regulatory Services,Regulatory Services,PROPERTY & HOUSING,Premises-Related Expenditure,Water Services,02/03/18,6209699,749.27,VENDOR,CASTLE WATER LIMITED,142798
Portsmouth City Council,PCC,Highways and Transport Services,"Airports, Harbours and Toll Facilities",PORTSMOUTH INTERNATIONAL PORT,Premises-Related Expenditure,Water Services,01/03/18,6209517,5227.21,VENDOR,CASTLE WATER LIMITED,142798
Portsmouth City Council,PCC,Highways and Transport Services,"Airports, Harbours and Toll Facilities",PORTSMOUTH INTERNATIONAL PORT,Premises-Related Expenditure,Water Services,01/03/18,6209517,76.84,VENDOR,CASTLE WATER LIMITED,142798
Portsmouth City Council,PCC,Highways and Transport Services,"Airports, Harbours and Toll Facilities",PORTSMOUTH INTERNATIONAL PORT,Premises-Related Expenditure,Water Services,01/03/18,6209517,220.59,VENDOR,CASTLE WATER LIMITED,142798
Portsmouth City Council,PCC,Other,Suspense and Capital Schemes,PORTSMOUTH INTERNATIONAL PORT,Premises-Related Expenditure,Water Services,01/03/18,6209517,2174.82,VENDOR,CASTLE WATER LIMITED,142798
Portsmouth City Council,PCC,Support Service / Transparency Costs Unallocated,AMS,PROPERTY & HOUSING,Premises-Related Expenditure,Water Services,02/03/18,6209699,1288.02,VENDOR,CASTLE WATER LIMITED,142798
Portsmouth City Council,PCC,Cultural and Related Services,Open Spaces,CULTURE & CITY DEVELOPMENT,Premises-Related Expenditure,Water Services,02/03/18,6209699,159.81,VENDOR,CASTLE WATER LIMITED,142798
Portsmouth City Council,PCC,Cultural and Related Services,Open Spaces,CULTURE & CITY DEVELOPMENT,Premises-Related Expenditure,Water Services,02/03/18,6209699,49.98,VENDOR,CASTLE WATER LIMITED,142798
Portsmouth City Council,PCC,Cultural and Related Services,Open Spaces,CULTURE & CITY DEVELOPMENT,Premises-Related Expenditure,Water Services,02/03/18,6209699,42.71,VENDOR,CASTLE WATER LIMITED,142798
Portsmouth City Council,PCC,Cultural and Related Services,Open Spaces,CULTURE & CITY DEVELOPMENT,Premises-Related Expenditure,Water Services,02/03/18,6209699,239.49,VENDOR,CASTLE WATER LIMITED,142798
Portsmouth City Council,PCC,Cultural and Related Services,Open Spaces,CULTURE & CITY DEVELOPMENT,Premises-Related Expenditure,Water Services,02/03/18,6209699,34.92,VENDOR,CASTLE WATER LIMITED,142798
Portsmouth City Council,PCC,Cultural and Related Services,Open Spaces,CULTURE & CITY DEVELOPMENT,Premises-Related Expenditure,Water Services,02/03/18,6209699,13.72,VENDOR,CASTLE WATER LIMITED,142798
Portsmouth City Council,PCC,Children's and Education Services,Children Looked After,CHILDREN SERVICES AND EDUCATION,Premises-Related Expenditure,Water Services,02/03/18,6209699,17.74,VENDOR,CASTLE WATER LIMITED,142798
Portsmouth City Council,PCC,Cultural and Related Services,Culture and Heritage,CULTURE & CITY DEVELOPMENT,Premises-Related Expenditure,Water Services,14/03/18,6211384,1644.82,VENDOR,CASTLE WATER LIMITED,142798
Portsmouth City Council,PCC,Cultural and Related Services,Open Spaces,CULTURE & CITY DEVELOPMENT,Premises-Related Expenditure,Water Services,16/03/18,6212065,423.84,VENDOR,CASTLE WATER LIMITED,142798
Portsmouth City Council,PCC,Cultural and Related Services,Open Spaces,CULTURE & CITY DEVELOPMENT,Premises-Related Expenditure,Water Services,16/03/18,6212065,28.64,VENDOR,CASTLE WATER LIMITED,142798
Portsmouth City Council,PCC,Cultural and Related Services,Open Spaces,CULTURE & CITY DEVELOPMENT,Premises-Related Expenditure,Water Services,16/03/18,6212065,72.86,VENDOR,CASTLE WATER LIMITED,142798
Portsmouth City Council,PCC,Support Service / Transparency Costs Unallocated,AMS,PROPERTY & HOUSING,Premises-Related Expenditure,Water Services,16/03/18,6212065,1311.28,VENDOR,CASTLE WATER LIMITED,142798
Portsmouth City Council,PCC,Cultural and Related Services,Open Spaces,CULTURE & CITY DEVELOPMENT,Premises-Related Expenditure,Water Services,16/03/18,6212065,442.65,VENDOR,CASTLE WATER LIMITED,142798
Portsmouth City Council,PCC,Cultural and Related Services,Open Spaces,CULTURE & CITY DEVELOPMENT,Premises-Related Expenditure,Water Services,16/03/18,6212065,67.12,VENDOR,CASTLE WATER LIMITED,142798
Portsmouth City Council,PCC,Housing Revenue Account,Supervision and Management,PROPERTY & HOUSING,Premises-Related Expenditure,Water Services,16/03/18,6212065,116.07,VENDOR,CASTLE WATER LIMITED,142798
Portsmouth City Council,PCC,Cultural and Related Services,Open Spaces,CULTURE & CITY DEVELOPMENT,Premises-Related Expenditure,Water Services,29/03/18,6214854,54.4,VENDOR,CASTLE WATER LIMITED,142798
Portsmouth City Council,PCC,Cultural and Related Services,Library Service,CULTURE & CITY DEVELOPMENT,Premises-Related Expenditure,Water Services,29/03/18,6214854,70.95,VENDOR,CASTLE WATER LIMITED,142798
Portsmouth City Council,PCC,Cultural and Related Services,Open Spaces,CULTURE & CITY DEVELOPMENT,Premises-Related Expenditure,Water Services,29/03/18,6214854,73.08,VENDOR,CASTLE WATER LIMITED,142798
Portsmouth City Council,PCC,Costs below Net Cost of Services,Trading,REGENERATION,Premises-Related Expenditure,Water Services,29/03/18,6214854,814.01,VENDOR,CASTLE WATER LIMITED,142798
Portsmouth City Council,PCC,Cultural and Related Services,Open Spaces,CULTURE & CITY DEVELOPMENT,Premises-Related Expenditure,Water Services,29/03/18,6214854,87.99,VENDOR,CASTLE WATER LIMITED,142798
Portsmouth City Council,PCC,Adult Social Care,Social Care Activities,ADULT SERVICES,Third Party Payments,Other establishments,02/03/18,6209757,5290,VENDOR,HELPING HANDS HOMECARE,141367
Portsmouth City Council,PCC,Adult Social Care,Social Care Activities,ADULT SERVICES,Third Party Payments,Other establishments,02/03/18,6209757,4158,VENDOR,HELPING HANDS HOMECARE,141367
Portsmouth City Council,PCC,Adult Social Care,Social Care Activities,ADULT SERVICES,Third Party Payments,Other establishments,29/03/18,6214978,4312,VENDOR,HELPING HANDS HOMECARE,141367
Portsmouth City Council,PCC,Housing Services,Private Sector Housing Renewal,PROPERTY & HOUSING,Supplies and Services,Grants and subscriptions,07/03/18,6210581,-40,COMPANY,YOUNG AND YOUNG BUILDING SERVICES LTD,104996
Portsmouth City Council,PCC,Other,Suspense and Capital Schemes,Housing GF,Capital Charges,REFCUS,07/03/18,6210581,2877.29,COMPANY,YOUNG AND YOUNG BUILDING SERVICES LTD,104996
Portsmouth City Council,PCC,Housing Services,Private Sector Housing Renewal,PROPERTY & HOUSING,Income,Other grants reimbursements and contributions,07/03/18,6210581,-120,COMPANY,YOUNG AND YOUNG BUILDING SERVICES LTD,104996
Portsmouth City Council,PCC,Housing Services,Private Sector Housing Renewal,PROPERTY & HOUSING,Income,Other grants reimbursements and contributions,07/03/18,6210581,-490.4,COMPANY,YOUNG AND YOUNG BUILDING SERVICES LTD,104996
Portsmouth City Council,PCC,Children's and Education Services,Family Support Services,CHILDREN SERVICES AND EDUCATION,Third Party Payments,Other establishments,26/03/18,6214014,1120,COMPANY,YOUNG AND YOUNG BUILDING SERVICES LTD,104996
Portsmouth City Council,PCC,Other,Suspense and Capital Schemes,Housing GF,Capital Charges,REFCUS,14/03/18,6211892,5609.16,COMPANY,YOUNG AND YOUNG BUILDING SERVICES LTD,104996
Portsmouth City Council,PCC,Other,Suspense and Capital Schemes,Housing GF,Capital Charges,REFCUS,21/03/18,6213506,1121.83,COMPANY,YOUNG AND YOUNG BUILDING SERVICES LTD,104996
Portsmouth City Council,PCC,Children's and Education Services,Family Support Services,CHILDREN SERVICES AND EDUCATION,Third Party Payments,Other establishments,29/03/18,6215246,355.93,COMPANY,YOUNG AND YOUNG BUILDING SERVICES LTD,104996
Portsmouth City Council,PCC,Children's and Education Services,Family Support Services,CHILDREN SERVICES AND EDUCATION,Third Party Payments,Other establishments,29/03/18,6215246,353.78,COMPANY,YOUNG AND YOUNG BUILDING SERVICES LTD,104996
Portsmouth City Council,PCC,Cultural and Related Services,Culture and Heritage,CULTURE & CITY DEVELOPMENT,Third Party Payments,Private contractors,27/03/18,6214082,1500,VENDOR,FOCUS CONSULTANTS 2010 LLP,139982
Portsmouth City Council,PCC,Cultural and Related Services,Culture and Heritage,CULTURE & CITY DEVELOPMENT,Third Party Payments,Private contractors,27/03/18,6214082,3300,VENDOR,FOCUS CONSULTANTS 2010 LLP,139982
Portsmouth City Council,PCC,Cultural and Related Services,Culture and Heritage,CULTURE & CITY DEVELOPMENT,Third Party Payments,Private contractors,27/03/18,6214082,-3300,VENDOR,FOCUS CONSULTANTS 2010 LLP,139982
Portsmouth City Council,PCC,Cultural and Related Services,Culture and Heritage,CULTURE & CITY DEVELOPMENT,Third Party Payments,Private contractors,27/03/18,6214082,1800,VENDOR,FOCUS CONSULTANTS 2010 LLP,139982
Portsmouth City Council,PCC,Children's and Education Services,Children Looked After,CHILDREN SERVICES AND EDUCATION,Supplies and Services,Services,05/03/18,6209904,128,VENDOR,HOME SCHOOL TUTORING,140194
Portsmouth City Council,PCC,Children's and Education Services,Children Looked After,CHILDREN SERVICES AND EDUCATION,Supplies and Services,Services,29/03/18,6214983,128,VENDOR,HOME SCHOOL TUTORING,140194
Portsmouth City Council,PCC,Housing Services,Supporting People,PROPERTY & HOUSING,Third Party Payments,Other establishments,13/03/18,6211356,33025,VENDOR,TWO SAINTS LTD,102584
Portsmouth City Council,PCC,Housing Services,Supporting People,PROPERTY & HOUSING,Third Party Payments,Other establishments,13/03/18,6211356,4166.5,VENDOR,TWO SAINTS LTD,102584
Portsmouth City Council,PCC,Adult Social Care,Social Care Activities,ADULT SERVICES,Third Party Payments,Other establishments,28/03/18,6214614,5281.92,VENDOR,ASTER CARE LTD,130238
Portsmouth City Council,PCC,Cultural and Related Services,Culture and Heritage,CULTURE & CITY DEVELOPMENT,Third Party Payments,Private contractors,19/03/18,6212303,935,VENDOR,MARBAS GROUP LTD,143206
Portsmouth City Council,PCC,Adult Social Care,Social Care Activities,ADULT SERVICES,Third Party Payments,Other establishments,28/03/18,6214614,6602.4,VENDOR,ASTER CARE LTD,130238
Portsmouth City Council,PCC,Adult Social Care,Social Care Activities,ADULT SERVICES,Third Party Payments,Other establishments,28/03/18,6214614,3961.44,VENDOR,ASTER CARE LTD,130238
Portsmouth City Council,PCC,Adult Social Care,Social Care Activities,ADULT SERVICES,Third Party Payments,Other establishments,01/03/18,6209609,2738.4,VENDOR,NURSE PLUS & CARER PLUS (UK) LIMITED,129474
Portsmouth City Council,PCC,Adult Social Care,Social Care Activities,ADULT SERVICES,Third Party Payments,Other establishments,08/03/18,6210701,2738.4,VENDOR,NURSE PLUS & CARER PLUS (UK) LIMITED,129474
Portsmouth City Council,PCC,Adult Social Care,Social Care Activities,ADULT SERVICES,Third Party Payments,Other establishments,15/03/18,6211986,2738.4,VENDOR,NURSE PLUS & CARER PLUS (UK) LIMITED,129474
Portsmouth City Council,PCC,Adult Social Care,Social Care Activities,ADULT SERVICES,Third Party Payments,Other establishments,26/03/18,6213950,2738.4,VENDOR,NURSE PLUS & CARER PLUS (UK) LIMITED,129474
Portsmouth City Council,PCC,Adult Social Care,Social Care Activities,ADULT SERVICES,Third Party Payments,Other establishments,28/03/18,6214614,10018.24,VENDOR,ASTER CARE LTD,130238
Portsmouth City Council,PCC,Central Services,Coroners' Court Services,CULTURE & CITY DEVELOPMENT,Supplies and Services,Services,23/03/18,317712,880,VENDOR,DIGNITY FUNERALS LTD,117178
Portsmouth City Council,PCC,Highways and Transport Services,"Airports, Harbours and Toll Facilities",PORTSMOUTH INTERNATIONAL PORT,Premises-Related Expenditure,"Repairs, alterations and maintenance of buildings",29/03/18,6215175,737.23,VENDOR,SWL ROPE LIFTING AND TESTING,133453
Portsmouth City Council,PCC,Adult Social Care,Social Care Activities,ADULT SERVICES,Third Party Payments,Other establishments,14/03/18,6211837,203.6,VENDOR,SAFEGUARDING GP,137636
Portsmouth City Council,PCC,Adult Social Care,Social Care Activities,ADULT SERVICES,Third Party Payments,Other establishments,14/03/18,6211843,220,VENDOR,SAFEGUARDING GP,137636
Portsmouth City Council,PCC,Corporate and Democratic Core,Corporate Management,COMMUNITY & COMMUNICATION,Supplies and Services,Miscellaneous expenses,01/03/18,6209524,423.12,VENDOR,CLEAR CHANNEL UK LTD,104057
Portsmouth City Council,PCC,Corporate and Democratic Core,Corporate Management,COMMUNITY & COMMUNICATION,Supplies and Services,Miscellaneous expenses,01/03/18,6209524,846.24,VENDOR,CLEAR CHANNEL UK LTD,104057
Portsmouth City Council,PCC,Corporate and Democratic Core,Corporate Management,COMMUNITY & COMMUNICATION,Supplies and Services,Miscellaneous expenses,01/03/18,6209524,1680,VENDOR,CLEAR CHANNEL UK LTD,104057
Portsmouth City Council,PCC,Corporate and Democratic Core,Corporate Management,COMMUNITY & COMMUNICATION,Supplies and Services,Miscellaneous expenses,01/03/18,6209524,195,VENDOR,CLEAR CHANNEL UK LTD,104057
Portsmouth City Council,PCC,Children's and Education Services,Other children looked after services,CHILDREN SERVICES AND EDUCATION,Third Party Payments,Other establishments,09/03/18,6210759,378.63,VENDOR,APPLETREE SUPPORT LTD,126285
Portsmouth City Council,PCC,Children's and Education Services,Other children looked after services,CHILDREN SERVICES AND EDUCATION,Third Party Payments,Other establishments,09/03/18,6210759,838.41,VENDOR,APPLETREE SUPPORT LTD,126285
Portsmouth City Council,PCC,Children's and Education Services,Other children looked after services,CHILDREN SERVICES AND EDUCATION,Third Party Payments,Other establishments,09/03/18,6210759,459.84,VENDOR,APPLETREE SUPPORT LTD,126285
Portsmouth City Council,PCC,Children's and Education Services,Other children looked after services,CHILDREN SERVICES AND EDUCATION,Third Party Payments,Other establishments,09/03/18,6210759,1108.85,VENDOR,APPLETREE SUPPORT LTD,126285
Portsmouth City Council,PCC,Children's and Education Services,Other children looked after services,CHILDREN SERVICES AND EDUCATION,Third Party Payments,Other establishments,09/03/18,6210759,1081.8,VENDOR,APPLETREE SUPPORT LTD,126285
Portsmouth City Council,PCC,Children's and Education Services,Children Looked After,CHILDREN SERVICES AND EDUCATION,Third Party Payments,Other establishments,09/03/18,6210759,330.75,VENDOR,APPLETREE SUPPORT LTD,126285
Portsmouth City Council,PCC,Children's and Education Services,Other children looked after services,CHILDREN SERVICES AND EDUCATION,Third Party Payments,Other establishments,09/03/18,6210759,229.8,VENDOR,APPLETREE SUPPORT LTD,126285
Portsmouth City Council,PCC,Adult Social Care,Social Care Activities,ADULT SERVICES,Third Party Payments,Other establishments,09/03/18,6210759,2596.32,VENDOR,APPLETREE SUPPORT LTD,126285
Portsmouth City Council,PCC,Costs below Net Cost of Services,Trading,REGENERATION,Supplies and Services,Services,28/03/18,6214630,1470,VENDOR,COLLIERS INTERNATIONAL PROPERTY CONSULTANTS LIMITED,142756
Portsmouth City Council,PCC,Adult Social Care,Social Care Activities,ADULT SERVICES,Third Party Payments,Other establishments,14/03/18,6211835,880,VENDOR,SAFEGUARDING GP,137636
Portsmouth City Council,PCC,Adult Social Care,Social Care Activities,ADULT SERVICES,Third Party Payments,Other establishments,27/03/18,6214550,1320,VENDOR,SAFEGUARDING GP,137636
Portsmouth City Council,PCC,Cultural and Related Services,Culture and Heritage,CULTURE & CITY DEVELOPMENT,Third Party Payments,Private contractors,12/03/18,6211100,500,VENDOR,HISTORIC BUILDINGS RESTORATION,138335
Portsmouth City Council,PCC,Cultural and Related Services,Culture and Heritage,CULTURE & CITY DEVELOPMENT,Third Party Payments,Private contractors,12/03/18,6211100,200,VENDOR,HISTORIC BUILDINGS RESTORATION,138335
Portsmouth City Council,PCC,Cultural and Related Services,Culture and Heritage,CULTURE & CITY DEVELOPMENT,Third Party Payments,Private contractors,12/03/18,6211100,200,VENDOR,HISTORIC BUILDINGS RESTORATION,138335
Portsmouth City Council,PCC,Cultural and Related Services,Culture and Heritage,CULTURE & CITY DEVELOPMENT,Third Party Payments,Private contractors,12/03/18,6211100,450,VENDOR,HISTORIC BUILDINGS RESTORATION,138335
Portsmouth City Council,PCC,Cultural and Related Services,Culture and Heritage,CULTURE & CITY DEVELOPMENT,Third Party Payments,Private contractors,12/03/18,6211100,375,VENDOR,HISTORIC BUILDINGS RESTORATION,138335
Portsmouth City Council,PCC,Cultural and Related Services,Culture and Heritage,CULTURE & CITY DEVELOPMENT,Third Party Payments,Private contractors,12/03/18,6211100,400,VENDOR,HISTORIC BUILDINGS RESTORATION,138335
Portsmouth City Council,PCC,Cultural and Related Services,Culture and Heritage,CULTURE & CITY DEVELOPMENT,Third Party Payments,Private contractors,12/03/18,6211100,300,VENDOR,HISTORIC BUILDINGS RESTORATION,138335
Portsmouth City Council,PCC,Cultural and Related Services,Culture and Heritage,CULTURE & CITY DEVELOPMENT,Third Party Payments,Private contractors,12/03/18,6211100,200,VENDOR,HISTORIC BUILDINGS RESTORATION,138335
Portsmouth City Council,PCC,Cultural and Related Services,Culture and Heritage,CULTURE & CITY DEVELOPMENT,Third Party Payments,Private contractors,12/03/18,6211100,150,VENDOR,HISTORIC BUILDINGS RESTORATION,138335
Portsmouth City Council,PCC,Adult Social Care,Information and Early Intervention,ADULT SERVICES,Supplies and Services,Grants and subscriptions,21/03/18,6213452,11000,VENDOR,PORTSMOUTH DIOCESE,102084
Portsmouth City Council,PCC,Cultural and Related Services,Culture and Heritage,COMMUNITY & COMMUNICATION,Third Party Payments,Private contractors,08/03/18,6210710,3477.34,VENDOR,PORTSMOUTH DIOCESE,102084
Portsmouth City Council,PCC,Central Services,Coroners' Court Services,CULTURE & CITY DEVELOPMENT,Supplies and Services,Services,21/03/18,6213018,83.5,SOLETRADER,Classified as 'personal data' (under the Data Protection Act 1998),Redacted
Portsmouth City Council,PCC,Adult Social Care,Social Care Activities,ADULT SERVICES,Third Party Payments,Other establishments,15/03/18,6212014,186.31,VENDOR,SAFEGUARDING GP,137636
Portsmouth City Council,PCC,Adult Social Care,Social Care Activities,ADULT SERVICES,Third Party Payments,Other establishments,15/03/18,6212014,186.31,VENDOR,SAFEGUARDING GP,137636
Portsmouth City Council,PCC,Adult Social Care,Social Care Activities,ADULT SERVICES,Third Party Payments,Other establishments,15/03/18,6212014,186.31,VENDOR,SAFEGUARDING GP,137636
Portsmouth City Council,PCC,Children's and Education Services,Children Looked After,CHILDREN SERVICES AND EDUCATION,Premises-Related Expenditure,Rents,29/03/18,6215010,675,VENDOR,LETTINGS DIRECT LTD,140405
Portsmouth City Council,PCC,Other,Suspense and Capital Schemes,Traffic & Transportation,Capital Charges,Capital Expenditure (WIP),09/03/18,6210841,126656.65,COMPANY,GEOFFREY OSBORNE LTD,105968
Portsmouth City Council,PCC,Other,Suspense and Capital Schemes,Traffic & Transportation,Capital Charges,Capital Expenditure (WIP),09/03/18,6210841,54717.37,COMPANY,GEOFFREY OSBORNE LTD,105968
Portsmouth City Council,PCC,Children's and Education Services,Sure Start and Early Years,CHILDREN SERVICES AND EDUCATION,Employees,Direct employee expenses,29/03/18,6214855,50,SOLETRADER,CATHARINE DRIVER T/AS EAL CONSULTING,143702
Portsmouth City Council,PCC,Children's and Education Services,Sure Start and Early Years,CHILDREN SERVICES AND EDUCATION,Employees,Direct employee expenses,29/03/18,6214855,400,SOLETRADER,CATHARINE DRIVER T/AS EAL CONSULTING,143702
Portsmouth City Council,PCC,Children's and Education Services,Sure Start and Early Years,CHILDREN SERVICES AND EDUCATION,Employees,Direct employee expenses,29/03/18,6214855,12.49,SOLETRADER,CATHARINE DRIVER T/AS EAL CONSULTING,143702
Portsmouth City Council,PCC,Children's and Education Services,Sure Start and Early Years,CHILDREN SERVICES AND EDUCATION,Employees,Direct employee expenses,29/03/18,6214855,42,SOLETRADER,CATHARINE DRIVER T/AS EAL CONSULTING,143702
Portsmouth City Council,PCC,Adult Social Care,Social Care Activities,ADULT SERVICES,Third Party Payments,Other establishments,14/03/18,6211843,220,VENDOR,SAFEGUARDING GP,137636
Portsmouth City Council,PCC,Children's and Education Services,Other Education and Community Budget,CHILDREN SERVICES AND EDUCATION,Transport-Related Expenditure,Car allowances,13/03/18,6211227,540,VENDOR,CITY WIDE TAXIS,103408
Portsmouth City Council,PCC,Children's and Education Services,Other Education and Community Budget,CHILDREN SERVICES AND EDUCATION,Transport-Related Expenditure,Car allowances,13/03/18,6211227,75,VENDOR,CITY WIDE TAXIS,103408
Portsmouth City Council,PCC,Children's and Education Services,Other Education and Community Budget,CHILDREN SERVICES AND EDUCATION,Transport-Related Expenditure,Car allowances,13/03/18,6211227,899,VENDOR,CITY WIDE TAXIS,103408
Portsmouth City Council,PCC,Children's and Education Services,Other Education and Community Budget,CHILDREN SERVICES AND EDUCATION,Transport-Related Expenditure,Car allowances,13/03/18,6211227,1950,VENDOR,CITY WIDE TAXIS,103408
Portsmouth City Council,PCC,Children's and Education Services,Other Education and Community Budget,CHILDREN SERVICES AND EDUCATION,Transport-Related Expenditure,Car allowances,13/03/18,6211227,910,VENDOR,CITY WIDE TAXIS,103408
Portsmouth City Council,PCC,Children's and Education Services,Other Education and Community Budget,CHILDREN SERVICES AND EDUCATION,Transport-Related Expenditure,Car allowances,13/03/18,6211227,965,VENDOR,CITY WIDE TAXIS,103408
Portsmouth City Council,PCC,Children's and Education Services,Other Education and Community Budget,CHILDREN SERVICES AND EDUCATION,Transport-Related Expenditure,Car allowances,13/03/18,6211227,240,VENDOR,CITY WIDE TAXIS,103408
Portsmouth City Council,PCC,Children's and Education Services,Other Education and Community Budget,CHILDREN SERVICES AND EDUCATION,Transport-Related Expenditure,Car allowances,13/03/18,6211227,750,VENDOR,CITY WIDE TAXIS,103408
Portsmouth City Council,PCC,Children's and Education Services,Other Education and Community Budget,CHILDREN SERVICES AND EDUCATION,Transport-Related Expenditure,Car allowances,13/03/18,6211227,600,VENDOR,CITY WIDE TAXIS,103408
Portsmouth City Council,PCC,Children's and Education Services,Other Education and Community Budget,CHILDREN SERVICES AND EDUCATION,Transport-Related Expenditure,Car allowances,13/03/18,6211227,910,VENDOR,CITY WIDE TAXIS,103408
Portsmouth City Council,PCC,Adult Social Care,Social Care Activities,ADULT SERVICES,Third Party Payments,Other establishments,16/03/18,6212182,1563.4,VENDOR,SAFEGUARDING GP,137636
Portsmouth City Council,PCC,Adult Social Care,Learning Disability Support  Adults (18 - 64),ADULT SERVICES,Third Party Payments,Other establishments,01/03/18,6209627,250.84,VENDOR,ROYAL MENCAP SOCIETY,102744
Portsmouth City Council,PCC,Adult Social Care,Learning Disabilty Support Older People (65 - 74),ADULT SERVICES,Third Party Payments,Other establishments,01/03/18,6209627,313.56,VENDOR,ROYAL MENCAP SOCIETY,102744
Portsmouth City Council,PCC,Adult Social Care,Learning Disability Support  Adults (18 - 64),ADULT SERVICES,Third Party Payments,Other establishments,01/03/18,6209627,219.48,VENDOR,ROYAL MENCAP SOCIETY,102744
Portsmouth City Council,PCC,Adult Social Care,Learning Disability Support  Adults (18 - 64),ADULT SERVICES,Third Party Payments,Other establishments,01/03/18,6209627,250.84,VENDOR,ROYAL MENCAP SOCIETY,102744
Portsmouth City Council,PCC,Adult Social Care,Learning Disabilty Support Older People (65 - 74),ADULT SERVICES,Third Party Payments,Other establishments,01/03/18,6209627,313.56,VENDOR,ROYAL MENCAP SOCIETY,102744
Portsmouth City Council,PCC,Adult Social Care,Learning Disability Support  Adults (18 - 64),ADULT SERVICES,Third Party Payments,Other establishments,01/03/18,6209627,438.96,VENDOR,ROYAL MENCAP SOCIETY,102744
Portsmouth City Council,PCC,Adult Social Care,Learning Disability Support  Adults (18 - 64),ADULT SERVICES,Third Party Payments,Other establishments,01/03/18,6209627,78.36,VENDOR,ROYAL MENCAP SOCIETY,102744
Portsmouth City Council,PCC,Adult Social Care,Learning Disability Support  Adults (18 - 64),ADULT SERVICES,Third Party Payments,Other establishments,01/03/18,6209627,125.4,VENDOR,ROYAL MENCAP SOCIETY,102744
Portsmouth City Council,PCC,Adult Social Care,Learning Disability Support  Adults (18 - 64),ADULT SERVICES,Third Party Payments,Other establishments,01/03/18,6209627,250.84,VENDOR,ROYAL MENCAP SOCIETY,102744
Portsmouth City Council,PCC,Adult Social Care,Learning Disability Support  Adults (18 - 64),ADULT SERVICES,Third Party Payments,Other establishments,12/03/18,6211146,250.84,VENDOR,ROYAL MENCAP SOCIETY,102744
Portsmouth City Council,PCC,Adult Social Care,Learning Disability Support  Adults (18 - 64),ADULT SERVICES,Third Party Payments,Other establishments,12/03/18,6211146,125.4,VENDOR,ROYAL MENCAP SOCIETY,102744
Portsmouth City Council,PCC,Adult Social Care,Learning Disabilty Support Older People (65 - 74),ADULT SERVICES,Third Party Payments,Other establishments,12/03/18,6211146,313.56,VENDOR,ROYAL MENCAP SOCIETY,102744
Portsmouth City Council,PCC,Adult Social Care,Learning Disability Support  Adults (18 - 64),ADULT SERVICES,Third Party Payments,Other establishments,12/03/18,6211146,438.96,VENDOR,ROYAL MENCAP SOCIETY,102744
Portsmouth City Council,PCC,Adult Social Care,Learning Disability Support  Adults (18 - 64),ADULT SERVICES,Third Party Payments,Other establishments,12/03/18,6211146,282.2,VENDOR,ROYAL MENCAP SOCIETY,102744
Portsmouth City Council,PCC,Adult Social Care,Learning Disability Support  Adults (18 - 64),ADULT SERVICES,Third Party Payments,Other establishments,12/03/18,6211146,188.12,VENDOR,ROYAL MENCAP SOCIETY,102744
Portsmouth City Council,PCC,Adult Social Care,Learning Disability Support  Adults (18 - 64),ADULT SERVICES,Third Party Payments,Other establishments,12/03/18,6211146,620.92,VENDOR,ROYAL MENCAP SOCIETY,102744
Portsmouth City Council,PCC,Adult Social Care,Learning Disability Support  Adults (18 - 64),ADULT SERVICES,Third Party Payments,Other establishments,12/03/18,6211146,257,VENDOR,ROYAL MENCAP SOCIETY,102744
Portsmouth City Council,PCC,Adult Social Care,Learning Disability Support  Adults (18 - 64),ADULT SERVICES,Third Party Payments,Other establishments,12/03/18,6211146,125.4,VENDOR,ROYAL MENCAP SOCIETY,102744
Portsmouth City Council,PCC,Adult Social Care,Learning Disability Support  Adults (18 - 64),ADULT SERVICES,Third Party Payments,Other establishments,12/03/18,6211146,250.84,VENDOR,ROYAL MENCAP SOCIETY,102744
Portsmouth City Council,PCC,Adult Social Care,Learning Disability Support  Adults (18 - 64),ADULT SERVICES,Third Party Payments,Other establishments,12/03/18,6211146,219.48,VENDOR,ROYAL MENCAP SOCIETY,102744
Portsmouth City Council,PCC,Adult Social Care,Learning Disability Support  Adults (18 - 64),ADULT SERVICES,Third Party Payments,Other establishments,12/03/18,6211146,501.72,VENDOR,ROYAL MENCAP SOCIETY,102744
Portsmouth City Council,PCC,Adult Social Care,Learning Disability Support  Adults (18 - 64),ADULT SERVICES,Third Party Payments,Other establishments,12/03/18,6211146,122.96,VENDOR,ROYAL MENCAP SOCIETY,102744
Portsmouth City Council,PCC,Adult Social Care,Learning Disability Support  Adults (18 - 64),ADULT SERVICES,Third Party Payments,Other establishments,12/03/18,6211146,125.4,VENDOR,ROYAL MENCAP SOCIETY,102744
Portsmouth City Council,PCC,Adult Social Care,Learning Disability Support  Adults (18 - 64),ADULT SERVICES,Third Party Payments,Other establishments,12/03/18,6211146,376.24,VENDOR,ROYAL MENCAP SOCIETY,102744
Portsmouth City Council,PCC,Adult Social Care,Learning Disability Support  Adults (18 - 64),ADULT SERVICES,Third Party Payments,Other establishments,12/03/18,6211146,313.56,VENDOR,ROYAL MENCAP SOCIETY,102744
Portsmouth City Council,PCC,Adult Social Care,Learning Disability Support  Adults (18 - 64),ADULT SERVICES,Third Party Payments,Other establishments,16/03/18,6212179,8187.04,VENDOR,ROYAL MENCAP SOCIETY,102744
Portsmouth City Council,PCC,Adult Social Care,Learning Disability Support  Adults (18 - 64),ADULT SERVICES,Third Party Payments,Other establishments,12/03/18,6211146,125.4,VENDOR,ROYAL MENCAP SOCIETY,102744
Portsmouth City Council,PCC,Adult Social Care,Learning Disability Support  Adults (18 - 64),ADULT SERVICES,Third Party Payments,Other establishments,12/03/18,6211146,250.84,VENDOR,ROYAL MENCAP SOCIETY,102744
Portsmouth City Council,PCC,Adult Social Care,Learning Disability Support  Adults (18 - 64),ADULT SERVICES,Third Party Payments,Other establishments,12/03/18,6211146,940.64,VENDOR,ROYAL MENCAP SOCIETY,102744
Portsmouth City Council,PCC,Adult Social Care,Learning Disability Support  Adults (18 - 64),ADULT SERVICES,Third Party Payments,Other establishments,12/03/18,6211146,878.08,VENDOR,ROYAL MENCAP SOCIETY,102744
Portsmouth City Council,PCC,Adult Social Care,Learning Disability Support  Adults (18 - 64),ADULT SERVICES,Third Party Payments,Other establishments,12/03/18,6211146,739.56,VENDOR,ROYAL MENCAP SOCIETY,102744
Portsmouth City Council,PCC,Adult Social Care,Social Care Activities,ADULT SERVICES,Third Party Payments,Other establishments,12/03/18,6211146,9363.2,VENDOR,ROYAL MENCAP SOCIETY,102744
Portsmouth City Council,PCC,Adult Social Care,Social Care Activities,ADULT SERVICES,Third Party Payments,Other establishments,12/03/18,6211146,2779.4,VENDOR,ROYAL MENCAP SOCIETY,102744
Portsmouth City Council,PCC,Adult Social Care,Learning Disabilty Support Older People (65 - 74),ADULT SERVICES,Third Party Payments,Other establishments,23/03/18,6213811,2523.28,VENDOR,ROYAL MENCAP SOCIETY,102744
Portsmouth City Council,PCC,Adult Social Care,Social Care Activities,ADULT SERVICES,Third Party Payments,Other establishments,02/03/18,6209794,186.31,VENDOR,SAFEGUARDING GP,137636
Portsmouth City Council,PCC,Adult Social Care,Social Care Activities,ADULT SERVICES,Third Party Payments,Other establishments,15/03/18,6212015,186.31,VENDOR,SAFEGUARDING GP,137636
Portsmouth City Council,PCC,Adult Social Care,Social Care Activities,ADULT SERVICES,Third Party Payments,Other establishments,15/03/18,6212015,186.31,VENDOR,SAFEGUARDING GP,137636
Portsmouth City Council,PCC,Adult Social Care,Social Care Activities,ADULT SERVICES,Third Party Payments,Other establishments,15/03/18,6212015,186.31,VENDOR,SAFEGUARDING GP,137636
Portsmouth City Council,PCC,Adult Social Care,Social Care Activities,ADULT SERVICES,Third Party Payments,Other establishments,15/03/18,6212015,186.31,VENDOR,SAFEGUARDING GP,137636
Portsmouth City Council,PCC,Adult Social Care,Social Care Activities,ADULT SERVICES,Third Party Payments,Other establishments,15/03/18,6212015,186.31,VENDOR,SAFEGUARDING GP,137636
Portsmouth City Council,PCC,Adult Social Care,Social Care Activities,ADULT SERVICES,Third Party Payments,Other establishments,15/03/18,6212015,186.31,VENDOR,SAFEGUARDING GP,137636
Portsmouth City Council,PCC,Adult Social Care,Social Care Activities,ADULT SERVICES,Third Party Payments,Other establishments,15/03/18,6212015,186.31,VENDOR,SAFEGUARDING GP,137636
Portsmouth City Council,PCC,Adult Social Care,Social Care Activities,ADULT SERVICES,Third Party Payments,Other establishments,15/03/18,6212015,186.31,VENDOR,SAFEGUARDING GP,137636
Portsmouth City Council,PCC,Adult Social Care,Social Care Activities,ADULT SERVICES,Third Party Payments,Other establishments,15/03/18,6212015,223.29,VENDOR,SAFEGUARDING GP,137636
Portsmouth City Council,PCC,Adult Social Care,Social Care Activities,ADULT SERVICES,Third Party Payments,Other establishments,27/03/18,6214548,217.86,VENDOR,SAFEGUARDING GP,137636
Portsmouth City Council,PCC,Adult Social Care,Support with Memory and Cognition Adults (18 - 64),ADULT SERVICES,Third Party Payments,Other establishments,26/03/18,6213890,5092.34,VENDOR,ASTER CARE LTD,130238
Portsmouth City Council,PCC,Other,Suspense and Capital Schemes,Housing GF,Capital Charges,REFCUS,21/03/18,6213447,6000,COMPANY,PB CONSTRUCTION AND DEVELOPMENT LTD,114534
Portsmouth City Council,PCC,Other,Suspense and Capital Schemes,Housing GF,Capital Charges,REFCUS,28/03/18,6214715,1000,COMPANY,PB CONSTRUCTION AND DEVELOPMENT LTD,114534
Portsmouth City Council,PCC,Other,Suspense and Capital Schemes,Housing GF,Capital Charges,REFCUS,28/03/18,6214715,8000,COMPANY,PB CONSTRUCTION AND DEVELOPMENT LTD,114534
Portsmouth City Council,PCC,Support Service / Transparency Costs Unallocated,Legal Services,"HR, LEGAL & PERFORMANCE",Employees,Direct employee expenses,01/03/18,6209597,215,VENDOR,LLG ENTERPRISES T/A LLG LEGAL TRAINING,105837
Portsmouth City Council,PCC,Support Service / Transparency Costs Unallocated,Legal Services,"HR, LEGAL & PERFORMANCE",Employees,Direct employee expenses,01/03/18,6209597,215,VENDOR,LLG ENTERPRISES T/A LLG LEGAL TRAINING,105837
Portsmouth City Council,PCC,Adult Social Care,Social Care Activities,ADULT SERVICES,Third Party Payments,Other establishments,14/03/18,6211837,203.6,VENDOR,SAFEGUARDING GP,137636
Portsmouth City Council,PCC,Adult Social Care,Social Care Activities,ADULT SERVICES,Third Party Payments,Other establishments,14/03/18,6211837,203.6,VENDOR,SAFEGUARDING GP,137636
Portsmouth City Council,PCC,Adult Social Care,Social Care Activities,ADULT SERVICES,Third Party Payments,Other establishments,15/03/18,6212017,186.31,VENDOR,SAFEGUARDING GP,137636
Portsmouth City Council,PCC,Adult Social Care,Social Care Activities,ADULT SERVICES,Third Party Payments,Other establishments,15/03/18,6212017,186.31,VENDOR,SAFEGUARDING GP,137636
Portsmouth City Council,PCC,Adult Social Care,Social Care Activities,ADULT SERVICES,Third Party Payments,Other establishments,15/03/18,6212017,186.31,VENDOR,SAFEGUARDING GP,137636
Portsmouth City Council,PCC,Adult Social Care,Social Care Activities,ADULT SERVICES,Third Party Payments,Other establishments,27/03/18,6214546,200,VENDOR,SAFEGUARDING GP,137636
Portsmouth City Council,PCC,Adult Social Care,Social Care Activities,ADULT SERVICES,Third Party Payments,Other establishments,27/03/18,6214546,200,VENDOR,SAFEGUARDING GP,137636
Portsmouth City Council,PCC,Planning Services,Business support,REGENERATION,Premises-Related Expenditure,"Repairs, alterations and maintenance of buildings",01/03/18,6209599,900,SOLETRADER,M J RITCHIE DECOR AND GUTTERING SERVICES,126505
Portsmouth City Council,PCC,Planning Services,Business support,REGENERATION,Premises-Related Expenditure,"Repairs, alterations and maintenance of buildings",01/03/18,6209599,360,SOLETRADER,M J RITCHIE DECOR AND GUTTERING SERVICES,126505
Portsmouth City Council,PCC,Planning Services,Business support,REGENERATION,Premises-Related Expenditure,"Repairs, alterations and maintenance of buildings",01/03/18,6209599,260,SOLETRADER,M J RITCHIE DECOR AND GUTTERING SERVICES,126505
Portsmouth City Council,PCC,Planning Services,Business support,REGENERATION,Premises-Related Expenditure,"Repairs, alterations and maintenance of buildings",01/03/18,6209599,500,SOLETRADER,M J RITCHIE DECOR AND GUTTERING SERVICES,126505
Portsmouth City Council,PCC,Planning Services,Business support,REGENERATION,Premises-Related Expenditure,"Repairs, alterations and maintenance of buildings",01/03/18,6209599,250,SOLETRADER,M J RITCHIE DECOR AND GUTTERING SERVICES,126505
Portsmouth City Council,PCC,Planning Services,Business support,REGENERATION,Premises-Related Expenditure,"Repairs, alterations and maintenance of buildings",01/03/18,6209599,60,SOLETRADER,M J RITCHIE DECOR AND GUTTERING SERVICES,126505
Portsmouth City Council,PCC,Planning Services,Business support,REGENERATION,Premises-Related Expenditure,"Repairs, alterations and maintenance of buildings",29/03/18,6215024,80,SOLETRADER,M J RITCHIE DECOR AND GUTTERING SERVICES,126505
Portsmouth City Council,PCC,Planning Services,Business support,REGENERATION,Premises-Related Expenditure,"Repairs, alterations and maintenance of buildings",29/03/18,6215024,560,SOLETRADER,M J RITCHIE DECOR AND GUTTERING SERVICES,126505
Portsmouth City Council,PCC,Children's and Education Services,Children Looked After,CHILDREN SERVICES AND EDUCATION,Supplies and Services,Services,05/03/18,6209904,96,VENDOR,HOME SCHOOL TUTORING,140194
Portsmouth City Council,PCC,Children's and Education Services,Children Looked After,CHILDREN SERVICES AND EDUCATION,Supplies and Services,Services,29/03/18,6214983,128,VENDOR,HOME SCHOOL TUTORING,140194
Portsmouth City Council,PCC,Housing Revenue Account,Repairs and Maintenance,PROPERTY & HOUSING,Premises-Related Expenditure,Energy costs,07/03/18,6210559,12.26,COMPANY,SSE PLC (SCOTTISH AND SOUTHERN ENERGY PLC),100303
Portsmouth City Council,PCC,Other,Suspense and Capital Schemes,Housing GF,Capital Charges,REFCUS,07/03/18,6210514,10626.84,COMPANY,L DEVINE AND CO LIMITED,111002
Portsmouth City Council,PCC,Housing Services,Private Sector Housing Renewal,PROPERTY & HOUSING,Income,Other grants reimbursements and contributions,07/03/18,6210514,-1083.2,COMPANY,L DEVINE AND CO LIMITED,111002
Portsmouth City Council,PCC,Other,Suspense and Capital Schemes,Housing GF,Capital Charges,REFCUS,14/03/18,6211797,11440,COMPANY,L DEVINE AND CO LIMITED,111002
Portsmouth City Council,PCC,Housing Services,Private Sector Housing Renewal,PROPERTY & HOUSING,Income,Other grants reimbursements and contributions,14/03/18,6211797,-1200,COMPANY,L DEVINE AND CO LIMITED,111002
Portsmouth City Council,PCC,Children's and Education Services,Children Looked After,CHILDREN SERVICES AND EDUCATION,Supplies and Services,Services,05/03/18,6209904,128,VENDOR,HOME SCHOOL TUTORING,140194
Portsmouth City Council,PCC,Children's and Education Services,Children Looked After,CHILDREN SERVICES AND EDUCATION,Supplies and Services,Services,29/03/18,6214983,64,VENDOR,HOME SCHOOL TUTORING,140194
Portsmouth City Council,PCC,Children's and Education Services,Children Looked After,CHILDREN SERVICES AND EDUCATION,Supplies and Services,Services,05/03/18,6209904,128,VENDOR,HOME SCHOOL TUTORING,140194
Portsmouth City Council,PCC,Children's and Education Services,Children Looked After,CHILDREN SERVICES AND EDUCATION,Supplies and Services,Services,05/03/18,6209904,448,VENDOR,HOME SCHOOL TUTORING,140194
Portsmouth City Council,PCC,Children's and Education Services,Children Looked After,CHILDREN SERVICES AND EDUCATION,Supplies and Services,Services,05/03/18,6209904,96,VENDOR,HOME SCHOOL TUTORING,140194
Portsmouth City Council,PCC,Children's and Education Services,Children Looked After,CHILDREN SERVICES AND EDUCATION,Supplies and Services,Services,05/03/18,6209904,96,VENDOR,HOME SCHOOL TUTORING,140194
Portsmouth City Council,PCC,Children's and Education Services,Children Looked After,CHILDREN SERVICES AND EDUCATION,Supplies and Services,Services,29/03/18,6214983,192,VENDOR,HOME SCHOOL TUTORING,140194
Portsmouth City Council,PCC,Children's and Education Services,Children Looked After,CHILDREN SERVICES AND EDUCATION,Supplies and Services,Services,05/03/18,6209904,96,VENDOR,HOME SCHOOL TUTORING,140194
Portsmouth City Council,PCC,Children's and Education Services,Children Looked After,CHILDREN SERVICES AND EDUCATION,Supplies and Services,Services,05/03/18,6209904,256,VENDOR,HOME SCHOOL TUTORING,140194
Portsmouth City Council,PCC,Children's and Education Services,Children Looked After,CHILDREN SERVICES AND EDUCATION,Supplies and Services,Services,29/03/18,6214983,384,VENDOR,HOME SCHOOL TUTORING,140194
Portsmouth City Council,PCC,Children's and Education Services,Children Looked After,CHILDREN SERVICES AND EDUCATION,Supplies and Services,Services,05/03/18,6209904,128,VENDOR,HOME SCHOOL TUTORING,140194
Portsmouth City Council,PCC,Children's and Education Services,Children Looked After,CHILDREN SERVICES AND EDUCATION,Supplies and Services,Services,29/03/18,6214983,96,VENDOR,HOME SCHOOL TUTORING,140194
Portsmouth City Council,PCC,Children's and Education Services,Children Looked After,CHILDREN SERVICES AND EDUCATION,Supplies and Services,Services,05/03/18,6209904,192,VENDOR,HOME SCHOOL TUTORING,140194
Portsmouth City Council,PCC,Children's and Education Services,Children Looked After,CHILDREN SERVICES AND EDUCATION,Supplies and Services,Services,29/03/18,6214983,96,VENDOR,HOME SCHOOL TUTORING,140194
Portsmouth City Council,PCC,Children's and Education Services,Children Looked After,CHILDREN SERVICES AND EDUCATION,Supplies and Services,Services,29/03/18,6214983,96,VENDOR,HOME SCHOOL TUTORING,140194
Portsmouth City Council,PCC,Children's and Education Services,Children Looked After,CHILDREN SERVICES AND EDUCATION,Supplies and Services,Services,29/03/18,6214983,64,VENDOR,HOME SCHOOL TUTORING,140194
Portsmouth City Council,PCC,Children's and Education Services,Children Looked After,CHILDREN SERVICES AND EDUCATION,Supplies and Services,Services,29/03/18,6214983,32,VENDOR,HOME SCHOOL TUTORING,140194
Portsmouth City Council,PCC,Cultural and Related Services,Culture and Heritage,CULTURE & CITY DEVELOPMENT,Third Party Payments,Private contractors,02/03/18,6209785,39322.5,VENDOR,REALIZE CONCEPT INTERIORS LIMITED,143802
Portsmouth City Council,PCC,Housing Revenue Account,Repairs and Maintenance,PROPERTY & HOUSING,Premises-Related Expenditure,"Repairs, alterations and maintenance of buildings",14/03/18,6211368,2300.06,COMPANY,ALLSOP AND FRANCIS LIMITED,118132
Portsmouth City Council,PCC,Adult Social Care,Social Care Activities,ADULT SERVICES,Third Party Payments,Other establishments,14/03/18,6211837,200,VENDOR,SAFEGUARDING GP,137636
Portsmouth City Council,PCC,Adult Social Care,Social Care Activities,ADULT SERVICES,Third Party Payments,Other establishments,14/03/18,6211837,200,VENDOR,SAFEGUARDING GP,137636
Portsmouth City Council,PCC,Adult Social Care,Social Care Activities,ADULT SERVICES,Third Party Payments,Other establishments,14/03/18,6211837,206.3,VENDOR,SAFEGUARDING GP,137636
Portsmouth City Council,PCC,Adult Social Care,Physical Support Adults (75 - 84),ADULT SERVICES,Third Party Payments,Other establishments,12/03/18,6211152,43.8,VENDOR,SEVACARE (UK) LTD,136163
Portsmouth City Council,PCC,Cultural and Related Services,Allocation of Management & Admin,CULTURE & CITY DEVELOPMENT,Third Party Payments,Private contractors,29/03/18,6215241,1000,VENDOR,WISE WORDS,126209
Portsmouth City Council,PCC,Other,Suspense and Capital Schemes,Housing GF,Capital Charges,REFCUS,07/03/18,6210100,3500,VENDOR,COASTLINE PLUMBING & TILING UK,143667
Portsmouth City Council,PCC,Other,Suspense and Capital Schemes,Culture Leisure & Sport,Capital Charges,Capital Expenditure (WIP),12/03/18,6211130,10141.1,VENDOR,PARKER TORRINGTON LTD,106526
Portsmouth City Council,PCC,Costs below Net Cost of Services,Trading,REGENERATION,Premises-Related Expenditure,"Repairs, alterations and maintenance of buildings",13/03/18,6211212,530,COMPANY,BAILEY BROS (SOUTHERN) LTD,114153
Portsmouth City Council,PCC,Costs below Net Cost of Services,Trading,REGENERATION,Premises-Related Expenditure,"Repairs, alterations and maintenance of buildings",13/03/18,6211212,265,COMPANY,BAILEY BROS (SOUTHERN) LTD,114153
Portsmouth City Council,PCC,Costs below Net Cost of Services,Trading,REGENERATION,Premises-Related Expenditure,"Repairs, alterations and maintenance of buildings",16/03/18,6212058,1060,COMPANY,BAILEY BROS (SOUTHERN) LTD,114153
Portsmouth City Council,PCC,Costs below Net Cost of Services,Trading,REGENERATION,Premises-Related Expenditure,"Repairs, alterations and maintenance of buildings",08/03/18,6210595,1855,COMPANY,BAILEY BROS (SOUTHERN) LTD,114153
Portsmouth City Council,PCC,Costs below Net Cost of Services,Trading,REGENERATION,Premises-Related Expenditure,"Repairs, alterations and maintenance of buildings",16/03/18,6212058,1325,COMPANY,BAILEY BROS (SOUTHERN) LTD,114153
Portsmouth City Council,PCC,Costs below Net Cost of Services,Trading,REGENERATION,Premises-Related Expenditure,"Repairs, alterations and maintenance of buildings",27/03/18,6214026,795,COMPANY,BAILEY BROS (SOUTHERN) LTD,114153
Portsmouth City Council,PCC,Cultural and Related Services,Recreation and Sport,CULTURE & CITY DEVELOPMENT,Third Party Payments,Private contractors,12/03/18,6211130,1650.25,VENDOR,PARKER TORRINGTON LTD,106526
Portsmouth City Council,PCC,Highways and Transport Services,"Transport Planning, Policy and Strategy",REGENERATION,Supplies and Services,Miscellaneous expenses,01/03/18,6209651,435,VENDOR,THE BLUE LAMP TRUST,136161
Portsmouth City Council,PCC,Housing Revenue Account,Special Services,PROPERTY & HOUSING,Premises-Related Expenditure,Energy costs,26/03/18,6213931,1945.91,VENDOR,GAZPROM MARKETING AND TRADING RETAIL LTD,131390
Portsmouth City Council,PCC,Housing Revenue Account,Special Services,PROPERTY & HOUSING,Premises-Related Expenditure,Energy costs,26/03/18,6213931,460.22,VENDOR,GAZPROM MARKETING AND TRADING RETAIL LTD,131390
Portsmouth City Council,PCC,Support Service / Transparency Costs Unallocated,Procurement,FINANCE & IS,Supplies and Services,Communications and computing,29/03/18,6214986,3433.49,VENDOR,IN-TEND LTD,121323
Portsmouth City Council,PCC,Cultural and Related Services,Open Spaces,CULTURE & CITY DEVELOPMENT,Premises-Related Expenditure,Energy costs,07/03/18,6210535,1641.72,VENDOR,PORTSMOUTH RUGBY FOOTBALL CLUB,101113
Portsmouth City Council,PCC,Cultural and Related Services,Open Spaces,CULTURE & CITY DEVELOPMENT,Premises-Related Expenditure,Energy costs,27/03/18,6214538,2492.21,VENDOR,PORTSMOUTH RUGBY FOOTBALL CLUB,101113
Portsmouth City Council,PCC,Cultural and Related Services,Allocation of Management & Admin,FINANCE & IS,Supplies and Services,Services,22/03/18,6213638,9298.09,VENDOR,VANGUARD CONSULTING LTD,122194
Portsmouth City Council,PCC,Highways and Transport Services,"Airports, Harbours and Toll Facilities",PORTSMOUTH INTERNATIONAL PORT,Supplies and Services,Miscellaneous expenses,01/03/18,6209499,61.75,VENDOR,ADARE INTERNATIONAL LTD,138060
Portsmouth City Council,PCC,Highways and Transport Services,"Airports, Harbours and Toll Facilities",PORTSMOUTH INTERNATIONAL PORT,Supplies and Services,Miscellaneous expenses,01/03/18,6209499,100,VENDOR,ADARE INTERNATIONAL LTD,138060
Portsmouth City Council,PCC,Highways and Transport Services,"Airports, Harbours and Toll Facilities",PORTSMOUTH INTERNATIONAL PORT,Supplies and Services,Miscellaneous expenses,01/03/18,6209499,9330,VENDOR,ADARE INTERNATIONAL LTD,138060
Portsmouth City Council,PCC,Highways and Transport Services,"Airports, Harbours and Toll Facilities",PORTSMOUTH INTERNATIONAL PORT,Supplies and Services,Miscellaneous expenses,01/03/18,6209499,520,VENDOR,ADARE INTERNATIONAL LTD,138060
Portsmouth City Council,PCC,Cultural and Related Services,Allocation of Management & Admin,FINANCE & IS,Supplies and Services,Services,22/03/18,6213638,9415.78,VENDOR,VANGUARD CONSULTING LTD,122194
Portsmouth City Council,PCC,Highways and Transport Services,"Airports, Harbours and Toll Facilities",PORTSMOUTH INTERNATIONAL PORT,Supplies and Services,Miscellaneous expenses,29/03/18,6214790,9330,VENDOR,ADARE INTERNATIONAL LTD,138060
Portsmouth City Council,PCC,Highways and Transport Services,"Airports, Harbours and Toll Facilities",PORTSMOUTH INTERNATIONAL PORT,Supplies and Services,Miscellaneous expenses,29/03/18,6214790,360,VENDOR,ADARE INTERNATIONAL LTD,138060
Portsmouth City Council,PCC,Highways and Transport Services,"Airports, Harbours and Toll Facilities",PORTSMOUTH INTERNATIONAL PORT,Supplies and Services,Miscellaneous expenses,29/03/18,6214790,100,VENDOR,ADARE INTERNATIONAL LTD,138060
Portsmouth City Council,PCC,Highways and Transport Services,"Airports, Harbours and Toll Facilities",PORTSMOUTH INTERNATIONAL PORT,Supplies and Services,Miscellaneous expenses,29/03/18,6214790,66.21,VENDOR,ADARE INTERNATIONAL LTD,138060
Portsmouth City Council,PCC,Highways and Transport Services,"Airports, Harbours and Toll Facilities",PORTSMOUTH INTERNATIONAL PORT,Supplies and Services,Miscellaneous expenses,29/03/18,6214790,130,VENDOR,ADARE INTERNATIONAL LTD,138060
Portsmouth City Council,PCC,Other,Suspense and Capital Schemes,Resources,Capital Charges,Capital Expenditure (WIP),07/03/18,6210087,9562.5,VENDOR,BEYOND SYSTEMS LTD,141621
Portsmouth City Council,PCC,Other,Suspense and Capital Schemes,Resources,Capital Charges,Capital Expenditure (WIP),06/03/18,6209962,6500,VENDOR,BEYOND SYSTEMS LTD,141621
Portsmouth City Council,PCC,Support Service / Transparency Costs Unallocated,Financial Services,FINANCE & IS,Supplies and Services,Services,15/03/18,6211905,13150,VENDOR,BEYOND SYSTEMS LTD,141621
Portsmouth City Council,PCC,Support Service / Transparency Costs Unallocated,Financial Services,FINANCE & IS,Supplies and Services,Services,15/03/18,6211905,2250,VENDOR,BEYOND SYSTEMS LTD,141621
Portsmouth City Council,PCC,Support Service / Transparency Costs Unallocated,Financial Services,FINANCE & IS,Supplies and Services,Communications and computing,20/03/18,6212372,2250,VENDOR,BEYOND SYSTEMS LTD,141621
Portsmouth City Council,PCC,Environmental and Regulatory Services,Agricultural and Fisheries Services,PORTSMOUTH INTERNATIONAL PORT,Premises-Related Expenditure,"Repairs, alterations and maintenance of buildings",01/03/18,6209518,532.5,VENDOR,CATHODIC PROTECTION ENGINEERING LTD,143523
Portsmouth City Council,PCC,Highways and Transport Services,"Airports, Harbours and Toll Facilities",PORTSMOUTH INTERNATIONAL PORT,Premises-Related Expenditure,"Repairs, alterations and maintenance of buildings",01/03/18,6209518,535,VENDOR,CATHODIC PROTECTION ENGINEERING LTD,143523
Portsmouth City Council,PCC,Other,Suspense and Capital Schemes,PORTSMOUTH INTERNATIONAL PORT,Supplies and Services,Miscellaneous expenses,01/03/18,6209518,532.5,VENDOR,CATHODIC PROTECTION ENGINEERING LTD,143523
Portsmouth City Council,PCC,Adult Social Care,Physical Support Adults (18 - 64),ADULT SERVICES,Third Party Payments,Other establishments,02/03/18,6209675,3018.12,VENDOR,ACCESS CARE LTD,106309
Portsmouth City Council,PCC,Support Service / Transparency Costs Unallocated,AMS,PROPERTY & HOUSING,Premises-Related Expenditure,"Repairs, alterations and maintenance of buildings",28/03/18,6214737,1870,COMPANY,SIEMENS PLC,106546
Portsmouth City Council,PCC,Other,Suspense and Capital Schemes,Traffic & Transportation,Capital Charges,Capital Expenditure (WIP),12/03/18,6211155,4999,COMPANY,SIEMENS PLC,106546
Portsmouth City Council,PCC,Support Service / Transparency Costs Unallocated,AMS,PROPERTY & HOUSING,Premises-Related Expenditure,"Repairs, alterations and maintenance of buildings",28/03/18,6214737,-150,COMPANY,SIEMENS PLC,106546
Portsmouth City Council,PCC,Housing Services,Homelessness,PROPERTY & HOUSING,Supplies and Services,Grants and subscriptions,20/03/18,6212480,540,VENDOR,TULLY & CO,102820
Portsmouth City Council,PCC,Cultural and Related Services,Recreation and Sport,CULTURE & CITY DEVELOPMENT,Premises-Related Expenditure,Fixtures and fittings,26/03/18,6213945,477.4,VENDOR,LUMISPHERE PRODUCTS LTD,100203
Portsmouth City Council,PCC,Cultural and Related Services,Recreation and Sport,CULTURE & CITY DEVELOPMENT,Supplies and Services,"Printing, stationery and general office expenses",26/03/18,6213945,15.5,VENDOR,LUMISPHERE PRODUCTS LTD,100203
Portsmouth City Council,PCC,Support Service / Transparency Costs Unallocated,Information Services,FINANCE & IS,Supplies and Services,Communications and computing,08/03/18,6210605,1377.96,VENDOR,CIVICA UK LTD,104001
Portsmouth City Council,PCC,Planning Services,Business support,REGENERATION,Supplies and Services,Communications and computing,15/03/18,6211922,1345.92,VENDOR,CIVICA UK LTD,104001
Portsmouth City Council,PCC,Children's and Education Services,Safeguarding Children and Young Peoples Services,CHILDREN SERVICES AND EDUCATION,Supplies and Services,Communications and computing,15/03/18,6211922,288,VENDOR,CIVICA UK LTD,104001
Portsmouth City Council,PCC,Cultural and Related Services,Allocation of Management & Admin,COMMUNITY & COMMUNICATION,Supplies and Services,Communications and computing,15/03/18,6211922,273.54,VENDOR,CIVICA UK LTD,104001
Portsmouth City Council,PCC,Cultural and Related Services,Allocation of Management & Admin,COMMUNITY & COMMUNICATION,Supplies and Services,Communications and computing,15/03/18,6211922,273.54,VENDOR,CIVICA UK LTD,104001
Portsmouth City Council,PCC,Cultural and Related Services,Allocation of Management & Admin,COMMUNITY & COMMUNICATION,Supplies and Services,Communications and computing,15/03/18,6211922,2691.84,VENDOR,CIVICA UK LTD,104001
Portsmouth City Council,PCC,Cultural and Related Services,Allocation of Management & Admin,COMMUNITY & COMMUNICATION,Supplies and Services,Communications and computing,15/03/18,6211922,288,VENDOR,CIVICA UK LTD,104001
Portsmouth City Council,PCC,Support Service / Transparency Costs Unallocated,Information Services,FINANCE & IS,Supplies and Services,Communications and computing,15/03/18,6211922,125.04,VENDOR,CIVICA UK LTD,104001
Portsmouth City Council,PCC,Other,Suspense and Capital Schemes,PRED (Excl. Port & Solent LEP),Capital Charges,Capital Expenditure (WIP),15/03/18,6211922,288,VENDOR,CIVICA UK LTD,104001
Portsmouth City Council,PCC,Other,Suspense and Capital Schemes,PRED (Excl. Port & Solent LEP),Capital Charges,Capital Expenditure (WIP),15/03/18,6211922,288,VENDOR,CIVICA UK LTD,104001
Portsmouth City Council,PCC,Other,Suspense and Capital Schemes,PRED (Excl. Port & Solent LEP),Capital Charges,Capital Expenditure (WIP),15/03/18,6211922,288,VENDOR,CIVICA UK LTD,104001
Portsmouth City Council,PCC,Children's and Education Services,Other Education and Community Budget,CHILDREN SERVICES AND EDUCATION,Supplies and Services,Communications and computing,22/03/18,6213539,264,VENDOR,CIVICA UK LTD,104001
Portsmouth City Council,PCC,Children's and Education Services,Other Education and Community Budget,CHILDREN SERVICES AND EDUCATION,Supplies and Services,Communications and computing,22/03/18,6213539,395.78,VENDOR,CIVICA UK LTD,104001
Portsmouth City Council,PCC,Children's and Education Services,Other Education and Community Budget,CHILDREN SERVICES AND EDUCATION,Supplies and Services,Communications and computing,22/03/18,6213539,264,VENDOR,CIVICA UK LTD,104001
Portsmouth City Council,PCC,Children's and Education Services,Management and Support Services,CHILDREN SERVICES AND EDUCATION,Supplies and Services,Communications and computing,22/03/18,6213539,114.62,VENDOR,CIVICA UK LTD,104001
Portsmouth City Council,PCC,Cultural and Related Services,Recreation and Sport,CULTURE & CITY DEVELOPMENT,Supplies and Services,Communications and computing,22/03/18,6213539,114.62,VENDOR,CIVICA UK LTD,104001
Portsmouth City Council,PCC,Support Service / Transparency Costs Unallocated,AMS,PROPERTY & HOUSING,Supplies and Services,Communications and computing,22/03/18,6213539,395.78,VENDOR,CIVICA UK LTD,104001
Portsmouth City Council,PCC,Other,Suspense and Capital Schemes,Resources,Capital Charges,Capital Expenditure (WIP),22/03/18,6213539,395.78,VENDOR,CIVICA UK LTD,104001
Portsmouth City Council,PCC,Other,Suspense and Capital Schemes,Resources,Capital Charges,Capital Expenditure (WIP),22/03/18,6213539,175.19,VENDOR,CIVICA UK LTD,104001
Portsmouth City Council,PCC,Other,Suspense and Capital Schemes,Housing GF,Capital Charges,REFCUS,28/03/18,6214659,784,COMPANY,DOLPHIN MOBILITY LTD,135682
Portsmouth City Council,PCC,Housing Services,Private Sector Housing Renewal,PROPERTY & HOUSING,Income,Other grants reimbursements and contributions,28/03/18,6214659,-70,COMPANY,DOLPHIN MOBILITY LTD,135682
Portsmouth City Council,PCC,Other,Suspense and Capital Schemes,Environment,Capital Charges,Capital Expenditure (WIP),07/03/18,6210505,103651.41,VENDOR,HASKONINGDHV UK LIMITED,109400
Portsmouth City Council,PCC,Costs below Net Cost of Services,Trading,REGENERATION,Supplies and Services,Services,14/03/18,6211788,1500,VENDOR,GVA GRIMLEY LTD,113804
Portsmouth City Council,PCC,Cultural and Related Services,Open Spaces,CULTURE & CITY DEVELOPMENT,Premises-Related Expenditure,Grounds maintenance costs,13/03/18,6211314,700,COMPANY,JUST MARKINGS LTD,138563
Portsmouth City Council,PCC,Costs below Net Cost of Services,Trading,REGENERATION,Supplies and Services,Services,02/03/18,6209752,5500,VENDOR,GVA GRIMLEY LTD,113804
Portsmouth City Council,PCC,Adult Social Care,Social Care Activities,ADULT SERVICES,Third Party Payments,Other establishments,02/03/18,6209675,9958.2,VENDOR,ACCESS CARE LTD,106309
Portsmouth City Council,PCC,Adult Social Care,Social Care Activities,ADULT SERVICES,Third Party Payments,Other establishments,27/03/18,6214584,4590,VENDOR,THE OUT OF TOWN CENTRE LIMITED,133198
Portsmouth City Council,PCC,Adult Social Care,Social Care Activities,ADULT SERVICES,Third Party Payments,Other establishments,14/03/18,6211868,2520,VENDOR,THE OUT OF TOWN CENTRE LIMITED,133198
Portsmouth City Council,PCC,Adult Social Care,Learning Disability Support  Adults (18 - 64),ADULT SERVICES,Third Party Payments,Other establishments,29/03/18,6215189,750,VENDOR,THE OUT OF TOWN CENTRE LIMITED,133198
Portsmouth City Council,PCC,Adult Social Care,Learning Disability Support  Adults (18 - 64),ADULT SERVICES,Third Party Payments,Other establishments,29/03/18,6215189,840,VENDOR,THE OUT OF TOWN CENTRE LIMITED,133198
Portsmouth City Council,PCC,Adult Social Care,Learning Disability Support  Adults (18 - 64),ADULT SERVICES,Third Party Payments,Other establishments,29/03/18,6215189,240,VENDOR,THE OUT OF TOWN CENTRE LIMITED,133198
Portsmouth City Council,PCC,Adult Social Care,Learning Disability Support  Adults (18 - 64),ADULT SERVICES,Third Party Payments,Other establishments,29/03/18,6215189,216,VENDOR,THE OUT OF TOWN CENTRE LIMITED,133198
Portsmouth City Council,PCC,Other,Suspense and Capital Schemes,Housing GF,Capital Charges,REFCUS,28/03/18,6214661,3539.2,VENDOR,EASY CARE SYSTEMS LIMITED,108899
Portsmouth City Council,PCC,Housing Services,Private Sector Housing Renewal,PROPERTY & HOUSING,Income,Other grants reimbursements and contributions,28/03/18,6214661,-316,VENDOR,EASY CARE SYSTEMS LIMITED,108899
Portsmouth City Council,PCC,Adult Social Care,Social Care Activities,ADULT SERVICES,Third Party Payments,Other establishments,29/03/18,6215189,210,VENDOR,THE OUT OF TOWN CENTRE LIMITED,133198
Portsmouth City Council,PCC,Children's and Education Services,Sure Start and Early Years,CHILDREN SERVICES AND EDUCATION,Third Party Payments,Private contractors,13/03/18,6211302,750.96,VENDOR,FREEDOM IOW LTD,110290
Portsmouth City Council,PCC,Children's and Education Services,Sure Start and Early Years,CHILDREN SERVICES AND EDUCATION,Third Party Payments,Private contractors,29/03/18,6215256,726.6,VENDOR,FREEDOM IOW LTD,110290
Portsmouth City Council,PCC,Housing Revenue Account,Repairs and Maintenance,PROPERTY & HOUSING,Premises-Related Expenditure,"Repairs, alterations and maintenance of buildings",01/03/18,6209529,1146488.46,COMPANY,COMSERV (UK) LIMITED,120542
Portsmouth City Council,PCC,Housing Revenue Account,Repairs and Maintenance,PROPERTY & HOUSING,Premises-Related Expenditure,"Repairs, alterations and maintenance of buildings",15/03/18,6211976,262435.8,COMPANY,LIBERTY GAS GROUP LIMITED,134977
Portsmouth City Council,PCC,Other,Suspense and Capital Schemes,Housing RA,Capital Charges,Capital Expenditure (WIP),15/03/18,6211976,161331.3,COMPANY,LIBERTY GAS GROUP LIMITED,134977
Portsmouth City Council,PCC,Housing Revenue Account,Repairs and Maintenance,PROPERTY & HOUSING,Premises-Related Expenditure,"Repairs, alterations and maintenance of buildings",29/03/18,6214797,3890.55,COMPANY,ALLSOP AND FRANCIS LIMITED,118132
Portsmouth City Council,PCC,Housing Revenue Account,Repairs and Maintenance,PROPERTY & HOUSING,Premises-Related Expenditure,"Repairs, alterations and maintenance of buildings",29/03/18,6214797,3332.18,COMPANY,ALLSOP AND FRANCIS LIMITED,118132
Portsmouth City Council,PCC,Adult Social Care,Social Care Activities,ADULT SERVICES,Third Party Payments,Other establishments,27/03/18,6214548,202.03,VENDOR,SAFEGUARDING GP,137636
Portsmouth City Council,PCC,Adult Social Care,Social Care Activities,ADULT SERVICES,Third Party Payments,Other establishments,27/03/18,6214548,186.31,VENDOR,SAFEGUARDING GP,137636
Portsmouth City Council,PCC,Adult Social Care,Social Care Activities,ADULT SERVICES,Third Party Payments,Other establishments,27/03/18,6214548,186.31,VENDOR,SAFEGUARDING GP,137636
Portsmouth City Council,PCC,Adult Social Care,Social Care Activities,ADULT SERVICES,Third Party Payments,Other establishments,27/03/18,6214548,186.31,VENDOR,SAFEGUARDING GP,137636
Portsmouth City Council,PCC,Children's and Education Services,Special Schools,Children's Services - DSG & Schools,Third Party Payments,Other establishments,29/03/18,6214980,3553.61,VENDOR,HILLCREST CHILDRENS SERVICES LIMITED,117913
Portsmouth City Council,PCC,Children's and Education Services,Special Schools,Children's Services - DSG & Schools,Third Party Payments,Other establishments,29/03/18,6214980,1049.89,VENDOR,HILLCREST CHILDRENS SERVICES LIMITED,117913
Portsmouth City Council,PCC,Adult Social Care,Assistive Equipment & Technology,ADULT SERVICES,Supplies and Services,"Equipment, furniture and materials",12/03/18,6211162,5300,VENDOR,SPRUE SAFETY PRODUCTS LTD,130449
Portsmouth City Council,PCC,Adult Social Care,Physical Support Older People (85+),ADULT SERVICES,Third Party Payments,Other establishments,02/03/18,6209764,283.05,VENDOR,JM HOMECARE LTD T/A RIGHT AT HOME,141434
Portsmouth City Council,PCC,Other,Suspense and Capital Schemes,PROPERTY & HOUSING,Premises-Related Expenditure,"Repairs, alterations and maintenance of buildings",09/03/18,6210888,405.36,VENDOR,SIX DEGREES TECHNOLOGY GROUP LTD,137034
Portsmouth City Council,PCC,Housing Revenue Account,Repairs and Maintenance,PROPERTY & HOUSING,Premises-Related Expenditure,"Repairs, alterations and maintenance of buildings",09/03/18,6210888,1584.65,VENDOR,SIX DEGREES TECHNOLOGY GROUP LTD,137034
Portsmouth City Council,PCC,Other,Suspense and Capital Schemes,PROPERTY & HOUSING,Premises-Related Expenditure,"Repairs, alterations and maintenance of buildings",19/03/18,6212328,-1728.06,VENDOR,SIX DEGREES TECHNOLOGY GROUP LTD,137034
Portsmouth City Council,PCC,Other,Suspense and Capital Schemes,PROPERTY & HOUSING,Premises-Related Expenditure,"Repairs, alterations and maintenance of buildings",19/03/18,6212328,2121.05,VENDOR,SIX DEGREES TECHNOLOGY GROUP LTD,137034
Portsmouth City Council,PCC,Housing Revenue Account,Repairs and Maintenance,PROPERTY & HOUSING,Premises-Related Expenditure,"Repairs, alterations and maintenance of buildings",19/03/18,6212328,1709.4,VENDOR,SIX DEGREES TECHNOLOGY GROUP LTD,137034
Portsmouth City Council,PCC,Cultural and Related Services,Open Spaces,CULTURE & CITY DEVELOPMENT,Premises-Related Expenditure,Grounds maintenance costs,21/03/18,6213420,319,VENDOR,KEEP BRITAIN TIDY,106506
Portsmouth City Council,PCC,Cultural and Related Services,Open Spaces,CULTURE & CITY DEVELOPMENT,Third Party Payments,Private contractors,21/03/18,6213420,319,VENDOR,KEEP BRITAIN TIDY,106506
Portsmouth City Council,PCC,Housing Revenue Account,Repairs and Maintenance,PROPERTY & HOUSING,Premises-Related Expenditure,"Repairs, alterations and maintenance of buildings",19/03/18,6212302,13890,COMPANY,M&P DRY RISERS LIMITED,137177
Portsmouth City Council,PCC,Support Service / Transparency Costs Unallocated,AMS,PROPERTY & HOUSING,Premises-Related Expenditure,"Repairs, alterations and maintenance of buildings",07/03/18,6210533,350,VENDOR,PORTSMOUTH COMMUNICATIONS LTD,106039
Portsmouth City Council,PCC,Support Service / Transparency Costs Unallocated,AMS,PROPERTY & HOUSING,Premises-Related Expenditure,"Repairs, alterations and maintenance of buildings",07/03/18,6210533,385.75,VENDOR,PORTSMOUTH COMMUNICATIONS LTD,106039
Portsmouth City Council,PCC,Support Service / Transparency Costs Unallocated,AMS,PROPERTY & HOUSING,Premises-Related Expenditure,"Repairs, alterations and maintenance of buildings",07/03/18,6210533,428.57,VENDOR,PORTSMOUTH COMMUNICATIONS LTD,106039
Portsmouth City Council,PCC,Support Service / Transparency Costs Unallocated,AMS,PROPERTY & HOUSING,Premises-Related Expenditure,"Repairs, alterations and maintenance of buildings",07/03/18,6210533,371.45,VENDOR,PORTSMOUTH COMMUNICATIONS LTD,106039
Portsmouth City Council,PCC,Support Service / Transparency Costs Unallocated,AMS,PROPERTY & HOUSING,Premises-Related Expenditure,"Repairs, alterations and maintenance of buildings",07/03/18,6210533,385.75,VENDOR,PORTSMOUTH COMMUNICATIONS LTD,106039
Portsmouth City Council,PCC,Support Service / Transparency Costs Unallocated,Personnel,"HR, LEGAL & PERFORMANCE",Employees,Direct employee expenses,07/03/18,6210533,125,VENDOR,PORTSMOUTH COMMUNICATIONS LTD,106039
Portsmouth City Council,PCC,Support Service / Transparency Costs Unallocated,AMS,PROPERTY & HOUSING,Premises-Related Expenditure,"Repairs, alterations and maintenance of buildings",22/03/18,6213599,579.09,VENDOR,PORTSMOUTH COMMUNICATIONS LTD,106039
Portsmouth City Council,PCC,Support Service / Transparency Costs Unallocated,Information Services,FINANCE & IS,Supplies and Services,Communications and computing,22/03/18,6213599,465.75,VENDOR,PORTSMOUTH COMMUNICATIONS LTD,106039
Portsmouth City Council,PCC,Support Service / Transparency Costs Unallocated,AMS,PROPERTY & HOUSING,Premises-Related Expenditure,"Repairs, alterations and maintenance of buildings",22/03/18,6213600,537.14,VENDOR,PORTSMOUTH COMMUNICATIONS LTD,106039
Portsmouth City Council,PCC,Support Service / Transparency Costs Unallocated,AMS,PROPERTY & HOUSING,Premises-Related Expenditure,"Repairs, alterations and maintenance of buildings",22/03/18,6213600,-537.14,VENDOR,PORTSMOUTH COMMUNICATIONS LTD,106039
Portsmouth City Council,PCC,Support Service / Transparency Costs Unallocated,AMS,PROPERTY & HOUSING,Premises-Related Expenditure,"Repairs, alterations and maintenance of buildings",22/03/18,6213600,537.14,VENDOR,PORTSMOUTH COMMUNICATIONS LTD,106039
Portsmouth City Council,PCC,Support Service / Transparency Costs Unallocated,Information Services,FINANCE & IS,Supplies and Services,Communications and computing,23/03/18,6213797,275,VENDOR,PORTSMOUTH COMMUNICATIONS LTD,106039
Portsmouth City Council,PCC,Support Service / Transparency Costs Unallocated,Information Services,FINANCE & IS,Supplies and Services,Communications and computing,23/03/18,6213797,135.75,VENDOR,PORTSMOUTH COMMUNICATIONS LTD,106039
Portsmouth City Council,PCC,Support Service / Transparency Costs Unallocated,Information Services,FINANCE & IS,Supplies and Services,Communications and computing,23/03/18,6213797,964.3,VENDOR,PORTSMOUTH COMMUNICATIONS LTD,106039
Portsmouth City Council,PCC,Adult Social Care,Commissioning & service delivery,ADULT SERVICES,Supplies and Services,"Equipment, furniture and materials",19/03/18,6212318,1172.84,VENDOR,PORTSMOUTH COMMUNICATIONS LTD,106039
Portsmouth City Council,PCC,Other,Suspense and Capital Schemes,Community Safety,Capital Charges,Capital Expenditure (WIP),29/03/18,6215106,75950,VENDOR,RAPID VISION SYSTEMS LTD,137547
Portsmouth City Council,PCC,Housing Revenue Account,Special Services,PROPERTY & HOUSING,Premises-Related Expenditure,"Repairs, alterations and maintenance of buildings",29/03/18,6215101,108,VENDOR,PROGRESSION DESIGN & PRINT CONSULTANTS LTD,138600
Portsmouth City Council,PCC,Housing Revenue Account,Special Services,PROPERTY & HOUSING,Premises-Related Expenditure,"Repairs, alterations and maintenance of buildings",29/03/18,6215101,640,VENDOR,PROGRESSION DESIGN & PRINT CONSULTANTS LTD,138600
Portsmouth City Council,PCC,Housing Revenue Account,Special Services,PROPERTY & HOUSING,Premises-Related Expenditure,"Repairs, alterations and maintenance of buildings",29/03/18,6215101,320,VENDOR,PROGRESSION DESIGN & PRINT CONSULTANTS LTD,138600
Portsmouth City Council,PCC,Housing Revenue Account,Special Services,PROPERTY & HOUSING,Premises-Related Expenditure,"Repairs, alterations and maintenance of buildings",29/03/18,6215101,192,VENDOR,PROGRESSION DESIGN & PRINT CONSULTANTS LTD,138600
Portsmouth City Council,PCC,Adult Social Care,Support with Memory and Cognition Older People (65 - 74),ADULT SERVICES,Supplies and Services,"Equipment, furniture and materials",02/03/18,6209807,262.7,VENDOR,SRCL LTD,130344
Portsmouth City Council,PCC,Cultural and Related Services,Culture and Heritage,CULTURE & CITY DEVELOPMENT,Supplies and Services,"Equipment, furniture and materials",29/03/18,6215158,-20.37,VENDOR,STAR EDITIONS LTD,138840
Portsmouth City Council,PCC,Adult Social Care,Social Care Activities,ADULT SERVICES,Third Party Payments,Other establishments,26/03/18,6213882,9958.2,VENDOR,ACCESS CARE LTD,106309
Portsmouth City Council,PCC,Adult Social Care,Support with Memory and Cognition Older People (65 - 74),ADULT SERVICES,Supplies and Services,"Equipment, furniture and materials",02/03/18,6209807,262.7,VENDOR,SRCL LTD,130344
Portsmouth City Council,PCC,Housing Revenue Account,"Rents, Rates, Taxes and Other Charges",PROPERTY & HOUSING,Premises-Related Expenditure,Water Services,02/03/18,6209806,225.09,VENDOR,SOUTHERN WATER,100254
Portsmouth City Council,PCC,Adult Social Care,Physical Support Adults (75 - 84),ADULT SERVICES,Third Party Payments,Other establishments,13/03/18,6211202,330.12,VENDOR,APEX PROPERTY VENTURES LTD,108437
Portsmouth City Council,PCC,Adult Social Care,Social Care Activities,ADULT SERVICES,Third Party Payments,Other establishments,13/03/18,6211202,73,VENDOR,APEX PROPERTY VENTURES LTD,108437
Portsmouth City Council,PCC,Adult Social Care,Physical Support Older People (85+),ADULT SERVICES,Third Party Payments,Other establishments,13/03/18,6211202,220.08,VENDOR,APEX PROPERTY VENTURES LTD,108437
Portsmouth City Council,PCC,Adult Social Care,Social Care Activities,ADULT SERVICES,Third Party Payments,Other establishments,13/03/18,6211202,9152.2,VENDOR,APEX PROPERTY VENTURES LTD,108437
Portsmouth City Council,PCC,Adult Social Care,Physical Support Older People (85+),ADULT SERVICES,Third Party Payments,Other establishments,16/03/18,6212053,365,VENDOR,APEX PROPERTY VENTURES LTD,108437
Portsmouth City Council,PCC,Adult Social Care,Social Care Activities,ADULT SERVICES,Third Party Payments,Other establishments,13/03/18,6211202,1428.6,VENDOR,APEX PROPERTY VENTURES LTD,108437
Portsmouth City Council,PCC,Adult Social Care,Social Care Activities,ADULT SERVICES,Third Party Payments,Other establishments,13/03/18,6211202,284.7,VENDOR,APEX PROPERTY VENTURES LTD,108437
Portsmouth City Council,PCC,Adult Social Care,Physical Support Adults (75 - 84),ADULT SERVICES,Third Party Payments,Other establishments,08/03/18,6210588,518.76,VENDOR,APEX PROPERTY VENTURES LTD,108437
Portsmouth City Council,PCC,Adult Social Care,Physical Support Older People (85+),ADULT SERVICES,Third Party Payments,Other establishments,08/03/18,6210588,110.04,VENDOR,APEX PROPERTY VENTURES LTD,108437
Portsmouth City Council,PCC,Adult Social Care,Physical Support Adults (75 - 84),ADULT SERVICES,Third Party Payments,Other establishments,08/03/18,6210588,62.88,VENDOR,APEX PROPERTY VENTURES LTD,108437
Portsmouth City Council,PCC,Adult Social Care,Physical Support Older People (85+),ADULT SERVICES,Third Party Payments,Other establishments,08/03/18,6210588,1454.1,VENDOR,APEX PROPERTY VENTURES LTD,108437
Portsmouth City Council,PCC,Adult Social Care,Social Care Activities,ADULT SERVICES,Third Party Payments,Other establishments,08/03/18,6210588,2137.92,VENDOR,APEX PROPERTY VENTURES LTD,108437
Portsmouth City Council,PCC,Adult Social Care,Physical Support Older People (85+),ADULT SERVICES,Third Party Payments,Other establishments,08/03/18,6210588,47.16,VENDOR,APEX PROPERTY VENTURES LTD,108437
Portsmouth City Council,PCC,Adult Social Care,Physical Support Adults (18 - 64),ADULT SERVICES,Third Party Payments,Other establishments,08/03/18,6210588,188.64,VENDOR,APEX PROPERTY VENTURES LTD,108437
Portsmouth City Council,PCC,Adult Social Care,Physical Support Adults (18 - 64),ADULT SERVICES,Third Party Payments,Other establishments,08/03/18,6210588,106.11,VENDOR,APEX PROPERTY VENTURES LTD,108437
Portsmouth City Council,PCC,Adult Social Care,Physical Support Older People (85+),ADULT SERVICES,Third Party Payments,Other establishments,08/03/18,6210588,488.52,VENDOR,APEX PROPERTY VENTURES LTD,108437
Portsmouth City Council,PCC,Adult Social Care,Physical Support Older People (85+),ADULT SERVICES,Third Party Payments,Other establishments,08/03/18,6210588,247.59,VENDOR,APEX PROPERTY VENTURES LTD,108437
Portsmouth City Council,PCC,Adult Social Care,Physical Support Older People (85+),ADULT SERVICES,Third Party Payments,Other establishments,08/03/18,6210588,660.24,VENDOR,APEX PROPERTY VENTURES LTD,108437
Portsmouth City Council,PCC,Adult Social Care,Physical Support Adults (75 - 84),ADULT SERVICES,Third Party Payments,Other establishments,08/03/18,6210588,345.84,VENDOR,APEX PROPERTY VENTURES LTD,108437
Portsmouth City Council,PCC,Adult Social Care,Physical Support Older People (85+),ADULT SERVICES,Third Party Payments,Other establishments,08/03/18,6210588,322.26,VENDOR,APEX PROPERTY VENTURES LTD,108437
Portsmouth City Council,PCC,Adult Social Care,Physical Support Adults (75 - 84),ADULT SERVICES,Third Party Payments,Other establishments,08/03/18,6210588,448.02,VENDOR,APEX PROPERTY VENTURES LTD,108437
Portsmouth City Council,PCC,Adult Social Care,Physical Support Older People (85+),ADULT SERVICES,Third Party Payments,Other establishments,08/03/18,6210588,2001.52,VENDOR,APEX PROPERTY VENTURES LTD,108437
Portsmouth City Council,PCC,Adult Social Care,Physical Support Adults (18 - 64),ADULT SERVICES,Third Party Payments,Other establishments,08/03/18,6210588,851.28,VENDOR,APEX PROPERTY VENTURES LTD,108437
Portsmouth City Council,PCC,Adult Social Care,Physical Support Adults (75 - 84),ADULT SERVICES,Third Party Payments,Other establishments,08/03/18,6210588,330.12,VENDOR,APEX PROPERTY VENTURES LTD,108437
Portsmouth City Council,PCC,Adult Social Care,Physical Support Older People (85+),ADULT SERVICES,Third Party Payments,Other establishments,08/03/18,6210588,1760.64,VENDOR,APEX PROPERTY VENTURES LTD,108437
Portsmouth City Council,PCC,Adult Social Care,Physical Support Adults (75 - 84),ADULT SERVICES,Third Party Payments,Other establishments,08/03/18,6210588,31.44,VENDOR,APEX PROPERTY VENTURES LTD,108437
Portsmouth City Council,PCC,Adult Social Care,Physical Support Adults (75 - 84),ADULT SERVICES,Third Party Payments,Other establishments,08/03/18,6210588,440.16,VENDOR,APEX PROPERTY VENTURES LTD,108437
Portsmouth City Council,PCC,Adult Social Care,Social Support - Support for Carer,ADULT SERVICES,Third Party Payments,Other establishments,08/03/18,6210588,162.24,VENDOR,APEX PROPERTY VENTURES LTD,108437
Portsmouth City Council,PCC,Adult Social Care,Physical Support Adults (75 - 84),ADULT SERVICES,Third Party Payments,Other establishments,08/03/18,6210588,550.2,VENDOR,APEX PROPERTY VENTURES LTD,108437
Portsmouth City Council,PCC,Adult Social Care,Physical Support Older People (85+),ADULT SERVICES,Third Party Payments,Other establishments,08/03/18,6210588,440.16,VENDOR,APEX PROPERTY VENTURES LTD,108437
Portsmouth City Council,PCC,Adult Social Care,Physical Support Older People (85+),ADULT SERVICES,Third Party Payments,Other establishments,08/03/18,6210588,314.4,VENDOR,APEX PROPERTY VENTURES LTD,108437
Portsmouth City Council,PCC,Adult Social Care,Physical Support Older People (85+),ADULT SERVICES,Third Party Payments,Other establishments,08/03/18,6210588,880.32,VENDOR,APEX PROPERTY VENTURES LTD,108437
Portsmouth City Council,PCC,Adult Social Care,Physical Support Older People (85+),ADULT SERVICES,Third Party Payments,Other establishments,08/03/18,6210588,70.74,VENDOR,APEX PROPERTY VENTURES LTD,108437
Portsmouth City Council,PCC,Adult Social Care,Physical Support Older People (85+),ADULT SERVICES,Third Party Payments,Other establishments,08/03/18,6210588,220.08,VENDOR,APEX PROPERTY VENTURES LTD,108437
Portsmouth City Council,PCC,Adult Social Care,Physical Support Older People (85+),ADULT SERVICES,Third Party Payments,Other establishments,08/03/18,6210588,550.2,VENDOR,APEX PROPERTY VENTURES LTD,108437
Portsmouth City Council,PCC,Adult Social Care,Physical Support Older People (85+),ADULT SERVICES,Third Party Payments,Other establishments,19/03/18,6212234,440.16,VENDOR,APEX PROPERTY VENTURES LTD,108437
Portsmouth City Council,PCC,Adult Social Care,Physical Support Older People (65-74),ADULT SERVICES,Third Party Payments,Other establishments,19/03/18,6212234,1540.56,VENDOR,APEX PROPERTY VENTURES LTD,108437
Portsmouth City Council,PCC,Adult Social Care,Support with Memory and Cognition Older People (75 - 84),ADULT SERVICES,Third Party Payments,Other establishments,19/03/18,6212234,1760.64,VENDOR,APEX PROPERTY VENTURES LTD,108437
Portsmouth City Council,PCC,Adult Social Care,Physical Support Adults (75 - 84),ADULT SERVICES,Third Party Payments,Other establishments,19/03/18,6212234,212.22,VENDOR,APEX PROPERTY VENTURES LTD,108437
Portsmouth City Council,PCC,Adult Social Care,Physical Support Adults (75 - 84),ADULT SERVICES,Third Party Payments,Other establishments,19/03/18,6212234,660.24,VENDOR,APEX PROPERTY VENTURES LTD,108437
Portsmouth City Council,PCC,Adult Social Care,Physical Support Older People (85+),ADULT SERVICES,Third Party Payments,Other establishments,19/03/18,6212234,1980.72,VENDOR,APEX PROPERTY VENTURES LTD,108437
Portsmouth City Council,PCC,Adult Social Care,Physical Support Older People (85+),ADULT SERVICES,Third Party Payments,Other establishments,19/03/18,6212234,220.08,VENDOR,APEX PROPERTY VENTURES LTD,108437
Portsmouth City Council,PCC,Adult Social Care,Support with Memory and Cognition Older People (75 - 84),ADULT SERVICES,Third Party Payments,Other establishments,19/03/18,6212234,62.88,VENDOR,APEX PROPERTY VENTURES LTD,108437
Portsmouth City Council,PCC,Adult Social Care,Physical Support Adults (75 - 84),ADULT SERVICES,Third Party Payments,Other establishments,19/03/18,6212234,282.96,VENDOR,APEX PROPERTY VENTURES LTD,108437
Portsmouth City Council,PCC,Adult Social Care,Physical Support Adults (75 - 84),ADULT SERVICES,Third Party Payments,Other establishments,19/03/18,6212234,880.32,VENDOR,APEX PROPERTY VENTURES LTD,108437
Portsmouth City Council,PCC,Adult Social Care,Physical Support Older People (85+),ADULT SERVICES,Third Party Payments,Other establishments,19/03/18,6212234,125.76,VENDOR,APEX PROPERTY VENTURES LTD,108437
Portsmouth City Council,PCC,Adult Social Care,Physical Support Adults (18 - 64),ADULT SERVICES,Third Party Payments,Other establishments,19/03/18,6212234,326.19,VENDOR,APEX PROPERTY VENTURES LTD,108437
Portsmouth City Council,PCC,Adult Social Care,Physical Support Older People (85+),ADULT SERVICES,Third Party Payments,Other establishments,19/03/18,6212234,518.76,VENDOR,APEX PROPERTY VENTURES LTD,108437
Portsmouth City Council,PCC,Adult Social Care,Support with Memory and Cognition Older People (75 - 84),ADULT SERVICES,Third Party Payments,Other establishments,19/03/18,6212234,880.32,VENDOR,APEX PROPERTY VENTURES LTD,108437
Portsmouth City Council,PCC,Adult Social Care,Physical Support Adults (18 - 64),ADULT SERVICES,Third Party Payments,Other establishments,19/03/18,6212234,660.24,VENDOR,APEX PROPERTY VENTURES LTD,108437
Portsmouth City Council,PCC,Adult Social Care,Physical Support Older People (85+),ADULT SERVICES,Third Party Payments,Other establishments,19/03/18,6212234,440.16,VENDOR,APEX PROPERTY VENTURES LTD,108437
Portsmouth City Council,PCC,Adult Social Care,Physical Support Older People (85+),ADULT SERVICES,Third Party Payments,Other establishments,08/03/18,6210588,385.14,VENDOR,APEX PROPERTY VENTURES LTD,108437
Portsmouth City Council,PCC,Adult Social Care,Physical Support Older People (85+),ADULT SERVICES,Third Party Payments,Other establishments,08/03/18,6210588,432.3,VENDOR,APEX PROPERTY VENTURES LTD,108437
Portsmouth City Council,PCC,Adult Social Care,Physical Support Adults (75 - 84),ADULT SERVICES,Third Party Payments,Other establishments,08/03/18,6210588,110.04,VENDOR,APEX PROPERTY VENTURES LTD,108437
Portsmouth City Council,PCC,Adult Social Care,Physical Support Older People (85+),ADULT SERVICES,Third Party Payments,Other establishments,08/03/18,6210588,94.32,VENDOR,APEX PROPERTY VENTURES LTD,108437
Portsmouth City Council,PCC,Adult Social Care,Physical Support Older People (85+),ADULT SERVICES,Third Party Payments,Other establishments,08/03/18,6210588,215.6,VENDOR,APEX PROPERTY VENTURES LTD,108437
Portsmouth City Council,PCC,Adult Social Care,Physical Support Older People (85+),ADULT SERVICES,Third Party Payments,Other establishments,08/03/18,6210588,1383.36,VENDOR,APEX PROPERTY VENTURES LTD,108437
Portsmouth City Council,PCC,Adult Social Care,Physical Support Older People (85+),ADULT SERVICES,Third Party Payments,Other establishments,08/03/18,6210588,776.1,VENDOR,APEX PROPERTY VENTURES LTD,108437
Portsmouth City Council,PCC,Adult Social Care,Physical Support Older People (85+),ADULT SERVICES,Third Party Payments,Other establishments,08/03/18,6210588,94.32,VENDOR,APEX PROPERTY VENTURES LTD,108437
Portsmouth City Council,PCC,Adult Social Care,Physical Support Older People (85+),ADULT SERVICES,Third Party Payments,Other establishments,08/03/18,6210588,220.08,VENDOR,APEX PROPERTY VENTURES LTD,108437
Portsmouth City Council,PCC,Adult Social Care,Physical Support Adults (75 - 84),ADULT SERVICES,Third Party Payments,Other establishments,08/03/18,6210588,393,VENDOR,APEX PROPERTY VENTURES LTD,108437
Portsmouth City Council,PCC,Adult Social Care,Physical Support Older People (85+),ADULT SERVICES,Third Party Payments,Other establishments,08/03/18,6210588,235.8,VENDOR,APEX PROPERTY VENTURES LTD,108437
Portsmouth City Council,PCC,Adult Social Care,Physical Support Older People (85+),ADULT SERVICES,Third Party Payments,Other establishments,08/03/18,6210588,471.6,VENDOR,APEX PROPERTY VENTURES LTD,108437
Portsmouth City Council,PCC,Adult Social Care,Social Care Activities,ADULT SERVICES,Third Party Payments,Other establishments,08/03/18,6210588,2106.48,VENDOR,APEX PROPERTY VENTURES LTD,108437
Portsmouth City Council,PCC,Adult Social Care,Physical Support Older People (85+),ADULT SERVICES,Third Party Payments,Other establishments,08/03/18,6210588,330.12,VENDOR,APEX PROPERTY VENTURES LTD,108437
Portsmouth City Council,PCC,Adult Social Care,Learning Disability Support  Adults (18 - 64),ADULT SERVICES,Third Party Payments,Other establishments,08/03/18,6210588,998.22,VENDOR,APEX PROPERTY VENTURES LTD,108437
Portsmouth City Council,PCC,Adult Social Care,Physical Support Older People (85+),ADULT SERVICES,Third Party Payments,Other establishments,08/03/18,6210588,880.32,VENDOR,APEX PROPERTY VENTURES LTD,108437
Portsmouth City Council,PCC,Adult Social Care,Physical Support Adults (75 - 84),ADULT SERVICES,Third Party Payments,Other establishments,08/03/18,6210588,546.27,VENDOR,APEX PROPERTY VENTURES LTD,108437
Portsmouth City Council,PCC,Adult Social Care,Physical Support Adults (75 - 84),ADULT SERVICES,Third Party Payments,Other establishments,08/03/18,6210588,868.53,VENDOR,APEX PROPERTY VENTURES LTD,108437
Portsmouth City Council,PCC,Adult Social Care,Physical Support Older People (85+),ADULT SERVICES,Third Party Payments,Other establishments,08/03/18,6210588,62.88,VENDOR,APEX PROPERTY VENTURES LTD,108437
Portsmouth City Council,PCC,Adult Social Care,Physical Support Adults (75 - 84),ADULT SERVICES,Third Party Payments,Other establishments,08/03/18,6210588,1980.72,VENDOR,APEX PROPERTY VENTURES LTD,108437
Portsmouth City Council,PCC,Adult Social Care,Physical Support Adults (18 - 64),ADULT SERVICES,Third Party Payments,Other establishments,08/03/18,6210588,700.8,VENDOR,APEX PROPERTY VENTURES LTD,108437
Portsmouth City Council,PCC,Adult Social Care,Physical Support Adults (18 - 64),ADULT SERVICES,Third Party Payments,Other establishments,08/03/18,6210588,736.98,VENDOR,APEX PROPERTY VENTURES LTD,108437
Portsmouth City Council,PCC,Adult Social Care,Social Support - Support for Carer,ADULT SERVICES,Third Party Payments,Other establishments,08/03/18,6210588,216.32,VENDOR,APEX PROPERTY VENTURES LTD,108437
Portsmouth City Council,PCC,Adult Social Care,Physical Support Older People (85+),ADULT SERVICES,Third Party Payments,Other establishments,08/03/18,6210588,62.88,VENDOR,APEX PROPERTY VENTURES LTD,108437
Portsmouth City Council,PCC,Adult Social Care,Physical Support Older People (85+),ADULT SERVICES,Third Party Payments,Other establishments,08/03/18,6210588,220.08,VENDOR,APEX PROPERTY VENTURES LTD,108437
Portsmouth City Council,PCC,Adult Social Care,Physical Support Older People (85+),ADULT SERVICES,Third Party Payments,Other establishments,08/03/18,6210588,2169.36,VENDOR,APEX PROPERTY VENTURES LTD,108437
Portsmouth City Council,PCC,Adult Social Care,Physical Support Older People (65-74),ADULT SERVICES,Third Party Payments,Other establishments,08/03/18,6210588,157.2,VENDOR,APEX PROPERTY VENTURES LTD,108437
Portsmouth City Council,PCC,Adult Social Care,Physical Support Older People (85+),ADULT SERVICES,Third Party Payments,Other establishments,08/03/18,6210588,499.11,VENDOR,APEX PROPERTY VENTURES LTD,108437
Portsmouth City Council,PCC,Adult Social Care,Physical Support Adults (18 - 64),ADULT SERVICES,Third Party Payments,Other establishments,08/03/18,6210588,212.22,VENDOR,APEX PROPERTY VENTURES LTD,108437
Portsmouth City Council,PCC,Adult Social Care,Physical Support Older People (85+),ADULT SERVICES,Third Party Payments,Other establishments,08/03/18,6210588,220.08,VENDOR,APEX PROPERTY VENTURES LTD,108437
Portsmouth City Council,PCC,Adult Social Care,Physical Support Adults (18 - 64),ADULT SERVICES,Third Party Payments,Other establishments,08/03/18,6210588,94.32,VENDOR,APEX PROPERTY VENTURES LTD,108437
Portsmouth City Council,PCC,Adult Social Care,Physical Support Older People (85+),ADULT SERVICES,Third Party Payments,Other establishments,08/03/18,6210588,1980.72,VENDOR,APEX PROPERTY VENTURES LTD,108437
Portsmouth City Council,PCC,Adult Social Care,Physical Support Older People (85+),ADULT SERVICES,Third Party Payments,Other establishments,08/03/18,6210588,227.94,VENDOR,APEX PROPERTY VENTURES LTD,108437
Portsmouth City Council,PCC,Adult Social Care,Physical Support Older People (85+),ADULT SERVICES,Third Party Payments,Other establishments,08/03/18,6210588,157.2,VENDOR,APEX PROPERTY VENTURES LTD,108437
Portsmouth City Council,PCC,Adult Social Care,Physical Support Older People (65-74),ADULT SERVICES,Third Party Payments,Other establishments,08/03/18,6210588,377.28,VENDOR,APEX PROPERTY VENTURES LTD,108437
Portsmouth City Council,PCC,Adult Social Care,Physical Support Older People (85+),ADULT SERVICES,Third Party Payments,Other establishments,08/03/18,6210588,243.66,VENDOR,APEX PROPERTY VENTURES LTD,108437
Portsmouth City Council,PCC,Adult Social Care,Physical Support Older People (85+),ADULT SERVICES,Third Party Payments,Other establishments,08/03/18,6210588,1320.48,VENDOR,APEX PROPERTY VENTURES LTD,108437
Portsmouth City Council,PCC,Adult Social Care,Support with Memory and Cognition Adults (18 - 64),ADULT SERVICES,Third Party Payments,Other establishments,08/03/18,6210588,486.72,VENDOR,APEX PROPERTY VENTURES LTD,108437
Portsmouth City Council,PCC,Adult Social Care,Physical Support Adults (75 - 84),ADULT SERVICES,Third Party Payments,Other establishments,08/03/18,6210588,220.08,VENDOR,APEX PROPERTY VENTURES LTD,108437
Portsmouth City Council,PCC,Adult Social Care,Physical Support Older People (85+),ADULT SERVICES,Third Party Payments,Other establishments,08/03/18,6210588,31.44,VENDOR,APEX PROPERTY VENTURES LTD,108437
Portsmouth City Council,PCC,Adult Social Care,Physical Support Adults (75 - 84),ADULT SERVICES,Third Party Payments,Other establishments,08/03/18,6210588,440.16,VENDOR,APEX PROPERTY VENTURES LTD,108437
Portsmouth City Council,PCC,Adult Social Care,Physical Support Older People (85+),ADULT SERVICES,Third Party Payments,Other establishments,08/03/18,6210588,224.01,VENDOR,APEX PROPERTY VENTURES LTD,108437
Portsmouth City Council,PCC,Adult Social Care,Physical Support Adults (75 - 84),ADULT SERVICES,Third Party Payments,Other establishments,08/03/18,6210588,330.12,VENDOR,APEX PROPERTY VENTURES LTD,108437
Portsmouth City Council,PCC,Adult Social Care,Physical Support Older People (85+),ADULT SERVICES,Third Party Payments,Other establishments,08/03/18,6210588,220.08,VENDOR,APEX PROPERTY VENTURES LTD,108437
Portsmouth City Council,PCC,Adult Social Care,Physical Support Older People (85+),ADULT SERVICES,Third Party Payments,Other establishments,08/03/18,6210588,220.08,VENDOR,APEX PROPERTY VENTURES LTD,108437
Portsmouth City Council,PCC,Adult Social Care,Physical Support Older People (85+),ADULT SERVICES,Third Party Payments,Other establishments,08/03/18,6210588,62.88,VENDOR,APEX PROPERTY VENTURES LTD,108437
Portsmouth City Council,PCC,Adult Social Care,Physical Support Adults (75 - 84),ADULT SERVICES,Third Party Payments,Other establishments,08/03/18,6210588,1540.56,VENDOR,APEX PROPERTY VENTURES LTD,108437
Portsmouth City Council,PCC,Adult Social Care,Physical Support Older People (65-74),ADULT SERVICES,Third Party Payments,Other establishments,08/03/18,6210588,412.62,VENDOR,APEX PROPERTY VENTURES LTD,108437
Portsmouth City Council,PCC,Adult Social Care,Physical Support Older People (85+),ADULT SERVICES,Third Party Payments,Other establishments,08/03/18,6210588,195.97,VENDOR,APEX PROPERTY VENTURES LTD,108437
Portsmouth City Council,PCC,Adult Social Care,Physical Support Older People (85+),ADULT SERVICES,Third Party Payments,Other establishments,08/03/18,6210588,935.34,VENDOR,APEX PROPERTY VENTURES LTD,108437
Portsmouth City Council,PCC,Adult Social Care,Physical Support Older People (85+),ADULT SERVICES,Third Party Payments,Other establishments,08/03/18,6210588,660.24,VENDOR,APEX PROPERTY VENTURES LTD,108437
Portsmouth City Council,PCC,Adult Social Care,Physical Support Adults (75 - 84),ADULT SERVICES,Third Party Payments,Other establishments,08/03/18,6210588,220.08,VENDOR,APEX PROPERTY VENTURES LTD,108437
Portsmouth City Council,PCC,Adult Social Care,Physical Support Adults (75 - 84),ADULT SERVICES,Third Party Payments,Other establishments,08/03/18,6210588,1241.88,VENDOR,APEX PROPERTY VENTURES LTD,108437
Portsmouth City Council,PCC,Adult Social Care,Physical Support Older People (85+),ADULT SERVICES,Third Party Payments,Other establishments,08/03/18,6210588,110.04,VENDOR,APEX PROPERTY VENTURES LTD,108437
Portsmouth City Council,PCC,Adult Social Care,Physical Support Older People (85+),ADULT SERVICES,Third Party Payments,Other establishments,08/03/18,6210588,220.08,VENDOR,APEX PROPERTY VENTURES LTD,108437
Portsmouth City Council,PCC,Adult Social Care,Physical Support Older People (85+),ADULT SERVICES,Third Party Payments,Other establishments,08/03/18,6210588,78.6,VENDOR,APEX PROPERTY VENTURES LTD,108437
Portsmouth City Council,PCC,Adult Social Care,Physical Support Older People (65-74),ADULT SERVICES,Third Party Payments,Other establishments,08/03/18,6210588,125.76,VENDOR,APEX PROPERTY VENTURES LTD,108437
Portsmouth City Council,PCC,Adult Social Care,Physical Support Older People (65-74),ADULT SERVICES,Third Party Payments,Other establishments,08/03/18,6210588,204.36,VENDOR,APEX PROPERTY VENTURES LTD,108437
Portsmouth City Council,PCC,Adult Social Care,Physical Support Older People (85+),ADULT SERVICES,Third Party Payments,Other establishments,08/03/18,6210588,163.94,VENDOR,APEX PROPERTY VENTURES LTD,108437
Portsmouth City Council,PCC,Adult Social Care,Physical Support Older People (85+),ADULT SERVICES,Third Party Payments,Other establishments,08/03/18,6210588,2200.8,VENDOR,APEX PROPERTY VENTURES LTD,108437
Portsmouth City Council,PCC,Adult Social Care,Physical Support Older People (85+),ADULT SERVICES,Third Party Payments,Other establishments,08/03/18,6210588,550.2,VENDOR,APEX PROPERTY VENTURES LTD,108437
Portsmouth City Council,PCC,Adult Social Care,Learning Disability Support  Adults (18 - 64),ADULT SERVICES,Third Party Payments,Other establishments,08/03/18,6210588,216.15,VENDOR,APEX PROPERTY VENTURES LTD,108437
Portsmouth City Council,PCC,Housing Revenue Account,"Rents, Rates, Taxes and Other Charges",PROPERTY & HOUSING,Premises-Related Expenditure,Water Services,02/03/18,6209806,131.76,VENDOR,SOUTHERN WATER,100254
Portsmouth City Council,PCC,Adult Social Care,Physical Support Older People (85+),ADULT SERVICES,Third Party Payments,Other establishments,08/03/18,6210588,503.04,VENDOR,APEX PROPERTY VENTURES LTD,108437
Portsmouth City Council,PCC,Adult Social Care,Physical Support Older People (85+),ADULT SERVICES,Third Party Payments,Other establishments,08/03/18,6210588,542.34,VENDOR,APEX PROPERTY VENTURES LTD,108437
Portsmouth City Council,PCC,Adult Social Care,Physical Support Adults (75 - 84),ADULT SERVICES,Third Party Payments,Other establishments,08/03/18,6210588,361.56,VENDOR,APEX PROPERTY VENTURES LTD,108437
Portsmouth City Council,PCC,Adult Social Care,Physical Support Older People (85+),ADULT SERVICES,Third Party Payments,Other establishments,08/03/18,6210588,1980.72,VENDOR,APEX PROPERTY VENTURES LTD,108437
Portsmouth City Council,PCC,Adult Social Care,Physical Support Adults (18 - 64),ADULT SERVICES,Third Party Payments,Other establishments,08/03/18,6210588,188.64,VENDOR,APEX PROPERTY VENTURES LTD,108437
Portsmouth City Council,PCC,Adult Social Care,Physical Support Older People (85+),ADULT SERVICES,Third Party Payments,Other establishments,08/03/18,6210588,440.16,VENDOR,APEX PROPERTY VENTURES LTD,108437
Portsmouth City Council,PCC,Adult Social Care,Physical Support Older People (85+),ADULT SERVICES,Third Party Payments,Other establishments,08/03/18,6210588,321.72,VENDOR,APEX PROPERTY VENTURES LTD,108437
Portsmouth City Council,PCC,Adult Social Care,Physical Support Older People (85+),ADULT SERVICES,Third Party Payments,Other establishments,08/03/18,6210588,306.54,VENDOR,APEX PROPERTY VENTURES LTD,108437
Portsmouth City Council,PCC,Adult Social Care,Physical Support Older People (85+),ADULT SERVICES,Third Party Payments,Other establishments,08/03/18,6210588,157.2,VENDOR,APEX PROPERTY VENTURES LTD,108437
Portsmouth City Council,PCC,Adult Social Care,Physical Support Older People (85+),ADULT SERVICES,Third Party Payments,Other establishments,08/03/18,6210588,684.13,VENDOR,APEX PROPERTY VENTURES LTD,108437
Portsmouth City Council,PCC,Adult Social Care,Physical Support Older People (85+),ADULT SERVICES,Third Party Payments,Other establishments,08/03/18,6210588,94.32,VENDOR,APEX PROPERTY VENTURES LTD,108437
Portsmouth City Council,PCC,Adult Social Care,Physical Support Older People (85+),ADULT SERVICES,Third Party Payments,Other establishments,08/03/18,6210588,94.32,VENDOR,APEX PROPERTY VENTURES LTD,108437
Portsmouth City Council,PCC,Adult Social Care,Physical Support Older People (85+),ADULT SERVICES,Third Party Payments,Other establishments,08/03/18,6210588,770.28,VENDOR,APEX PROPERTY VENTURES LTD,108437
Portsmouth City Council,PCC,Adult Social Care,Physical Support Older People (65-74),ADULT SERVICES,Third Party Payments,Other establishments,08/03/18,6210588,149.34,VENDOR,APEX PROPERTY VENTURES LTD,108437
Portsmouth City Council,PCC,Adult Social Care,Physical Support Older People (85+),ADULT SERVICES,Third Party Payments,Other establishments,08/03/18,6210588,157.2,VENDOR,APEX PROPERTY VENTURES LTD,108437
Portsmouth City Council,PCC,Adult Social Care,Physical Support Older People (85+),ADULT SERVICES,Third Party Payments,Other establishments,08/03/18,6210588,188.64,VENDOR,APEX PROPERTY VENTURES LTD,108437
Portsmouth City Council,PCC,Adult Social Care,Sensory Support Adults (18 - 64),ADULT SERVICES,Third Party Payments,Other establishments,08/03/18,6210588,432.3,VENDOR,APEX PROPERTY VENTURES LTD,108437
Portsmouth City Council,PCC,Adult Social Care,Sensory Support Older People (75 - 84),ADULT SERVICES,Third Party Payments,Other establishments,08/03/18,6210588,220.08,VENDOR,APEX PROPERTY VENTURES LTD,108437
Portsmouth City Council,PCC,Adult Social Care,Physical Support Older People (85+),ADULT SERVICES,Third Party Payments,Other establishments,08/03/18,6210588,408.72,VENDOR,APEX PROPERTY VENTURES LTD,108437
Portsmouth City Council,PCC,Adult Social Care,Physical Support Adults (75 - 84),ADULT SERVICES,Third Party Payments,Other establishments,08/03/18,6210588,1752.78,VENDOR,APEX PROPERTY VENTURES LTD,108437
Portsmouth City Council,PCC,Adult Social Care,Physical Support Older People (85+),ADULT SERVICES,Third Party Payments,Other establishments,08/03/18,6210588,220.08,VENDOR,APEX PROPERTY VENTURES LTD,108437
Portsmouth City Council,PCC,Adult Social Care,Physical Support Older People (85+),ADULT SERVICES,Third Party Payments,Other establishments,08/03/18,6210588,330.12,VENDOR,APEX PROPERTY VENTURES LTD,108437
Portsmouth City Council,PCC,Adult Social Care,Physical Support Older People (85+),ADULT SERVICES,Third Party Payments,Other establishments,08/03/18,6210588,1320.48,VENDOR,APEX PROPERTY VENTURES LTD,108437
Portsmouth City Council,PCC,Adult Social Care,Learning Disability Support  Adults (18 - 64),ADULT SERVICES,Third Party Payments,Other establishments,08/03/18,6210588,220.08,VENDOR,APEX PROPERTY VENTURES LTD,108437
Portsmouth City Council,PCC,Adult Social Care,Learning Disability Support  Adults (18 - 64),ADULT SERVICES,Third Party Payments,Other establishments,08/03/18,6210588,282.96,VENDOR,APEX PROPERTY VENTURES LTD,108437
Portsmouth City Council,PCC,Adult Social Care,Physical Support Older People (85+),ADULT SERVICES,Third Party Payments,Other establishments,08/03/18,6210588,2420.88,VENDOR,APEX PROPERTY VENTURES LTD,108437
Portsmouth City Council,PCC,Adult Social Care,Physical Support Older People (85+),ADULT SERVICES,Third Party Payments,Other establishments,08/03/18,6210588,605.22,VENDOR,APEX PROPERTY VENTURES LTD,108437
Portsmouth City Council,PCC,Adult Social Care,Learning Disability Support  Adults (18 - 64),ADULT SERVICES,Third Party Payments,Other establishments,08/03/18,6210588,117.9,VENDOR,APEX PROPERTY VENTURES LTD,108437
Portsmouth City Council,PCC,Adult Social Care,Physical Support Adults (18 - 64),ADULT SERVICES,Third Party Payments,Other establishments,08/03/18,6210588,1092.54,VENDOR,APEX PROPERTY VENTURES LTD,108437
Portsmouth City Council,PCC,Adult Social Care,Support with Memory and Cognition Adults (18 - 64),ADULT SERVICES,Third Party Payments,Other establishments,08/03/18,6210588,216.15,VENDOR,APEX PROPERTY VENTURES LTD,108437
Portsmouth City Council,PCC,Adult Social Care,Physical Support Older People (85+),ADULT SERVICES,Third Party Payments,Other establishments,08/03/18,6210588,220.08,VENDOR,APEX PROPERTY VENTURES LTD,108437
Portsmouth City Council,PCC,Adult Social Care,Physical Support Adults (75 - 84),ADULT SERVICES,Third Party Payments,Other establishments,08/03/18,6210588,188.64,VENDOR,APEX PROPERTY VENTURES LTD,108437
Portsmouth City Council,PCC,Adult Social Care,Physical Support Older People (85+),ADULT SERVICES,Third Party Payments,Other establishments,08/03/18,6210588,125.76,VENDOR,APEX PROPERTY VENTURES LTD,108437
Portsmouth City Council,PCC,Adult Social Care,Social Care Activities,ADULT SERVICES,Third Party Payments,Other establishments,08/03/18,6210588,440.16,VENDOR,APEX PROPERTY VENTURES LTD,108437
Portsmouth City Council,PCC,Adult Social Care,Physical Support Older People (85+),ADULT SERVICES,Third Party Payments,Other establishments,08/03/18,6210588,440.16,VENDOR,APEX PROPERTY VENTURES LTD,108437
Portsmouth City Council,PCC,Adult Social Care,Physical Support Older People (65-74),ADULT SERVICES,Third Party Payments,Other establishments,08/03/18,6210588,1760.64,VENDOR,APEX PROPERTY VENTURES LTD,108437
Portsmouth City Council,PCC,Adult Social Care,Physical Support Adults (75 - 84),ADULT SERVICES,Third Party Payments,Other establishments,08/03/18,6210588,149.34,VENDOR,APEX PROPERTY VENTURES LTD,108437
Portsmouth City Council,PCC,Adult Social Care,Physical Support Older People (85+),ADULT SERVICES,Third Party Payments,Other establishments,08/03/18,6210588,94.32,VENDOR,APEX PROPERTY VENTURES LTD,108437
Portsmouth City Council,PCC,Adult Social Care,Physical Support Adults (75 - 84),ADULT SERVICES,Third Party Payments,Other establishments,08/03/18,6210588,165.06,VENDOR,APEX PROPERTY VENTURES LTD,108437
Portsmouth City Council,PCC,Adult Social Care,Physical Support Older People (65-74),ADULT SERVICES,Third Party Payments,Other establishments,08/03/18,6210588,220.08,VENDOR,APEX PROPERTY VENTURES LTD,108437
Portsmouth City Council,PCC,Adult Social Care,Physical Support Adults (75 - 84),ADULT SERVICES,Third Party Payments,Other establishments,08/03/18,6210588,1100.4,VENDOR,APEX PROPERTY VENTURES LTD,108437
Portsmouth City Council,PCC,Adult Social Care,Physical Support Older People (65-74),ADULT SERVICES,Third Party Payments,Other establishments,08/03/18,6210588,188.64,VENDOR,APEX PROPERTY VENTURES LTD,108437
Portsmouth City Council,PCC,Adult Social Care,Physical Support Adults (18 - 64),ADULT SERVICES,Third Party Payments,Other establishments,08/03/18,6210588,198.8,VENDOR,APEX PROPERTY VENTURES LTD,108437
Portsmouth City Council,PCC,Adult Social Care,Physical Support Adults (18 - 64),ADULT SERVICES,Third Party Payments,Other establishments,08/03/18,6210588,408.72,VENDOR,APEX PROPERTY VENTURES LTD,108437
Portsmouth City Council,PCC,Adult Social Care,Physical Support Older People (85+),ADULT SERVICES,Third Party Payments,Other establishments,08/03/18,6210588,416.58,VENDOR,APEX PROPERTY VENTURES LTD,108437
Portsmouth City Council,PCC,Adult Social Care,Physical Support Older People (85+),ADULT SERVICES,Third Party Payments,Other establishments,08/03/18,6210588,978.57,VENDOR,APEX PROPERTY VENTURES LTD,108437
Portsmouth City Council,PCC,Adult Social Care,Physical Support Older People (85+),ADULT SERVICES,Third Party Payments,Other establishments,08/03/18,6210588,440.16,VENDOR,APEX PROPERTY VENTURES LTD,108437
Portsmouth City Council,PCC,Adult Social Care,Physical Support Older People (65-74),ADULT SERVICES,Third Party Payments,Other establishments,16/03/18,6212053,2012.16,VENDOR,APEX PROPERTY VENTURES LTD,108437
Portsmouth City Council,PCC,Adult Social Care,Physical Support Older People (85+),ADULT SERVICES,Third Party Payments,Other establishments,08/03/18,6210588,656.31,VENDOR,APEX PROPERTY VENTURES LTD,108437
Portsmouth City Council,PCC,Adult Social Care,Physical Support Older People (85+),ADULT SERVICES,Third Party Payments,Other establishments,08/03/18,6210588,220.08,VENDOR,APEX PROPERTY VENTURES LTD,108437
Portsmouth City Council,PCC,Adult Social Care,Physical Support Older People (85+),ADULT SERVICES,Third Party Payments,Other establishments,08/03/18,6210588,440.16,VENDOR,APEX PROPERTY VENTURES LTD,108437
Portsmouth City Council,PCC,Adult Social Care,Physical Support Older People (85+),ADULT SERVICES,Third Party Payments,Other establishments,08/03/18,6210588,1650.6,VENDOR,APEX PROPERTY VENTURES LTD,108437
Portsmouth City Council,PCC,Adult Social Care,Physical Support Older People (65-74),ADULT SERVICES,Third Party Payments,Other establishments,08/03/18,6210588,141.48,VENDOR,APEX PROPERTY VENTURES LTD,108437
Portsmouth City Council,PCC,Adult Social Care,Physical Support Older People (85+),ADULT SERVICES,Third Party Payments,Other establishments,08/03/18,6210588,330.12,VENDOR,APEX PROPERTY VENTURES LTD,108437
Portsmouth City Council,PCC,Adult Social Care,Learning Disability Support  Adults (18 - 64),ADULT SERVICES,Third Party Payments,Other establishments,08/03/18,6210588,149.34,VENDOR,APEX PROPERTY VENTURES LTD,108437
Portsmouth City Council,PCC,Adult Social Care,Physical Support Older People (85+),ADULT SERVICES,Third Party Payments,Other establishments,08/03/18,6210588,94.32,VENDOR,APEX PROPERTY VENTURES LTD,108437
Portsmouth City Council,PCC,Housing Revenue Account,Special Services,PROPERTY & HOUSING,Employees,Direct employee expenses,05/03/18,6209836,135.66,VENDOR,APEX PROPERTY VENTURES LTD,108437
Portsmouth City Council,PCC,Housing Revenue Account,Special Services,PROPERTY & HOUSING,Employees,Direct employee expenses,05/03/18,6209836,3274.46,VENDOR,APEX PROPERTY VENTURES LTD,108437
Portsmouth City Council,PCC,Housing Revenue Account,Special Services,PROPERTY & HOUSING,Employees,Direct employee expenses,05/03/18,6209836,3437.67,VENDOR,APEX PROPERTY VENTURES LTD,108437
Portsmouth City Council,PCC,Housing Revenue Account,"Rents, Rates, Taxes and Other Charges",PROPERTY & HOUSING,Premises-Related Expenditure,Water Services,02/03/18,6209806,195.39,VENDOR,SOUTHERN WATER,100254
Portsmouth City Council,PCC,Other,Suspense and Capital Schemes,Housing RA,Capital Charges,Capital Expenditure (WIP),12/03/18,6211085,6500,VENDOR,ECD ARCHITECTS LTD,136285
Portsmouth City Council,PCC,Other,Suspense and Capital Schemes,Housing RA,Capital Charges,Capital Expenditure (WIP),12/03/18,6211085,6740.75,VENDOR,ECD ARCHITECTS LTD,136285
Portsmouth City Council,PCC,Other,Suspense and Capital Schemes,Housing RA,Capital Charges,Capital Expenditure (WIP),12/03/18,6211085,11211.34,VENDOR,ECD ARCHITECTS LTD,136285
Portsmouth City Council,PCC,Housing Services,Homelessness,PROPERTY & HOUSING,Premises-Related Expenditure,Rents,23/03/18,6213692,1800,SOLETRADER,Classified as 'personal data' (under the Data Protection Act 1998),Redacted
Portsmouth City Council,PCC,Housing Revenue Account,Repairs and Maintenance,PROPERTY & HOUSING,Premises-Related Expenditure,"Repairs, alterations and maintenance of buildings",26/03/18,6213947,1192529.82,COMPANY,MOUNTJOY LIMITED,129869
Portsmouth City Council,PCC,Other,Suspense and Capital Schemes,Housing RA,Capital Charges,Capital Expenditure (WIP),29/03/18,6215011,291290.31,COMPANY,LIBERTY GAS GROUP LIMITED,134977
Portsmouth City Council,PCC,Adult Social Care,Physical Support Older People (85+),ADULT SERVICES,Third Party Payments,Other establishments,29/03/18,6214793,31200,VENDOR,AGINCARE UK,134367
Portsmouth City Council,PCC,Adult Social Care,Physical Support Older People (85+),ADULT SERVICES,Third Party Payments,Other establishments,29/03/18,6214793,3000,VENDOR,AGINCARE UK,134367
Portsmouth City Council,PCC,Adult Social Care,Physical Support Older People (85+),ADULT SERVICES,Third Party Payments,Other establishments,29/03/18,6214793,199.15,VENDOR,AGINCARE UK,134367
Portsmouth City Council,PCC,Adult Social Care,Physical Support Older People (85+),ADULT SERVICES,Third Party Payments,Other establishments,21/03/18,6212980,31200,VENDOR,AGINCARE UK,134367
Portsmouth City Council,PCC,Adult Social Care,Physical Support Older People (85+),ADULT SERVICES,Third Party Payments,Other establishments,21/03/18,6212980,3000,VENDOR,AGINCARE UK,134367
Portsmouth City Council,PCC,Adult Social Care,Physical Support Older People (85+),ADULT SERVICES,Third Party Payments,Other establishments,29/03/18,6214793,31200,VENDOR,AGINCARE UK,134367
Portsmouth City Council,PCC,Adult Social Care,Physical Support Older People (85+),ADULT SERVICES,Third Party Payments,Other establishments,29/03/18,6214793,3000,VENDOR,AGINCARE UK,134367
Portsmouth City Council,PCC,Adult Social Care,Physical Support Older People (85+),ADULT SERVICES,Third Party Payments,Other establishments,29/03/18,6214793,416.63,VENDOR,AGINCARE UK,134367
Portsmouth City Council,PCC,Adult Social Care,Support with Memory and Cognition Older People (85+),ADULT SERVICES,Third Party Payments,Other establishments,19/03/18,6212232,1750,VENDOR,AGINCARE UK,134367
Portsmouth City Council,PCC,Adult Social Care,Support with Memory and Cognition Older People (85+),ADULT SERVICES,Third Party Payments,Other establishments,16/03/18,6212048,1750,VENDOR,AGINCARE UK,134367
Portsmouth City Council,PCC,Housing Revenue Account,"Rents, Rates, Taxes and Other Charges",PROPERTY & HOUSING,Premises-Related Expenditure,Water Services,23/03/18,6213829,225.09,VENDOR,SOUTHERN WATER,100254
Portsmouth City Council,PCC,Housing Revenue Account,"Rents, Rates, Taxes and Other Charges",PROPERTY & HOUSING,Premises-Related Expenditure,Water Services,23/03/18,6213829,1254.48,VENDOR,SOUTHERN WATER,100254
Portsmouth City Council,PCC,Highways and Transport Services,"Airports, Harbours and Toll Facilities",PORTSMOUTH INTERNATIONAL PORT,Transport-Related Expenditure,Direct transport costs,22/03/18,6213610,13159.9,VENDOR,SGS UNITED KINGDOM LTD,105507
Portsmouth City Council,PCC,Highways and Transport Services,"Airports, Harbours and Toll Facilities",PORTSMOUTH INTERNATIONAL PORT,Transport-Related Expenditure,Direct transport costs,22/03/18,6213610,11066.4,VENDOR,SGS UNITED KINGDOM LTD,105507
Portsmouth City Council,PCC,Highways and Transport Services,"Airports, Harbours and Toll Facilities",PORTSMOUTH INTERNATIONAL PORT,Premises-Related Expenditure,Rents,08/03/18,6210698,22781.25,COMPANY,NETWORK RAIL INFRASTRUCTURE LIMITED,106694
Portsmouth City Council,PCC,Housing Revenue Account,Special Services,PROPERTY & HOUSING,Employees,Direct employee expenses,29/03/18,6214804,3410.12,VENDOR,APEX PROPERTY VENTURES LTD,108437
Portsmouth City Council,PCC,Housing Revenue Account,Special Services,PROPERTY & HOUSING,Employees,Direct employee expenses,29/03/18,6214804,3437.67,VENDOR,APEX PROPERTY VENTURES LTD,108437
Portsmouth City Council,PCC,Highways and Transport Services,"Airports, Harbours and Toll Facilities",PORTSMOUTH INTERNATIONAL PORT,Transport-Related Expenditure,Direct transport costs,29/03/18,6215128,10981.6,VENDOR,SGS UNITED KINGDOM LTD,105507
Portsmouth City Council,PCC,Highways and Transport Services,"Airports, Harbours and Toll Facilities",PORTSMOUTH INTERNATIONAL PORT,Transport-Related Expenditure,Direct transport costs,22/03/18,6213610,9110.7,VENDOR,SGS UNITED KINGDOM LTD,105507
Portsmouth City Council,PCC,Adult Social Care,Physical Support Older People (85+),ADULT SERVICES,Third Party Payments,Other establishments,02/03/18,6209764,34.5,VENDOR,JM HOMECARE LTD T/A RIGHT AT HOME,141434
Portsmouth City Council,PCC,Housing Revenue Account,Supervision and Management,PROPERTY & HOUSING,Employees,Direct employee expenses,27/03/18,6214544,128,VENDOR,RMC EMEA LIMITED,122070
Portsmouth City Council,PCC,Children's and Education Services,Safeguarding Children and Young Peoples Services,CHILDREN SERVICES AND EDUCATION,Employees,Direct employee expenses,27/03/18,6214544,256,VENDOR,RMC EMEA LIMITED,122070
Portsmouth City Council,PCC,Children's and Education Services,Other Education and Community Budget,CHILDREN SERVICES AND EDUCATION,Employees,Direct employee expenses,27/03/18,6214544,64,VENDOR,RMC EMEA LIMITED,122070
Portsmouth City Council,PCC,Highways and Transport Services,Traffic Management and Road Safety,REGENERATION,Employees,Direct employee expenses,27/03/18,6214544,128,VENDOR,RMC EMEA LIMITED,122070
Portsmouth City Council,PCC,Cultural and Related Services,Allocation of Management & Admin,COMMUNITY & COMMUNICATION,Employees,Direct employee expenses,27/03/18,6214544,128,VENDOR,RMC EMEA LIMITED,122070
Portsmouth City Council,PCC,Corporate and Democratic Core,Corporate Management,"HR, LEGAL & PERFORMANCE",Employees,Direct employee expenses,27/03/18,6214544,192,VENDOR,RMC EMEA LIMITED,122070
Portsmouth City Council,PCC,Support Service / Transparency Costs Unallocated,Personnel,"HR, LEGAL & PERFORMANCE",Employees,Direct employee expenses,27/03/18,6214544,128,VENDOR,RMC EMEA LIMITED,122070
Portsmouth City Council,PCC,Housing Revenue Account,Supervision and Management,PROPERTY & HOUSING,Employees,Direct employee expenses,27/03/18,6214544,192,VENDOR,RMC EMEA LIMITED,122070
Portsmouth City Council,PCC,Housing Revenue Account,Supervision and Management,PROPERTY & HOUSING,Employees,Direct employee expenses,27/03/18,6214544,64,VENDOR,RMC EMEA LIMITED,122070
Portsmouth City Council,PCC,Highways and Transport Services,"Airports, Harbours and Toll Facilities",PORTSMOUTH INTERNATIONAL PORT,Transport-Related Expenditure,Direct transport costs,22/03/18,6213610,10859.7,VENDOR,SGS UNITED KINGDOM LTD,105507
Portsmouth City Council,PCC,Highways and Transport Services,"Airports, Harbours and Toll Facilities",PORTSMOUTH INTERNATIONAL PORT,Premises-Related Expenditure,Cleaning and domestic supplies,01/03/18,6209610,8131.39,VENDOR,NVIRO LTD,124507
Portsmouth City Council,PCC,Highways and Transport Services,"Airports, Harbours and Toll Facilities",PORTSMOUTH INTERNATIONAL PORT,Premises-Related Expenditure,Cleaning and domestic supplies,01/03/18,6209610,8131.39,VENDOR,NVIRO LTD,124507
Portsmouth City Council,PCC,Highways and Transport Services,"Airports, Harbours and Toll Facilities",PORTSMOUTH INTERNATIONAL PORT,Premises-Related Expenditure,Cleaning and domestic supplies,01/03/18,6209610,2167,VENDOR,NVIRO LTD,124507
Portsmouth City Council,PCC,Highways and Transport Services,"Airports, Harbours and Toll Facilities",PORTSMOUTH INTERNATIONAL PORT,Third Party Payments,Private contractors,01/03/18,6209610,688.82,VENDOR,NVIRO LTD,124507
Portsmouth City Council,PCC,Highways and Transport Services,"Airports, Harbours and Toll Facilities",PORTSMOUTH INTERNATIONAL PORT,Third Party Payments,Private contractors,01/03/18,6209610,76.53,VENDOR,NVIRO LTD,124507
Portsmouth City Council,PCC,Adult Social Care,Physical Support Older People (85+),ADULT SERVICES,Third Party Payments,Other establishments,02/03/18,6209764,163.5,VENDOR,JM HOMECARE LTD T/A RIGHT AT HOME,141434
Portsmouth City Council,PCC,Other,Suspense and Capital Schemes,"HR, LEGAL & PERFORMANCE",Employees,Direct employee expenses,27/03/18,6214544,2230.42,VENDOR,RMC EMEA LIMITED,122070
Portsmouth City Council,PCC,Support Service / Transparency Costs Unallocated,Personnel,"HR, LEGAL & PERFORMANCE",Employees,Direct employee expenses,27/03/18,6214544,1402.93,VENDOR,RMC EMEA LIMITED,122070
Portsmouth City Council,PCC,Support Service / Transparency Costs Unallocated,Personnel,"HR, LEGAL & PERFORMANCE",Employees,Direct employee expenses,27/03/18,6214544,140.01,VENDOR,RMC EMEA LIMITED,122070
Portsmouth City Council,PCC,Adult Social Care,Social Support - Support for Carer,ADULT SERVICES,Third Party Payments,Other establishments,02/03/18,6209764,103.5,VENDOR,JM HOMECARE LTD T/A RIGHT AT HOME,141434
Portsmouth City Council,PCC,Highways and Transport Services,"Airports, Harbours and Toll Facilities",PORTSMOUTH INTERNATIONAL PORT,Transport-Related Expenditure,Direct transport costs,22/03/18,6213610,9778.5,VENDOR,SGS UNITED KINGDOM LTD,105507
Portsmouth City Council,PCC,Adult Social Care,Learning Disability Support  Adults (18 - 64),ADULT SERVICES,Premises-Related Expenditure,Cleaning and domestic supplies,14/03/18,6211812,99.96,VENDOR,NVIRO LTD,124507
Portsmouth City Council,PCC,Adult Social Care,Social Support - Support for Carer,ADULT SERVICES,Third Party Payments,Other establishments,02/03/18,6209764,76,VENDOR,JM HOMECARE LTD T/A RIGHT AT HOME,141434
Portsmouth City Council,PCC,Other,Suspense and Capital Schemes,Traffic & Transportation,Capital Charges,Capital Expenditure (WIP),23/03/18,6213786,3285.17,COMPANY,NETWORK RAIL INFRASTRUCTURE LIMITED,106694
Portsmouth City Council,PCC,Highways and Transport Services,"Airports, Harbours and Toll Facilities",PORTSMOUTH INTERNATIONAL PORT,Transport-Related Expenditure,Direct transport costs,29/03/18,6215128,402.8,VENDOR,SGS UNITED KINGDOM LTD,105507
Portsmouth City Council,PCC,Adult Social Care,Information and Early Intervention,ADULT SERVICES,Premises-Related Expenditure,Cleaning and domestic supplies,05/03/18,6209917,519.28,VENDOR,NVIRO LTD,124507
Portsmouth City Council,PCC,Adult Social Care,Learning Disability Support  Adults (18 - 64),ADULT SERVICES,Premises-Related Expenditure,Cleaning and domestic supplies,02/03/18,6209778,1147.97,VENDOR,NVIRO LTD,124507
Portsmouth City Council,PCC,Adult Social Care,Learning Disability Support  Adults (18 - 64),ADULT SERVICES,Premises-Related Expenditure,Cleaning and domestic supplies,02/03/18,6209778,1152.39,VENDOR,NVIRO LTD,124507
Portsmouth City Council,PCC,Adult Social Care,Physical Support Older People (85+),ADULT SERVICES,Third Party Payments,Other establishments,02/03/18,6209764,189,VENDOR,JM HOMECARE LTD T/A RIGHT AT HOME,141434
Portsmouth City Council,PCC,Highways and Transport Services,"Airports, Harbours and Toll Facilities",PORTSMOUTH INTERNATIONAL PORT,Premises-Related Expenditure,Cleaning and domestic supplies,29/03/18,6215055,8131.39,VENDOR,NVIRO LTD,124507
Portsmouth City Council,PCC,Highways and Transport Services,"Airports, Harbours and Toll Facilities",PORTSMOUTH INTERNATIONAL PORT,Premises-Related Expenditure,Cleaning and domestic supplies,29/03/18,6215055,8131.39,VENDOR,NVIRO LTD,124507
Portsmouth City Council,PCC,Highways and Transport Services,"Airports, Harbours and Toll Facilities",PORTSMOUTH INTERNATIONAL PORT,Premises-Related Expenditure,Cleaning and domestic supplies,29/03/18,6215055,2167,VENDOR,NVIRO LTD,124507
Portsmouth City Council,PCC,Highways and Transport Services,"Airports, Harbours and Toll Facilities",PORTSMOUTH INTERNATIONAL PORT,Third Party Payments,Private contractors,29/03/18,6215055,688.82,VENDOR,NVIRO LTD,124507
Portsmouth City Council,PCC,Highways and Transport Services,"Airports, Harbours and Toll Facilities",PORTSMOUTH INTERNATIONAL PORT,Third Party Payments,Private contractors,29/03/18,6215055,76.53,VENDOR,NVIRO LTD,124507
Portsmouth City Council,PCC,Adult Social Care,Learning Disability Support  Adults (18 - 64),ADULT SERVICES,Premises-Related Expenditure,Cleaning and domestic supplies,14/03/18,6211812,4623.1,VENDOR,NVIRO LTD,124507
Portsmouth City Council,PCC,Adult Social Care,Support with Memory and Cognition Older People (85+),ADULT SERVICES,Third Party Payments,Other establishments,02/03/18,6209764,244.3,VENDOR,JM HOMECARE LTD T/A RIGHT AT HOME,141434
Portsmouth City Council,PCC,Adult Social Care,Learning Disability Support  Adults (18 - 64),ADULT SERVICES,Premises-Related Expenditure,Cleaning and domestic supplies,21/03/18,6213440,159.72,VENDOR,NVIRO LTD,124507
Portsmouth City Council,PCC,Adult Social Care,Learning Disability Support  Adults (18 - 64),ADULT SERVICES,Supplies and Services,"Clothes, uniform and laundry",21/03/18,6213440,599.44,VENDOR,NVIRO LTD,124507
Portsmouth City Council,PCC,Adult Social Care,Learning Disability Support  Adults (18 - 64),ADULT SERVICES,Supplies and Services,"Clothes, uniform and laundry",21/03/18,6213440,31.76,VENDOR,NVIRO LTD,124507
Portsmouth City Council,PCC,Adult Social Care,Social Support - Support for Carer,ADULT SERVICES,Third Party Payments,Other establishments,02/03/18,6209764,103.5,VENDOR,JM HOMECARE LTD T/A RIGHT AT HOME,141434
Portsmouth City Council,PCC,Adult Social Care,Learning Disability Support  Adults (18 - 64),ADULT SERVICES,Premises-Related Expenditure,Cleaning and domestic supplies,29/03/18,6215055,1147.97,VENDOR,NVIRO LTD,124507
Portsmouth City Council,PCC,Adult Social Care,Learning Disability Support  Adults (18 - 64),ADULT SERVICES,Premises-Related Expenditure,Cleaning and domestic supplies,29/03/18,6215055,1152.39,VENDOR,NVIRO LTD,124507
Portsmouth City Council,PCC,Adult Social Care,Learning Disability Support  Adults (18 - 64),ADULT SERVICES,Premises-Related Expenditure,Cleaning and domestic supplies,29/03/18,6215055,4623.1,VENDOR,NVIRO LTD,124507
Portsmouth City Council,PCC,Adult Social Care,Physical Support Older People (85+),ADULT SERVICES,Third Party Payments,Other establishments,02/03/18,6209764,95.5,VENDOR,JM HOMECARE LTD T/A RIGHT AT HOME,141434
Portsmouth City Council,PCC,Adult Social Care,Physical Support Older People (85+),ADULT SERVICES,Third Party Payments,Other establishments,02/03/18,6209764,99.25,VENDOR,JM HOMECARE LTD T/A RIGHT AT HOME,141434
Portsmouth City Council,PCC,Adult Social Care,Physical Support Older People (85+),ADULT SERVICES,Third Party Payments,Other establishments,02/03/18,6209764,210,VENDOR,JM HOMECARE LTD T/A RIGHT AT HOME,141434
Portsmouth City Council,PCC,Other,Suspense and Capital Schemes,Traffic & Transportation,Capital Charges,Capital Expenditure (WIP),15/03/18,6211950,184.32,VENDOR,DLM DISTRIBUTION LTD,143707
Portsmouth City Council,PCC,Other,Suspense and Capital Schemes,Traffic & Transportation,Capital Charges,Capital Expenditure (WIP),15/03/18,6211950,328.51,VENDOR,DLM DISTRIBUTION LTD,143707
Portsmouth City Council,PCC,Children's and Education Services,Early Years,CHILDREN SERVICES AND EDUCATION,Employees,Direct employee expenses,22/03/18,6213545,650,VENDOR,CONNECT SOFTWARE SOLUTIONS LTD,135722
Portsmouth City Council,PCC,Other,Suspense and Capital Schemes,Education,Capital Charges,REFCUS,13/03/18,6211295,900,VENDOR,ECOSUPPORT LTD,139549
Portsmouth City Council,PCC,Adult Social Care,Physical Support Older People (85+),ADULT SERVICES,Third Party Payments,Other establishments,09/03/18,6210853,163.5,VENDOR,JM HOMECARE LTD T/A RIGHT AT HOME,141434
Portsmouth City Council,PCC,Adult Social Care,Social Support - Support for Carer,ADULT SERVICES,Third Party Payments,Other establishments,09/03/18,6210853,103.5,VENDOR,JM HOMECARE LTD T/A RIGHT AT HOME,141434
Portsmouth City Council,PCC,Adult Social Care,Physical Support Older People (85+),ADULT SERVICES,Third Party Payments,Other establishments,09/03/18,6210853,189,VENDOR,JM HOMECARE LTD T/A RIGHT AT HOME,141434
Portsmouth City Council,PCC,Adult Social Care,Support with Memory and Cognition Older People (85+),ADULT SERVICES,Third Party Payments,Other establishments,09/03/18,6210853,244.3,VENDOR,JM HOMECARE LTD T/A RIGHT AT HOME,141434
Portsmouth City Council,PCC,Highways and Transport Services,"Airports, Harbours and Toll Facilities",PORTSMOUTH INTERNATIONAL PORT,Supplies and Services,Communications and computing,29/03/18,6215033,3955,VENDOR,MERCURY POWER LIMITED,142543
Portsmouth City Council,PCC,Adult Social Care,Social Support - Support for Carer,ADULT SERVICES,Third Party Payments,Other establishments,09/03/18,6210853,103.5,VENDOR,JM HOMECARE LTD T/A RIGHT AT HOME,141434
Portsmouth City Council,PCC,Adult Social Care,Physical Support Older People (85+),ADULT SERVICES,Third Party Payments,Other establishments,09/03/18,6210853,283.05,VENDOR,JM HOMECARE LTD T/A RIGHT AT HOME,141434
Portsmouth City Council,PCC,Adult Social Care,Physical Support Older People (85+),ADULT SERVICES,Third Party Payments,Other establishments,09/03/18,6210853,95.5,VENDOR,JM HOMECARE LTD T/A RIGHT AT HOME,141434
Portsmouth City Council,PCC,Adult Social Care,Physical Support Older People (85+),ADULT SERVICES,Third Party Payments,Other establishments,09/03/18,6210853,99.25,VENDOR,JM HOMECARE LTD T/A RIGHT AT HOME,141434
Portsmouth City Council,PCC,Adult Social Care,Physical Support Older People (85+),ADULT SERVICES,Third Party Payments,Other establishments,09/03/18,6210853,210,VENDOR,JM HOMECARE LTD T/A RIGHT AT HOME,141434
Portsmouth City Council,PCC,Children's and Education Services,Safeguarding Children and Young Peoples Services,CHILDREN SERVICES AND EDUCATION,Supplies and Services,Services,09/03/18,6210784,500,SOLETRADER,Classified as 'personal data' (under the Data Protection Act 1998),Redacted
Portsmouth City Council,PCC,Children's and Education Services,Other Education and Community Budget,CHILDREN SERVICES AND EDUCATION,Supplies and Services,Expenses,19/03/18,6212245,304.17,VENDOR,BLACKFRIARS SETTLEMENT,140808
Portsmouth City Council,PCC,Adult Social Care,Physical Support Older People (85+),ADULT SERVICES,Third Party Payments,Other establishments,19/03/18,6212297,34.5,VENDOR,JM HOMECARE LTD T/A RIGHT AT HOME,141434
Portsmouth City Council,PCC,Highways and Transport Services,Parking Services,REGENERATION,Supplies and Services,"Equipment, furniture and materials",29/03/18,6215145,676.8,VENDOR,SPANDEX LIMITED,100163
Portsmouth City Council,PCC,Highways and Transport Services,Parking Services,REGENERATION,Supplies and Services,"Equipment, furniture and materials",29/03/18,6215145,283.68,VENDOR,SPANDEX LIMITED,100163
Portsmouth City Council,PCC,Highways and Transport Services,Parking Services,REGENERATION,Supplies and Services,"Equipment, furniture and materials",29/03/18,6215145,156.47,VENDOR,SPANDEX LIMITED,100163
Portsmouth City Council,PCC,Highways and Transport Services,Parking Services,REGENERATION,Supplies and Services,"Equipment, furniture and materials",29/03/18,6215145,179.84,VENDOR,SPANDEX LIMITED,100163
Portsmouth City Council,PCC,Highways and Transport Services,Parking Services,REGENERATION,Supplies and Services,"Equipment, furniture and materials",29/03/18,6215145,283.68,VENDOR,SPANDEX LIMITED,100163
Portsmouth City Council,PCC,Highways and Transport Services,Parking Services,REGENERATION,Supplies and Services,"Equipment, furniture and materials",29/03/18,6215145,141.84,VENDOR,SPANDEX LIMITED,100163
Portsmouth City Council,PCC,Highways and Transport Services,Parking Services,REGENERATION,Supplies and Services,"Equipment, furniture and materials",29/03/18,6215145,89.92,VENDOR,SPANDEX LIMITED,100163
Portsmouth City Council,PCC,Highways and Transport Services,Parking Services,REGENERATION,Supplies and Services,"Equipment, furniture and materials",29/03/18,6215145,156.47,VENDOR,SPANDEX LIMITED,100163
Portsmouth City Council,PCC,Highways and Transport Services,Parking Services,REGENERATION,Supplies and Services,"Equipment, furniture and materials",29/03/18,6215145,287.74,VENDOR,SPANDEX LIMITED,100163
Portsmouth City Council,PCC,Highways and Transport Services,Parking Services,REGENERATION,Supplies and Services,"Equipment, furniture and materials",29/03/18,6215145,287.74,VENDOR,SPANDEX LIMITED,100163
Portsmouth City Council,PCC,Planning Services,Business support,REGENERATION,Supplies and Services,"Equipment, furniture and materials",21/03/18,6213473,183.45,VENDOR,SPANDEX LIMITED,100163
Portsmouth City Council,PCC,Planning Services,Business support,REGENERATION,Supplies and Services,"Equipment, furniture and materials",21/03/18,6213473,271.26,VENDOR,SPANDEX LIMITED,100163
Portsmouth City Council,PCC,Planning Services,Business support,REGENERATION,Supplies and Services,"Equipment, furniture and materials",21/03/18,6213473,183.2,VENDOR,SPANDEX LIMITED,100163
Portsmouth City Council,PCC,Highways and Transport Services,Parking Services,REGENERATION,Supplies and Services,"Equipment, furniture and materials",27/03/18,6214564,141.84,VENDOR,SPANDEX LIMITED,100163
Portsmouth City Council,PCC,Planning Services,Business support,REGENERATION,Supplies and Services,"Equipment, furniture and materials",29/03/18,6215145,183.45,VENDOR,SPANDEX LIMITED,100163
Portsmouth City Council,PCC,Planning Services,Business support,REGENERATION,Supplies and Services,"Equipment, furniture and materials",29/03/18,6215145,183.2,VENDOR,SPANDEX LIMITED,100163
Portsmouth City Council,PCC,Planning Services,Business support,REGENERATION,Supplies and Services,"Equipment, furniture and materials",29/03/18,6215145,101.2,VENDOR,SPANDEX LIMITED,100163
Portsmouth City Council,PCC,Planning Services,Business support,REGENERATION,Supplies and Services,"Equipment, furniture and materials",29/03/18,6215145,12.65,VENDOR,SPANDEX LIMITED,100163
Portsmouth City Council,PCC,Planning Services,Business support,REGENERATION,Supplies and Services,"Equipment, furniture and materials",27/03/18,6214564,592.74,VENDOR,SPANDEX LIMITED,100163
Portsmouth City Council,PCC,Planning Services,Business support,REGENERATION,Supplies and Services,"Equipment, furniture and materials",27/03/18,6214564,91.6,VENDOR,SPANDEX LIMITED,100163
Portsmouth City Council,PCC,Planning Services,Business support,REGENERATION,Supplies and Services,"Equipment, furniture and materials",27/03/18,6214564,9.9,VENDOR,SPANDEX LIMITED,100163
Portsmouth City Council,PCC,Planning Services,Business support,REGENERATION,Supplies and Services,"Equipment, furniture and materials",27/03/18,6214564,275.18,VENDOR,SPANDEX LIMITED,100163
Portsmouth City Council,PCC,Planning Services,Business support,REGENERATION,Supplies and Services,"Equipment, furniture and materials",27/03/18,6214564,22.08,VENDOR,SPANDEX LIMITED,100163
Portsmouth City Council,PCC,Planning Services,Business support,REGENERATION,Supplies and Services,"Equipment, furniture and materials",27/03/18,6214564,101.2,VENDOR,SPANDEX LIMITED,100163
Portsmouth City Council,PCC,Planning Services,Business support,REGENERATION,Supplies and Services,"Equipment, furniture and materials",27/03/18,6214564,0.69,VENDOR,SPANDEX LIMITED,100163
Portsmouth City Council,PCC,Children's and Education Services,Other Education and Community Budget,CHILDREN SERVICES AND EDUCATION,Supplies and Services,Expenses,19/03/18,6212245,350,VENDOR,BLACKFRIARS SETTLEMENT,140808
Portsmouth City Council,PCC,Adult Social Care,Physical Support Older People (85+),ADULT SERVICES,Third Party Payments,Other establishments,19/03/18,6212297,163.5,VENDOR,JM HOMECARE LTD T/A RIGHT AT HOME,141434
Portsmouth City Council,PCC,Adult Social Care,Social Support - Support for Carer,ADULT SERVICES,Third Party Payments,Other establishments,19/03/18,6212297,103.5,VENDOR,JM HOMECARE LTD T/A RIGHT AT HOME,141434
Portsmouth City Council,PCC,Support Service / Transparency Costs Unallocated,Personnel,"HR, LEGAL & PERFORMANCE",Employees,Direct employee expenses,09/03/18,6210870,1695,VENDOR,OMNIPLEX GROUP LTD,143647
Portsmouth City Council,PCC,Support Service / Transparency Costs Unallocated,Personnel,"HR, LEGAL & PERFORMANCE",Employees,Direct employee expenses,09/03/18,6210870,-565,VENDOR,OMNIPLEX GROUP LTD,143647
Portsmouth City Council,PCC,Adult Social Care,Social Support - Support for Carer,ADULT SERVICES,Third Party Payments,Other establishments,19/03/18,6212297,114,VENDOR,JM HOMECARE LTD T/A RIGHT AT HOME,141434
Portsmouth City Council,PCC,Housing Services,Homelessness,PROPERTY & HOUSING,Premises-Related Expenditure,Rents,23/03/18,6213788,1800,SOLETRADER,Classified as 'personal data' (under the Data Protection Act 1998),Redacted
Portsmouth City Council,PCC,Housing Services,Homelessness,PROPERTY & HOUSING,Premises-Related Expenditure,Rents,23/03/18,6213757,2490,SOLETRADER,Classified as 'personal data' (under the Data Protection Act 1998),Redacted
Portsmouth City Council,PCC,Adult Social Care,Support with Memory and Cognition Older People (85+),ADULT SERVICES,Third Party Payments,Other establishments,19/03/18,6212297,244.3,VENDOR,JM HOMECARE LTD T/A RIGHT AT HOME,141434
Portsmouth City Council,PCC,Adult Social Care,Social Support - Support for Carer,ADULT SERVICES,Third Party Payments,Other establishments,19/03/18,6212297,103.5,VENDOR,JM HOMECARE LTD T/A RIGHT AT HOME,141434
Portsmouth City Council,PCC,Adult Social Care,Physical Support Older People (85+),ADULT SERVICES,Third Party Payments,Other establishments,19/03/18,6212297,283.05,VENDOR,JM HOMECARE LTD T/A RIGHT AT HOME,141434
Portsmouth City Council,PCC,Adult Social Care,Physical Support Older People (85+),ADULT SERVICES,Third Party Payments,Other establishments,19/03/18,6212297,95.5,VENDOR,JM HOMECARE LTD T/A RIGHT AT HOME,141434
Portsmouth City Council,PCC,Adult Social Care,Physical Support Older People (85+),ADULT SERVICES,Third Party Payments,Other establishments,19/03/18,6212297,99.25,VENDOR,JM HOMECARE LTD T/A RIGHT AT HOME,141434
Portsmouth City Council,PCC,Highways and Transport Services,"Airports, Harbours and Toll Facilities",PORTSMOUTH INTERNATIONAL PORT,Premises-Related Expenditure,"Repairs, alterations and maintenance of buildings",22/03/18,6213585,3050,COMPANY,ML (UK) LTD,101018
Portsmouth City Council,PCC,Children's and Education Services,Safeguarding Children and Young Peoples Services,CHILDREN SERVICES AND EDUCATION,Supplies and Services,Services,14/03/18,6211791,1080,SOLETRADER,Classified as 'personal data' (under the Data Protection Act 1998),Redacted
Portsmouth City Council,PCC,Children's and Education Services,Safeguarding Children and Young Peoples Services,CHILDREN SERVICES AND EDUCATION,Supplies and Services,Services,16/03/18,6212125,1225,SOLETRADER,Classified as 'personal data' (under the Data Protection Act 1998),Redacted
Portsmouth City Council,PCC,Highways and Transport Services,"Airports, Harbours and Toll Facilities",PORTSMOUTH INTERNATIONAL PORT,Premises-Related Expenditure,"Repairs, alterations and maintenance of buildings",22/03/18,6213585,1490,COMPANY,ML (UK) LTD,101018
Portsmouth City Council,PCC,Highways and Transport Services,Parking Services,REGENERATION,Supplies and Services,"Equipment, furniture and materials",22/03/18,6213528,925,COMPANY,CALE ACCESS UK LTD,100591
Portsmouth City Council,PCC,Highways and Transport Services,Parking Services,REGENERATION,Supplies and Services,"Printing, stationery and general office expenses",22/03/18,6213528,16,COMPANY,CALE ACCESS UK LTD,100591
Portsmouth City Council,PCC,Highways and Transport Services,Parking Services,REGENERATION,Supplies and Services,"Equipment, furniture and materials",22/03/18,6213528,925,COMPANY,CALE ACCESS UK LTD,100591
Portsmouth City Council,PCC,Children's and Education Services,Other Education and Community Budget,CHILDREN SERVICES AND EDUCATION,Supplies and Services,Expenses,29/03/18,6214833,354.17,VENDOR,BLACKFRIARS SETTLEMENT,140808
Portsmouth City Council,PCC,Adult Social Care,Physical Support Older People (85+),ADULT SERVICES,Third Party Payments,Other establishments,19/03/18,6212297,210,VENDOR,JM HOMECARE LTD T/A RIGHT AT HOME,141434
Portsmouth City Council,PCC,Children's and Education Services,Other Education and Community Budget,CHILDREN SERVICES AND EDUCATION,Supplies and Services,Expenses,29/03/18,6214833,329.17,VENDOR,BLACKFRIARS SETTLEMENT,140808
Portsmouth City Council,PCC,Children's and Education Services,Safeguarding Children and Young Peoples Services,CHILDREN SERVICES AND EDUCATION,Supplies and Services,Services,14/03/18,6211811,600,SOLETRADER,Classified as 'personal data' (under the Data Protection Act 1998),Redacted
Portsmouth City Council,PCC,Adult Social Care,Physical Support Older People (85+),ADULT SERVICES,Third Party Payments,Other establishments,26/03/18,6213940,34.5,VENDOR,JM HOMECARE LTD T/A RIGHT AT HOME,141434
Portsmouth City Council,PCC,Adult Social Care,Physical Support Older People (85+),ADULT SERVICES,Third Party Payments,Other establishments,26/03/18,6213940,163.5,VENDOR,JM HOMECARE LTD T/A RIGHT AT HOME,141434
Portsmouth City Council,PCC,Adult Social Care,Social Support - Support for Carer,ADULT SERVICES,Third Party Payments,Other establishments,26/03/18,6213940,103.5,VENDOR,JM HOMECARE LTD T/A RIGHT AT HOME,141434
Portsmouth City Council,PCC,Children's and Education Services,Children Looked After,CHILDREN SERVICES AND EDUCATION,Third Party Payments,Other establishments,08/03/18,6210734,1087.15,VENDOR,SYMBOL UK LIMITED,131929
Portsmouth City Council,PCC,Children's and Education Services,Children Looked After,CHILDREN SERVICES AND EDUCATION,Third Party Payments,Other establishments,08/03/18,6210734,4348.56,VENDOR,SYMBOL UK LIMITED,131929
Portsmouth City Council,PCC,Adult Social Care,Social Support - Support for Carer,ADULT SERVICES,Third Party Payments,Other establishments,26/03/18,6213940,114,VENDOR,JM HOMECARE LTD T/A RIGHT AT HOME,141434
Portsmouth City Council,PCC,Adult Social Care,Physical Support Older People (85+),ADULT SERVICES,Third Party Payments,Other establishments,26/03/18,6213940,189,VENDOR,JM HOMECARE LTD T/A RIGHT AT HOME,141434
Portsmouth City Council,PCC,Adult Social Care,Support with Memory and Cognition Older People (85+),ADULT SERVICES,Third Party Payments,Other establishments,26/03/18,6213940,244.3,VENDOR,JM HOMECARE LTD T/A RIGHT AT HOME,141434
Portsmouth City Council,PCC,Environmental and Regulatory Services,Regulatory Services,CULTURE & CITY DEVELOPMENT,Third Party Payments,Private contractors,05/03/18,6209833,486.5,VENDOR,ADAMS MOREY LTD,100446
Portsmouth City Council,PCC,Environmental and Regulatory Services,Regulatory Services,CULTURE & CITY DEVELOPMENT,Third Party Payments,Private contractors,05/03/18,6209833,1102,VENDOR,ADAMS MOREY LTD,100446
Portsmouth City Council,PCC,Adult Social Care,Social Support - Support for Carer,ADULT SERVICES,Third Party Payments,Other establishments,26/03/18,6213940,103.5,VENDOR,JM HOMECARE LTD T/A RIGHT AT HOME,141434
Portsmouth City Council,PCC,Environmental and Regulatory Services,Regulatory Services,CULTURE & CITY DEVELOPMENT,Third Party Payments,Private contractors,05/03/18,6209833,107.5,VENDOR,ADAMS MOREY LTD,100446
Portsmouth City Council,PCC,Environmental and Regulatory Services,Regulatory Services,CULTURE & CITY DEVELOPMENT,Third Party Payments,Private contractors,05/03/18,6209833,98.5,VENDOR,ADAMS MOREY LTD,100446
Portsmouth City Council,PCC,Environmental and Regulatory Services,Regulatory Services,CULTURE & CITY DEVELOPMENT,Third Party Payments,Private contractors,05/03/18,6209833,1147.5,VENDOR,ADAMS MOREY LTD,100446
Portsmouth City Council,PCC,Environmental and Regulatory Services,Regulatory Services,CULTURE & CITY DEVELOPMENT,Third Party Payments,Private contractors,05/03/18,6209833,177,VENDOR,ADAMS MOREY LTD,100446
Portsmouth City Council,PCC,Environmental and Regulatory Services,Regulatory Services,CULTURE & CITY DEVELOPMENT,Third Party Payments,Private contractors,05/03/18,6209833,1125,VENDOR,ADAMS MOREY LTD,100446
Portsmouth City Council,PCC,Adult Social Care,Physical Support Older People (85+),ADULT SERVICES,Third Party Payments,Other establishments,26/03/18,6213940,283.05,VENDOR,JM HOMECARE LTD T/A RIGHT AT HOME,141434
Portsmouth City Council,PCC,Environmental and Regulatory Services,Regulatory Services,CULTURE & CITY DEVELOPMENT,Third Party Payments,Private contractors,05/03/18,6209833,51.5,VENDOR,ADAMS MOREY LTD,100446
Portsmouth City Council,PCC,Environmental and Regulatory Services,Regulatory Services,CULTURE & CITY DEVELOPMENT,Third Party Payments,Private contractors,05/03/18,6209833,720,VENDOR,ADAMS MOREY LTD,100446
Portsmouth City Council,PCC,Environmental and Regulatory Services,Regulatory Services,CULTURE & CITY DEVELOPMENT,Third Party Payments,Private contractors,13/03/18,6211198,582,VENDOR,ADAMS MOREY LTD,100446
Portsmouth City Council,PCC,Environmental and Regulatory Services,Regulatory Services,CULTURE & CITY DEVELOPMENT,Third Party Payments,Private contractors,13/03/18,6211198,1440,VENDOR,ADAMS MOREY LTD,100446
Portsmouth City Council,PCC,Adult Social Care,Physical Support Older People (85+),ADULT SERVICES,Third Party Payments,Other establishments,26/03/18,6213940,95.5,VENDOR,JM HOMECARE LTD T/A RIGHT AT HOME,141434
Portsmouth City Council,PCC,Environmental and Regulatory Services,Regulatory Services,CULTURE & CITY DEVELOPMENT,Third Party Payments,Private contractors,29/03/18,6214789,206,VENDOR,ADAMS MOREY LTD,100446
Portsmouth City Council,PCC,Environmental and Regulatory Services,Regulatory Services,CULTURE & CITY DEVELOPMENT,Third Party Payments,Private contractors,29/03/18,6214789,2002.5,VENDOR,ADAMS MOREY LTD,100446
Portsmouth City Council,PCC,Adult Social Care,Physical Support Older People (85+),ADULT SERVICES,Third Party Payments,Other establishments,26/03/18,6213940,99.25,VENDOR,JM HOMECARE LTD T/A RIGHT AT HOME,141434
Portsmouth City Council,PCC,Adult Social Care,Physical Support Older People (85+),ADULT SERVICES,Third Party Payments,Other establishments,26/03/18,6213940,210,VENDOR,JM HOMECARE LTD T/A RIGHT AT HOME,141434
Portsmouth City Council,PCC,Environmental and Regulatory Services,Regulatory Services,CULTURE & CITY DEVELOPMENT,Third Party Payments,Private contractors,29/03/18,6214789,772.5,VENDOR,ADAMS MOREY LTD,100446
Portsmouth City Council,PCC,Environmental and Regulatory Services,Regulatory Services,CULTURE & CITY DEVELOPMENT,Third Party Payments,Private contractors,29/03/18,6214789,1980,VENDOR,ADAMS MOREY LTD,100446
Portsmouth City Council,PCC,Other,Suspense and Capital Schemes,Health & Social Care,Capital Charges,Capital Expenditure (WIP),07/03/18,6210527,52000,VENDOR,OXFORD COMPUTER CONSULTANTS LIMITED,127286
Portsmouth City Council,PCC,Support Service / Transparency Costs Unallocated,AMS,PROPERTY & HOUSING,Employees,Direct employee expenses,09/03/18,6210917,150,VENDOR,UNIVERSITY OF PORTSMOUTH,100269
Portsmouth City Council,PCC,Support Service / Transparency Costs Unallocated,AMS,PROPERTY & HOUSING,Employees,Direct employee expenses,09/03/18,6210917,2000,VENDOR,UNIVERSITY OF PORTSMOUTH,100269
Portsmouth City Council,PCC,Children's and Education Services,Asylum seekers,CHILDREN SERVICES AND EDUCATION,Third Party Payments,Other establishments,12/03/18,6211091,2368.92,VENDOR,FAIRWAYS CARE (UK) LTD,111915
Portsmouth City Council,PCC,Adult Social Care,Physical Support Older People (85+),ADULT SERVICES,Third Party Payments,Other establishments,29/03/18,6214994,163.5,VENDOR,JM HOMECARE LTD T/A RIGHT AT HOME,141434
Portsmouth City Council,PCC,Adult Social Care,Social Support - Support for Carer,ADULT SERVICES,Third Party Payments,Other establishments,29/03/18,6214994,103.5,VENDOR,JM HOMECARE LTD T/A RIGHT AT HOME,141434
Portsmouth City Council,PCC,Adult Social Care,Social Support - Support for Carer,ADULT SERVICES,Third Party Payments,Other establishments,29/03/18,6214994,76,VENDOR,JM HOMECARE LTD T/A RIGHT AT HOME,141434
Portsmouth City Council,PCC,Adult Social Care,Physical Support Older People (85+),ADULT SERVICES,Third Party Payments,Other establishments,29/03/18,6214994,189,VENDOR,JM HOMECARE LTD T/A RIGHT AT HOME,141434
Portsmouth City Council,PCC,Children's and Education Services,Asylum seekers,CHILDREN SERVICES AND EDUCATION,Third Party Payments,Other establishments,16/03/18,6212112,3533.6,VENDOR,FAIRWAYS CARE (UK) LTD,111915
Portsmouth City Council,PCC,Adult Social Care,Support with Memory and Cognition Older People (85+),ADULT SERVICES,Third Party Payments,Other establishments,29/03/18,6214994,244.3,VENDOR,JM HOMECARE LTD T/A RIGHT AT HOME,141434
Portsmouth City Council,PCC,Children's and Education Services,Asylum seekers,CHILDREN SERVICES AND EDUCATION,Third Party Payments,Other establishments,16/03/18,6212112,3533.6,VENDOR,FAIRWAYS CARE (UK) LTD,111915
Portsmouth City Council,PCC,Adult Social Care,Social Support - Support for Carer,ADULT SERVICES,Third Party Payments,Other establishments,29/03/18,6214994,103.5,VENDOR,JM HOMECARE LTD T/A RIGHT AT HOME,141434
Portsmouth City Council,PCC,Adult Social Care,Social Care Activities,ADULT SERVICES,Third Party Payments,Other establishments,02/03/18,6209777,4527.36,VENDOR,NIGHTINGALES GOLDEN CARE,103699
Portsmouth City Council,PCC,Adult Social Care,Social Care Activities,ADULT SERVICES,Third Party Payments,Other establishments,02/03/18,6209777,3961.44,VENDOR,NIGHTINGALES GOLDEN CARE,103699
Portsmouth City Council,PCC,Adult Social Care,Physical Support Older People (85+),ADULT SERVICES,Third Party Payments,Other establishments,29/03/18,6214994,283.05,VENDOR,JM HOMECARE LTD T/A RIGHT AT HOME,141434
Portsmouth City Council,PCC,Adult Social Care,Social Support - Support for Carer,ADULT SERVICES,Third Party Payments,Other establishments,02/03/18,6209777,324.48,VENDOR,NIGHTINGALES GOLDEN CARE,103699
Portsmouth City Council,PCC,Adult Social Care,Social Support - Support for Carer,ADULT SERVICES,Third Party Payments,Other establishments,02/03/18,6209777,365.04,VENDOR,NIGHTINGALES GOLDEN CARE,103699
Portsmouth City Council,PCC,Adult Social Care,Social Support - Support for Carer,ADULT SERVICES,Third Party Payments,Other establishments,02/03/18,6209777,270.4,VENDOR,NIGHTINGALES GOLDEN CARE,103699
Portsmouth City Council,PCC,Adult Social Care,Social Support - Support for Carer,ADULT SERVICES,Third Party Payments,Other establishments,02/03/18,6209777,175.76,VENDOR,NIGHTINGALES GOLDEN CARE,103699
Portsmouth City Council,PCC,Adult Social Care,Social Support - Support for Carer,ADULT SERVICES,Third Party Payments,Other establishments,02/03/18,6209777,324.48,VENDOR,NIGHTINGALES GOLDEN CARE,103699
Portsmouth City Council,PCC,Adult Social Care,Physical Support Adults (75 - 84),ADULT SERVICES,Third Party Payments,Other establishments,02/03/18,6209777,660.24,VENDOR,NIGHTINGALES GOLDEN CARE,103699
Portsmouth City Council,PCC,Adult Social Care,Physical Support Older People (85+),ADULT SERVICES,Third Party Payments,Other establishments,02/03/18,6209777,157.2,VENDOR,NIGHTINGALES GOLDEN CARE,103699
Portsmouth City Council,PCC,Adult Social Care,Physical Support Older People (85+),ADULT SERVICES,Third Party Payments,Other establishments,02/03/18,6209777,660.24,VENDOR,NIGHTINGALES GOLDEN CARE,103699
Portsmouth City Council,PCC,Adult Social Care,Support with Memory and Cognition Older People (75 - 84),ADULT SERVICES,Third Party Payments,Other establishments,02/03/18,6209777,943.2,VENDOR,NIGHTINGALES GOLDEN CARE,103699
Portsmouth City Council,PCC,Adult Social Care,Learning Disability Support  Adults (18 - 64),ADULT SERVICES,Third Party Payments,Other establishments,02/03/18,6209777,679.89,VENDOR,NIGHTINGALES GOLDEN CARE,103699
Portsmouth City Council,PCC,Adult Social Care,Physical Support Older People (85+),ADULT SERVICES,Third Party Payments,Other establishments,29/03/18,6214994,95.5,VENDOR,JM HOMECARE LTD T/A RIGHT AT HOME,141434
Portsmouth City Council,PCC,Adult Social Care,Physical Support Adults (75 - 84),ADULT SERVICES,Third Party Payments,Other establishments,02/03/18,6209777,1100.4,VENDOR,NIGHTINGALES GOLDEN CARE,103699
Portsmouth City Council,PCC,Adult Social Care,Physical Support Older People (85+),ADULT SERVICES,Third Party Payments,Other establishments,02/03/18,6209777,550.2,VENDOR,NIGHTINGALES GOLDEN CARE,103699
Portsmouth City Council,PCC,Adult Social Care,Physical Support Older People (85+),ADULT SERVICES,Third Party Payments,Other establishments,02/03/18,6209777,880.32,VENDOR,NIGHTINGALES GOLDEN CARE,103699
Portsmouth City Council,PCC,Adult Social Care,Social Support - Support for Carer,ADULT SERVICES,Third Party Payments,Other establishments,02/03/18,6209777,135.2,VENDOR,NIGHTINGALES GOLDEN CARE,103699
Portsmouth City Council,PCC,Adult Social Care,Physical Support Older People (85+),ADULT SERVICES,Third Party Payments,Other establishments,02/03/18,6209777,440.16,VENDOR,NIGHTINGALES GOLDEN CARE,103699
Portsmouth City Council,PCC,Adult Social Care,Physical Support Older People (85+),ADULT SERVICES,Third Party Payments,Other establishments,02/03/18,6209777,220.08,VENDOR,NIGHTINGALES GOLDEN CARE,103699
Portsmouth City Council,PCC,Adult Social Care,Physical Support Older People (85+),ADULT SERVICES,Third Party Payments,Other establishments,02/03/18,6209777,224.01,VENDOR,NIGHTINGALES GOLDEN CARE,103699
Portsmouth City Council,PCC,Adult Social Care,Physical Support Older People (85+),ADULT SERVICES,Third Party Payments,Other establishments,02/03/18,6209777,330.12,VENDOR,NIGHTINGALES GOLDEN CARE,103699
Portsmouth City Council,PCC,Adult Social Care,Physical Support Adults (75 - 84),ADULT SERVICES,Third Party Payments,Other establishments,02/03/18,6209777,432.3,VENDOR,NIGHTINGALES GOLDEN CARE,103699
Portsmouth City Council,PCC,Adult Social Care,Physical Support Adults (75 - 84),ADULT SERVICES,Third Party Payments,Other establishments,02/03/18,6209777,157.2,VENDOR,NIGHTINGALES GOLDEN CARE,103699
Portsmouth City Council,PCC,Adult Social Care,Physical Support Older People (85+),ADULT SERVICES,Third Party Payments,Other establishments,02/03/18,6209777,62.88,VENDOR,NIGHTINGALES GOLDEN CARE,103699
Portsmouth City Council,PCC,Adult Social Care,Physical Support Older People (85+),ADULT SERVICES,Third Party Payments,Other establishments,29/03/18,6214994,99.25,VENDOR,JM HOMECARE LTD T/A RIGHT AT HOME,141434
Portsmouth City Council,PCC,Adult Social Care,Physical Support Older People (85+),ADULT SERVICES,Third Party Payments,Other establishments,02/03/18,6209777,220.08,VENDOR,NIGHTINGALES GOLDEN CARE,103699
Portsmouth City Council,PCC,Adult Social Care,Physical Support Older People (85+),ADULT SERVICES,Third Party Payments,Other establishments,02/03/18,6209777,848.88,VENDOR,NIGHTINGALES GOLDEN CARE,103699
Portsmouth City Council,PCC,Adult Social Care,Physical Support Older People (85+),ADULT SERVICES,Third Party Payments,Other establishments,02/03/18,6209777,330.12,VENDOR,NIGHTINGALES GOLDEN CARE,103699
Portsmouth City Council,PCC,Adult Social Care,Physical Support Older People (85+),ADULT SERVICES,Third Party Payments,Other establishments,02/03/18,6209777,471.6,VENDOR,NIGHTINGALES GOLDEN CARE,103699
Portsmouth City Council,PCC,Adult Social Care,Physical Support Older People (85+),ADULT SERVICES,Third Party Payments,Other establishments,02/03/18,6209777,393,VENDOR,NIGHTINGALES GOLDEN CARE,103699
Portsmouth City Council,PCC,Adult Social Care,Physical Support Older People (85+),ADULT SERVICES,Third Party Payments,Other establishments,02/03/18,6209777,94.32,VENDOR,NIGHTINGALES GOLDEN CARE,103699
Portsmouth City Council,PCC,Adult Social Care,Physical Support Older People (85+),ADULT SERVICES,Third Party Payments,Other establishments,02/03/18,6209777,94.32,VENDOR,NIGHTINGALES GOLDEN CARE,103699
Portsmouth City Council,PCC,Adult Social Care,Physical Support Older People (85+),ADULT SERVICES,Third Party Payments,Other establishments,02/03/18,6209777,125.76,VENDOR,NIGHTINGALES GOLDEN CARE,103699
Portsmouth City Council,PCC,Adult Social Care,Physical Support Older People (85+),ADULT SERVICES,Third Party Payments,Other establishments,02/03/18,6209777,7.86,VENDOR,NIGHTINGALES GOLDEN CARE,103699
Portsmouth City Council,PCC,Adult Social Care,Physical Support Older People (85+),ADULT SERVICES,Third Party Payments,Other establishments,02/03/18,6209777,660.24,VENDOR,NIGHTINGALES GOLDEN CARE,103699
Portsmouth City Council,PCC,Adult Social Care,Physical Support Older People (85+),ADULT SERVICES,Third Party Payments,Other establishments,02/03/18,6209777,864.6,VENDOR,NIGHTINGALES GOLDEN CARE,103699
Portsmouth City Council,PCC,Adult Social Care,Physical Support Older People (85+),ADULT SERVICES,Third Party Payments,Other establishments,29/03/18,6214994,210,VENDOR,JM HOMECARE LTD T/A RIGHT AT HOME,141434
Portsmouth City Council,PCC,Adult Social Care,Physical Support Older People (85+),ADULT SERVICES,Third Party Payments,Other establishments,02/03/18,6209777,440.16,VENDOR,NIGHTINGALES GOLDEN CARE,103699
Portsmouth City Council,PCC,Adult Social Care,Physical Support Older People (85+),ADULT SERVICES,Third Party Payments,Other establishments,02/03/18,6209777,762.42,VENDOR,NIGHTINGALES GOLDEN CARE,103699
Portsmouth City Council,PCC,Adult Social Care,Physical Support Older People (85+),ADULT SERVICES,Third Party Payments,Other establishments,02/03/18,6209777,31.44,VENDOR,NIGHTINGALES GOLDEN CARE,103699
Portsmouth City Council,PCC,Adult Social Care,Physical Support Older People (85+),ADULT SERVICES,Third Party Payments,Other establishments,02/03/18,6209777,353.7,VENDOR,NIGHTINGALES GOLDEN CARE,103699
Portsmouth City Council,PCC,Adult Social Care,Physical Support Older People (85+),ADULT SERVICES,Third Party Payments,Other establishments,02/03/18,6209777,770.28,VENDOR,NIGHTINGALES GOLDEN CARE,103699
Portsmouth City Council,PCC,Adult Social Care,Physical Support Older People (85+),ADULT SERVICES,Third Party Payments,Other establishments,02/03/18,6209777,220.08,VENDOR,NIGHTINGALES GOLDEN CARE,103699
Portsmouth City Council,PCC,Adult Social Care,Physical Support Older People (85+),ADULT SERVICES,Third Party Payments,Other establishments,02/03/18,6209777,141.48,VENDOR,NIGHTINGALES GOLDEN CARE,103699
Portsmouth City Council,PCC,Adult Social Care,Social Support - Support for Carer,ADULT SERVICES,Third Party Payments,Other establishments,02/03/18,6209777,162.24,VENDOR,NIGHTINGALES GOLDEN CARE,103699
Portsmouth City Council,PCC,Adult Social Care,Social Support - Support for Carer,ADULT SERVICES,Third Party Payments,Other establishments,02/03/18,6209777,81.12,VENDOR,NIGHTINGALES GOLDEN CARE,103699
Portsmouth City Council,PCC,Adult Social Care,Physical Support Older People (85+),ADULT SERVICES,Third Party Payments,Other establishments,02/03/18,6209777,247.59,VENDOR,NIGHTINGALES GOLDEN CARE,103699
Portsmouth City Council,PCC,Adult Social Care,Physical Support Older People (85+),ADULT SERVICES,Third Party Payments,Other establishments,02/03/18,6209777,567.56,VENDOR,NIGHTINGALES GOLDEN CARE,103699
Portsmouth City Council,PCC,Adult Social Care,Physical Support Older People (85+),ADULT SERVICES,Third Party Payments,Other establishments,02/03/18,6209777,251.52,VENDOR,NIGHTINGALES GOLDEN CARE,103699
Portsmouth City Council,PCC,Adult Social Care,Physical Support Older People (85+),ADULT SERVICES,Third Party Payments,Other establishments,02/03/18,6209777,707.4,VENDOR,NIGHTINGALES GOLDEN CARE,103699
Portsmouth City Council,PCC,Adult Social Care,Physical Support Older People (85+),ADULT SERVICES,Third Party Payments,Other establishments,02/03/18,6209777,220.08,VENDOR,NIGHTINGALES GOLDEN CARE,103699
Portsmouth City Council,PCC,Adult Social Care,Physical Support Older People (85+),ADULT SERVICES,Third Party Payments,Other establishments,02/03/18,6209777,204.36,VENDOR,NIGHTINGALES GOLDEN CARE,103699
Portsmouth City Council,PCC,Children's and Education Services,Asylum seekers,CHILDREN SERVICES AND EDUCATION,Third Party Payments,Other establishments,23/03/18,6213730,2368.92,VENDOR,FAIRWAYS CARE (UK) LTD,111915
Portsmouth City Council,PCC,Adult Social Care,Social Support - Support for Carer,ADULT SERVICES,Third Party Payments,Other establishments,02/03/18,6209777,27.04,VENDOR,NIGHTINGALES GOLDEN CARE,103699
Portsmouth City Council,PCC,Adult Social Care,Physical Support Older People (85+),ADULT SERVICES,Third Party Payments,Other establishments,02/03/18,6209777,94.32,VENDOR,NIGHTINGALES GOLDEN CARE,103699
Portsmouth City Council,PCC,Housing Revenue Account,Supervision and Management,PROPERTY & HOUSING,Supplies and Services,"Equipment, furniture and materials",27/03/18,6214526,405,COMPANY,ORION LIGHTNING PROTECTION LTD,120041
Portsmouth City Council,PCC,Housing Revenue Account,Supervision and Management,PROPERTY & HOUSING,Supplies and Services,"Equipment, furniture and materials",27/03/18,6214526,395,COMPANY,ORION LIGHTNING PROTECTION LTD,120041
Portsmouth City Council,PCC,Adult Social Care,Social Care Activities,ADULT SERVICES,Third Party Payments,Other establishments,29/03/18,6215052,5061.84,VENDOR,NIGHTINGALES GOLDEN CARE,103699
Portsmouth City Council,PCC,Adult Social Care,Social Care Activities,ADULT SERVICES,Third Party Payments,Other establishments,29/03/18,6215052,3961.44,VENDOR,NIGHTINGALES GOLDEN CARE,103699
Portsmouth City Council,PCC,Adult Social Care,Social Support - Support for Carer,ADULT SERVICES,Third Party Payments,Other establishments,29/03/18,6215052,243.36,VENDOR,NIGHTINGALES GOLDEN CARE,103699
Portsmouth City Council,PCC,Adult Social Care,Social Support - Support for Carer,ADULT SERVICES,Third Party Payments,Other establishments,29/03/18,6215052,324.48,VENDOR,NIGHTINGALES GOLDEN CARE,103699
Portsmouth City Council,PCC,Adult Social Care,Social Support - Support for Carer,ADULT SERVICES,Third Party Payments,Other establishments,29/03/18,6215052,270.4,VENDOR,NIGHTINGALES GOLDEN CARE,103699
Portsmouth City Council,PCC,Adult Social Care,Social Support - Support for Carer,ADULT SERVICES,Third Party Payments,Other establishments,29/03/18,6215052,270.4,VENDOR,NIGHTINGALES GOLDEN CARE,103699
Portsmouth City Council,PCC,Adult Social Care,Social Support - Support for Carer,ADULT SERVICES,Third Party Payments,Other establishments,29/03/18,6215052,324.48,VENDOR,NIGHTINGALES GOLDEN CARE,103699
Portsmouth City Council,PCC,Adult Social Care,Physical Support Adults (75 - 84),ADULT SERVICES,Third Party Payments,Other establishments,29/03/18,6215052,660.24,VENDOR,NIGHTINGALES GOLDEN CARE,103699
Portsmouth City Council,PCC,Adult Social Care,Physical Support Older People (85+),ADULT SERVICES,Third Party Payments,Other establishments,29/03/18,6215052,129.69,VENDOR,NIGHTINGALES GOLDEN CARE,103699
Portsmouth City Council,PCC,Adult Social Care,Physical Support Older People (85+),ADULT SERVICES,Third Party Payments,Other establishments,29/03/18,6215052,660.24,VENDOR,NIGHTINGALES GOLDEN CARE,103699
Portsmouth City Council,PCC,Adult Social Care,Support with Memory and Cognition Older People (75 - 84),ADULT SERVICES,Third Party Payments,Other establishments,29/03/18,6215052,943.2,VENDOR,NIGHTINGALES GOLDEN CARE,103699
Portsmouth City Council,PCC,Adult Social Care,Learning Disability Support  Adults (18 - 64),ADULT SERVICES,Third Party Payments,Other establishments,29/03/18,6215052,510.9,VENDOR,NIGHTINGALES GOLDEN CARE,103699
Portsmouth City Council,PCC,Adult Social Care,Physical Support Adults (75 - 84),ADULT SERVICES,Third Party Payments,Other establishments,29/03/18,6215052,1100.4,VENDOR,NIGHTINGALES GOLDEN CARE,103699
Portsmouth City Council,PCC,Adult Social Care,Physical Support Older People (85+),ADULT SERVICES,Third Party Payments,Other establishments,29/03/18,6215052,542.34,VENDOR,NIGHTINGALES GOLDEN CARE,103699
Portsmouth City Council,PCC,Adult Social Care,Physical Support Older People (85+),ADULT SERVICES,Third Party Payments,Other establishments,29/03/18,6215052,220.08,VENDOR,NIGHTINGALES GOLDEN CARE,103699
Portsmouth City Council,PCC,Adult Social Care,Social Support - Support for Carer,ADULT SERVICES,Third Party Payments,Other establishments,29/03/18,6215052,125.76,VENDOR,NIGHTINGALES GOLDEN CARE,103699
Portsmouth City Council,PCC,Adult Social Care,Social Support - Support for Carer,ADULT SERVICES,Third Party Payments,Other establishments,29/03/18,6215052,81.12,VENDOR,NIGHTINGALES GOLDEN CARE,103699
Portsmouth City Council,PCC,Adult Social Care,Physical Support Older People (85+),ADULT SERVICES,Third Party Payments,Other establishments,29/03/18,6215052,440.16,VENDOR,NIGHTINGALES GOLDEN CARE,103699
Portsmouth City Council,PCC,Cultural and Related Services,Recreation and Sport,CULTURE & CITY DEVELOPMENT,Supplies and Services,"Equipment, furniture and materials",20/03/18,6212384,73.9,VENDOR,CMW EQUIPMENT HOLDINGS LTD,134444
Portsmouth City Council,PCC,Cultural and Related Services,Recreation and Sport,CULTURE & CITY DEVELOPMENT,Supplies and Services,"Equipment, furniture and materials",20/03/18,6212384,139,VENDOR,CMW EQUIPMENT HOLDINGS LTD,134444
Portsmouth City Council,PCC,Cultural and Related Services,Recreation and Sport,CULTURE & CITY DEVELOPMENT,Supplies and Services,"Equipment, furniture and materials",20/03/18,6212384,139,VENDOR,CMW EQUIPMENT HOLDINGS LTD,134444
Portsmouth City Council,PCC,Cultural and Related Services,Recreation and Sport,CULTURE & CITY DEVELOPMENT,Supplies and Services,"Equipment, furniture and materials",20/03/18,6212384,139,VENDOR,CMW EQUIPMENT HOLDINGS LTD,134444
Portsmouth City Council,PCC,Cultural and Related Services,Recreation and Sport,CULTURE & CITY DEVELOPMENT,Supplies and Services,"Equipment, furniture and materials",20/03/18,6212384,208.8,VENDOR,CMW EQUIPMENT HOLDINGS LTD,134444
Portsmouth City Council,PCC,Cultural and Related Services,Recreation and Sport,CULTURE & CITY DEVELOPMENT,Supplies and Services,"Equipment, furniture and materials",20/03/18,6212384,165,VENDOR,CMW EQUIPMENT HOLDINGS LTD,134444
Portsmouth City Council,PCC,Cultural and Related Services,Recreation and Sport,CULTURE & CITY DEVELOPMENT,Supplies and Services,"Equipment, furniture and materials",20/03/18,6212384,165,VENDOR,CMW EQUIPMENT HOLDINGS LTD,134444
Portsmouth City Council,PCC,Cultural and Related Services,Recreation and Sport,CULTURE & CITY DEVELOPMENT,Supplies and Services,"Equipment, furniture and materials",20/03/18,6212384,165,VENDOR,CMW EQUIPMENT HOLDINGS LTD,134444
Portsmouth City Council,PCC,Cultural and Related Services,Recreation and Sport,CULTURE & CITY DEVELOPMENT,Supplies and Services,"Equipment, furniture and materials",20/03/18,6212384,62.4,VENDOR,CMW EQUIPMENT HOLDINGS LTD,134444
Portsmouth City Council,PCC,Cultural and Related Services,Recreation and Sport,CULTURE & CITY DEVELOPMENT,Supplies and Services,"Equipment, furniture and materials",20/03/18,6212384,87.5,VENDOR,CMW EQUIPMENT HOLDINGS LTD,134444
Portsmouth City Council,PCC,Cultural and Related Services,Recreation and Sport,CULTURE & CITY DEVELOPMENT,Supplies and Services,"Printing, stationery and general office expenses",20/03/18,6212384,20.75,VENDOR,CMW EQUIPMENT HOLDINGS LTD,134444
Portsmouth City Council,PCC,Adult Social Care,Physical Support Older People (85+),ADULT SERVICES,Third Party Payments,Other establishments,29/03/18,6215052,220.08,VENDOR,NIGHTINGALES GOLDEN CARE,103699
Portsmouth City Council,PCC,Adult Social Care,Physical Support Older People (85+),ADULT SERVICES,Third Party Payments,Other establishments,29/03/18,6215052,224.01,VENDOR,NIGHTINGALES GOLDEN CARE,103699
Portsmouth City Council,PCC,Adult Social Care,Physical Support Older People (85+),ADULT SERVICES,Third Party Payments,Other establishments,29/03/18,6215052,691.68,VENDOR,NIGHTINGALES GOLDEN CARE,103699
Portsmouth City Council,PCC,Adult Social Care,Physical Support Adults (75 - 84),ADULT SERVICES,Third Party Payments,Other establishments,29/03/18,6215052,440.16,VENDOR,NIGHTINGALES GOLDEN CARE,103699
Portsmouth City Council,PCC,Adult Social Care,Physical Support Adults (75 - 84),ADULT SERVICES,Third Party Payments,Other establishments,29/03/18,6215052,157.2,VENDOR,NIGHTINGALES GOLDEN CARE,103699
Portsmouth City Council,PCC,Adult Social Care,Physical Support Older People (85+),ADULT SERVICES,Third Party Payments,Other establishments,29/03/18,6215052,55.02,VENDOR,NIGHTINGALES GOLDEN CARE,103699
Portsmouth City Council,PCC,Adult Social Care,Physical Support Older People (85+),ADULT SERVICES,Third Party Payments,Other establishments,29/03/18,6215052,220.08,VENDOR,NIGHTINGALES GOLDEN CARE,103699
Portsmouth City Council,PCC,Adult Social Care,Physical Support Older People (85+),ADULT SERVICES,Third Party Payments,Other establishments,29/03/18,6215052,880.32,VENDOR,NIGHTINGALES GOLDEN CARE,103699
Portsmouth City Council,PCC,Adult Social Care,Physical Support Older People (85+),ADULT SERVICES,Third Party Payments,Other establishments,29/03/18,6215052,330.12,VENDOR,NIGHTINGALES GOLDEN CARE,103699
Portsmouth City Council,PCC,Adult Social Care,Physical Support Older People (85+),ADULT SERVICES,Third Party Payments,Other establishments,29/03/18,6215052,432.3,VENDOR,NIGHTINGALES GOLDEN CARE,103699
Portsmouth City Council,PCC,Adult Social Care,Physical Support Older People (85+),ADULT SERVICES,Third Party Payments,Other establishments,29/03/18,6215052,432.3,VENDOR,NIGHTINGALES GOLDEN CARE,103699
Portsmouth City Council,PCC,Adult Social Care,Physical Support Older People (85+),ADULT SERVICES,Third Party Payments,Other establishments,29/03/18,6215052,94.32,VENDOR,NIGHTINGALES GOLDEN CARE,103699
Portsmouth City Council,PCC,Adult Social Care,Physical Support Older People (85+),ADULT SERVICES,Third Party Payments,Other establishments,29/03/18,6215052,125.76,VENDOR,NIGHTINGALES GOLDEN CARE,103699
Portsmouth City Council,PCC,Adult Social Care,Physical Support Older People (85+),ADULT SERVICES,Third Party Payments,Other establishments,29/03/18,6215052,660.24,VENDOR,NIGHTINGALES GOLDEN CARE,103699
Portsmouth City Council,PCC,Adult Social Care,Physical Support Older People (85+),ADULT SERVICES,Third Party Payments,Other establishments,29/03/18,6215052,1540.56,VENDOR,NIGHTINGALES GOLDEN CARE,103699
Portsmouth City Council,PCC,Adult Social Care,Physical Support Older People (85+),ADULT SERVICES,Third Party Payments,Other establishments,29/03/18,6215052,440.16,VENDOR,NIGHTINGALES GOLDEN CARE,103699
Portsmouth City Council,PCC,Adult Social Care,Physical Support Older People (85+),ADULT SERVICES,Third Party Payments,Other establishments,29/03/18,6215052,770.28,VENDOR,NIGHTINGALES GOLDEN CARE,103699
Portsmouth City Council,PCC,Adult Social Care,Physical Support Older People (85+),ADULT SERVICES,Third Party Payments,Other establishments,29/03/18,6215052,31.44,VENDOR,NIGHTINGALES GOLDEN CARE,103699
Portsmouth City Council,PCC,Adult Social Care,Physical Support Older People (85+),ADULT SERVICES,Third Party Payments,Other establishments,29/03/18,6215052,220.08,VENDOR,NIGHTINGALES GOLDEN CARE,103699
Portsmouth City Council,PCC,Adult Social Care,Physical Support Older People (85+),ADULT SERVICES,Third Party Payments,Other establishments,29/03/18,6215052,770.28,VENDOR,NIGHTINGALES GOLDEN CARE,103699
Portsmouth City Council,PCC,Adult Social Care,Physical Support Older People (85+),ADULT SERVICES,Third Party Payments,Other establishments,29/03/18,6215052,220.08,VENDOR,NIGHTINGALES GOLDEN CARE,103699
Portsmouth City Council,PCC,Adult Social Care,Social Care Activities,ADULT SERVICES,Third Party Payments,Other establishments,29/03/18,6215052,189.28,VENDOR,NIGHTINGALES GOLDEN CARE,103699
Portsmouth City Council,PCC,Adult Social Care,Social Care Activities,ADULT SERVICES,Third Party Payments,Other establishments,29/03/18,6215052,54.08,VENDOR,NIGHTINGALES GOLDEN CARE,103699
Portsmouth City Council,PCC,Adult Social Care,Physical Support Older People (85+),ADULT SERVICES,Third Party Payments,Other establishments,29/03/18,6215052,330.12,VENDOR,NIGHTINGALES GOLDEN CARE,103699
Portsmouth City Council,PCC,Adult Social Care,Physical Support Older People (85+),ADULT SERVICES,Third Party Payments,Other establishments,29/03/18,6215052,1100.4,VENDOR,NIGHTINGALES GOLDEN CARE,103699
Portsmouth City Council,PCC,Adult Social Care,Physical Support Older People (85+),ADULT SERVICES,Third Party Payments,Other establishments,29/03/18,6215052,237.44,VENDOR,NIGHTINGALES GOLDEN CARE,103699
Portsmouth City Council,PCC,Adult Social Care,Physical Support Older People (85+),ADULT SERVICES,Third Party Payments,Other establishments,29/03/18,6215052,982.5,VENDOR,NIGHTINGALES GOLDEN CARE,103699
Portsmouth City Council,PCC,Adult Social Care,Physical Support Older People (85+),ADULT SERVICES,Third Party Payments,Other establishments,29/03/18,6215052,416.58,VENDOR,NIGHTINGALES GOLDEN CARE,103699
Portsmouth City Council,PCC,Adult Social Care,Social Support - Support for Carer,ADULT SERVICES,Third Party Payments,Other establishments,29/03/18,6215052,162.24,VENDOR,NIGHTINGALES GOLDEN CARE,103699
Portsmouth City Council,PCC,Adult Social Care,Physical Support Older People (85+),ADULT SERVICES,Third Party Payments,Other establishments,29/03/18,6215052,894.73,VENDOR,NIGHTINGALES GOLDEN CARE,103699
Portsmouth City Council,PCC,Adult Social Care,Social Care Activities,ADULT SERVICES,Third Party Payments,Other establishments,29/03/18,6215052,334.05,VENDOR,NIGHTINGALES GOLDEN CARE,103699
Portsmouth City Council,PCC,Adult Social Care,Social Support - Support for Carer,ADULT SERVICES,Third Party Payments,Other establishments,29/03/18,6215052,108.16,VENDOR,NIGHTINGALES GOLDEN CARE,103699
Portsmouth City Council,PCC,Adult Social Care,Physical Support Older People (85+),ADULT SERVICES,Third Party Payments,Other establishments,29/03/18,6215052,220.08,VENDOR,NIGHTINGALES GOLDEN CARE,103699
Portsmouth City Council,PCC,Adult Social Care,Physical Support Adults (18 - 64),ADULT SERVICES,Third Party Payments,Other establishments,29/03/18,6215052,62.88,VENDOR,NIGHTINGALES GOLDEN CARE,103699
Portsmouth City Council,PCC,Highways and Transport Services,"Airports, Harbours and Toll Facilities",PORTSMOUTH INTERNATIONAL PORT,Supplies and Services,"Printing, stationery and general office expenses",22/03/18,6213598,2193.1,VENDOR,PORT SKILLS AND SAFETY,108229
Portsmouth City Council,PCC,Adult Social Care,Learning Disability Support  Adults (18 - 64),ADULT SERVICES,Third Party Payments,Other establishments,15/03/18,6211920,577.76,VENDOR,CHAOS SUPPORT LIMITED,138389
Portsmouth City Council,PCC,Highways and Transport Services,"Airports, Harbours and Toll Facilities",PORTSMOUTH INTERNATIONAL PORT,Third Party Payments,Private contractors,01/03/18,6209644,100,VENDOR,SOUTHERN MARITIME SERVICES LIMITED,120765
Portsmouth City Council,PCC,Highways and Transport Services,"Airports, Harbours and Toll Facilities",PORTSMOUTH INTERNATIONAL PORT,Third Party Payments,Private contractors,01/03/18,6209644,163.8,VENDOR,SOUTHERN MARITIME SERVICES LIMITED,120765
Portsmouth City Council,PCC,Highways and Transport Services,"Airports, Harbours and Toll Facilities",PORTSMOUTH INTERNATIONAL PORT,Third Party Payments,Private contractors,01/03/18,6209644,100,VENDOR,SOUTHERN MARITIME SERVICES LIMITED,120765
Portsmouth City Council,PCC,Highways and Transport Services,"Airports, Harbours and Toll Facilities",PORTSMOUTH INTERNATIONAL PORT,Third Party Payments,Private contractors,01/03/18,6209644,280,VENDOR,SOUTHERN MARITIME SERVICES LIMITED,120765
Portsmouth City Council,PCC,Highways and Transport Services,"Airports, Harbours and Toll Facilities",PORTSMOUTH INTERNATIONAL PORT,Third Party Payments,Private contractors,01/03/18,6209644,250,VENDOR,SOUTHERN MARITIME SERVICES LIMITED,120765
Portsmouth City Council,PCC,Highways and Transport Services,"Airports, Harbours and Toll Facilities",PORTSMOUTH INTERNATIONAL PORT,Third Party Payments,Private contractors,01/03/18,6209644,3774.23,VENDOR,SOUTHERN MARITIME SERVICES LIMITED,120765
Portsmouth City Council,PCC,Highways and Transport Services,"Airports, Harbours and Toll Facilities",PORTSMOUTH INTERNATIONAL PORT,Transport-Related Expenditure,Direct transport costs,01/03/18,6209644,4506.38,VENDOR,SOUTHERN MARITIME SERVICES LIMITED,120765
Portsmouth City Council,PCC,Highways and Transport Services,"Airports, Harbours and Toll Facilities",PORTSMOUTH INTERNATIONAL PORT,Third Party Payments,Private contractors,15/03/18,6212025,3958.5,VENDOR,SOUTHERN MARITIME SERVICES LIMITED,120765
Portsmouth City Council,PCC,Highways and Transport Services,"Airports, Harbours and Toll Facilities",PORTSMOUTH INTERNATIONAL PORT,Third Party Payments,Private contractors,15/03/18,6212025,100,VENDOR,SOUTHERN MARITIME SERVICES LIMITED,120765
Portsmouth City Council,PCC,Highways and Transport Services,"Airports, Harbours and Toll Facilities",PORTSMOUTH INTERNATIONAL PORT,Third Party Payments,Private contractors,15/03/18,6212025,250,VENDOR,SOUTHERN MARITIME SERVICES LIMITED,120765
Portsmouth City Council,PCC,Highways and Transport Services,"Airports, Harbours and Toll Facilities",PORTSMOUTH INTERNATIONAL PORT,Third Party Payments,Private contractors,15/03/18,6212025,180,VENDOR,SOUTHERN MARITIME SERVICES LIMITED,120765
Portsmouth City Council,PCC,Adult Social Care,Learning Disability Support  Adults (18 - 64),ADULT SERVICES,Third Party Payments,Other establishments,23/03/18,6213684,910,VENDOR,CHAOS SUPPORT LIMITED,138389
Portsmouth City Council,PCC,Adult Social Care,Learning Disability Support  Adults (18 - 64),ADULT SERVICES,Third Party Payments,Other establishments,23/03/18,6213684,149.5,VENDOR,CHAOS SUPPORT LIMITED,138389
Portsmouth City Council,PCC,Highways and Transport Services,"Airports, Harbours and Toll Facilities",PORTSMOUTH INTERNATIONAL PORT,Transport-Related Expenditure,Direct transport costs,22/03/18,6213617,525.01,VENDOR,SOUTHERN MARITIME SERVICES LIMITED,120765
Portsmouth City Council,PCC,Highways and Transport Services,"Airports, Harbours and Toll Facilities",PORTSMOUTH INTERNATIONAL PORT,Third Party Payments,Private contractors,29/03/18,6215144,307.5,VENDOR,SOUTHERN MARITIME SERVICES LIMITED,120765
Portsmouth City Council,PCC,Highways and Transport Services,"Airports, Harbours and Toll Facilities",PORTSMOUTH INTERNATIONAL PORT,Third Party Payments,Private contractors,29/03/18,6215144,160,VENDOR,SOUTHERN MARITIME SERVICES LIMITED,120765
Portsmouth City Council,PCC,Highways and Transport Services,"Airports, Harbours and Toll Facilities",PORTSMOUTH INTERNATIONAL PORT,Third Party Payments,Private contractors,29/03/18,6215144,3890.25,VENDOR,SOUTHERN MARITIME SERVICES LIMITED,120765
Portsmouth City Council,PCC,Highways and Transport Services,"Airports, Harbours and Toll Facilities",PORTSMOUTH INTERNATIONAL PORT,Third Party Payments,Private contractors,29/03/18,6215144,286.65,VENDOR,SOUTHERN MARITIME SERVICES LIMITED,120765
Portsmouth City Council,PCC,Highways and Transport Services,"Airports, Harbours and Toll Facilities",PORTSMOUTH INTERNATIONAL PORT,Supplies and Services,"Equipment, furniture and materials",29/03/18,6215144,585,VENDOR,SOUTHERN MARITIME SERVICES LIMITED,120765
Portsmouth City Council,PCC,Adult Social Care,Learning Disability Support  Adults (18 - 64),ADULT SERVICES,Third Party Payments,Other establishments,23/03/18,6213684,1759.16,VENDOR,CHAOS SUPPORT LIMITED,138389
Portsmouth City Council,PCC,Highways and Transport Services,"Airports, Harbours and Toll Facilities",PORTSMOUTH INTERNATIONAL PORT,Supplies and Services,"Equipment, furniture and materials",29/03/18,6215144,118.91,VENDOR,SOUTHERN MARITIME SERVICES LIMITED,120765
Portsmouth City Council,PCC,Highways and Transport Services,"Airports, Harbours and Toll Facilities",PORTSMOUTH INTERNATIONAL PORT,Third Party Payments,Private contractors,29/03/18,6215144,250,VENDOR,SOUTHERN MARITIME SERVICES LIMITED,120765
Portsmouth City Council,PCC,Highways and Transport Services,"Airports, Harbours and Toll Facilities",PORTSMOUTH INTERNATIONAL PORT,Third Party Payments,Private contractors,29/03/18,6215144,3684.42,VENDOR,SOUTHERN MARITIME SERVICES LIMITED,120765
Portsmouth City Council,PCC,Highways and Transport Services,"Airports, Harbours and Toll Facilities",PORTSMOUTH INTERNATIONAL PORT,Third Party Payments,Private contractors,29/03/18,6215144,250,VENDOR,SOUTHERN MARITIME SERVICES LIMITED,120765
Portsmouth City Council,PCC,Adult Social Care,Learning Disability Support  Adults (18 - 64),ADULT SERVICES,Third Party Payments,Other establishments,23/03/18,6213684,388.8,VENDOR,CHAOS SUPPORT LIMITED,138389
Portsmouth City Council,PCC,Adult Social Care,Learning Disability Support  Adults (18 - 64),ADULT SERVICES,Third Party Payments,Other establishments,23/03/18,6213684,984,VENDOR,CHAOS SUPPORT LIMITED,138389
Portsmouth City Council,PCC,Adult Social Care,Learning Disability Support  Adults (18 - 64),ADULT SERVICES,Third Party Payments,Other establishments,23/03/18,6213684,182,VENDOR,CHAOS SUPPORT LIMITED,138389
Portsmouth City Council,PCC,Adult Social Care,Physical Support Older People (85+),ADULT SERVICES,Third Party Payments,Other establishments,29/03/18,6215262,163.5,VENDOR,JM HOMECARE LTD T/A RIGHT AT HOME,141434
Portsmouth City Council,PCC,Children's and Education Services,Other Education and Community Budget,CHILDREN SERVICES AND EDUCATION,Third Party Payments,Other establishments,13/03/18,6211300,4990,VENDOR,FOLKACTIVE CIC,139868
Portsmouth City Council,PCC,Adult Social Care,Social Support - Support for Carer,ADULT SERVICES,Third Party Payments,Other establishments,29/03/18,6215262,103.5,VENDOR,JM HOMECARE LTD T/A RIGHT AT HOME,141434
Portsmouth City Council,PCC,Adult Social Care,Social Support - Support for Carer,ADULT SERVICES,Third Party Payments,Other establishments,29/03/18,6215262,76,VENDOR,JM HOMECARE LTD T/A RIGHT AT HOME,141434
Portsmouth City Council,PCC,Adult Social Care,Physical Support Older People (85+),ADULT SERVICES,Third Party Payments,Other establishments,29/03/18,6215262,189,VENDOR,JM HOMECARE LTD T/A RIGHT AT HOME,141434
Portsmouth City Council,PCC,Adult Social Care,Support with Memory and Cognition Older People (85+),ADULT SERVICES,Third Party Payments,Other establishments,29/03/18,6215262,244.3,VENDOR,JM HOMECARE LTD T/A RIGHT AT HOME,141434
Portsmouth City Council,PCC,Adult Social Care,Social Support - Support for Carer,ADULT SERVICES,Third Party Payments,Other establishments,29/03/18,6215262,103.5,VENDOR,JM HOMECARE LTD T/A RIGHT AT HOME,141434
Portsmouth City Council,PCC,Adult Social Care,Physical Support Older People (85+),ADULT SERVICES,Third Party Payments,Other establishments,29/03/18,6215262,283.05,VENDOR,JM HOMECARE LTD T/A RIGHT AT HOME,141434
Portsmouth City Council,PCC,Adult Social Care,Physical Support Older People (85+),ADULT SERVICES,Third Party Payments,Other establishments,29/03/18,6215262,95.5,VENDOR,JM HOMECARE LTD T/A RIGHT AT HOME,141434
Portsmouth City Council,PCC,Adult Social Care,Physical Support Older People (85+),ADULT SERVICES,Third Party Payments,Other establishments,29/03/18,6215262,99.25,VENDOR,JM HOMECARE LTD T/A RIGHT AT HOME,141434
Portsmouth City Council,PCC,Adult Social Care,Physical Support Older People (85+),ADULT SERVICES,Third Party Payments,Other establishments,29/03/18,6215262,210,VENDOR,JM HOMECARE LTD T/A RIGHT AT HOME,141434
Portsmouth City Council,PCC,Housing Revenue Account,Special Services,PROPERTY & HOUSING,Employees,Direct employee expenses,28/03/18,6214762,141.48,VENDOR,THE PORTSMOUTH SITTING SERVICE AND COMMUNITY CARE SERVICES LTD T/A ASSURED CARE,100201
Portsmouth City Council,PCC,Housing Revenue Account,Repairs and Maintenance,PROPERTY & HOUSING,Premises-Related Expenditure,"Repairs, alterations and maintenance of buildings",13/03/18,6211316,-1012,COMPANY,LAWTECH GROUP LIMITED,141430
Portsmouth City Council,PCC,Housing Revenue Account,Repairs and Maintenance,PROPERTY & HOUSING,Premises-Related Expenditure,"Repairs, alterations and maintenance of buildings",13/03/18,6211316,9179.56,COMPANY,LAWTECH GROUP LIMITED,141430
Portsmouth City Council,PCC,Public Health,Miscellaneous Public Services,PUBLIC HEALTH,Third Party Payments,Other establishments,02/03/18,6209812,6625,VENDOR,THE BREASTFEEDING NETWORK,131434
Portsmouth City Council,PCC,Planning Services,Business support,REGENERATION,Supplies and Services,"Equipment, furniture and materials",26/03/18,6214011,1498.66,VENDOR,WESTERN SIGN SYSTEMS LTD,121415
